Body name,Service Area,Dept,Capital/Revenue,Expenses Type,Detailed Expenses Type,Transaction number,Expense Code,Date,Amount,Supplier Name,Supplier ID
WANDSWORTH COUNCIL,CS,ENVIRONMENT & COMMUNITY,Revenue,COMMUNICATIONS & COMP,I.T. SOFTWARE,645452,100336240,29-Apr-15,"8,008.20 ",NORTHGATE INFORMATION SOLUTIONS UK LTD,SP0000812
WANDSWORTH COUNCIL,CS,ENVIRONMENT & COMMUNITY,Revenue,"REPAIRS, ALTERATIONS & MTCE","REPS, ALTS & MTCE-BUILDINGS",639968,10051000K0002P,23-Apr-15,510.00 ,BROADWAY MALYAN,SP0007508
WANDSWORTH COUNCIL,CS,ENVIRONMENT & COMMUNITY,Revenue,SERVICES,CONSULTANTS FEES,644316,100534200,30-Apr-15,639.90 ,PINSENT MASONS,SP0008115
WANDSWORTH COUNCIL,CS,ENVIRONMENT & COMMUNITY,Revenue,SERVICES,CONSULTANTS FEES,644316,100534200,30-Apr-15,"24,515.78 ",PINSENT MASONS,SP0008115
WANDSWORTH COUNCIL,CS,ENVIRONMENT & COMMUNITY,Revenue,SERVICES,PURCHASE OF MEMORIAL BENCHES,632865,102034830,15-Apr-15,"35,911.00 ",WANDSWORTH CARE ALLIANCE,SP0008176
WANDSWORTH COUNCIL,PH,ADMINISTRATION,Revenue,SERVICES,PROJECT WORK,20303781,102234800,16-Apr-15,"11,350.00 ",FAITH ASSOCIATES,2017800
WANDSWORTH COUNCIL,CS,ENVIRONMENT & COMMUNITY,Revenue,INDIRECT,TRAINING - EXTERNAL COURSES,643143,103000770,28-Apr-15,732.00 ,THE ASSOCIATION OF ELECTORAL ADMINISTRAT,SP0002779
WANDSWORTH COUNCIL,CS,ENVIRONMENT & COMMUNITY,Revenue,PRINTING STAT & GEN OFFICE EXP,PRINTING AND STATIONERY,644203,103033420,28-Apr-15,"1,935.20 ",OFFICE DEPOT UK LTD,SP0000092
WANDSWORTH COUNCIL,CS,ENVIRONMENT & COMMUNITY,Revenue,COMMUNICATIONS & COMP,I.T. EQUIPMENT & MAINTENANCE,639846,103036210,23-Apr-15,"4,434.00 ",PARALOGIC LTD,SP0001642
WANDSWORTH COUNCIL,CS,ENVIRONMENT & COMMUNITY,Revenue,COMMUNICATIONS & COMP,I.T. EQUIPMENT & MAINTENANCE,637606,103036210,21-Apr-15,"4,252.96 ",NEOPOST LTD,SP0003054
WANDSWORTH COUNCIL,CS,ENVIRONMENT & COMMUNITY,Revenue,COMMUNICATIONS & COMP,I.T. EQUIPMENT & MAINTENANCE,637606,103036210,21-Apr-15,"10,378.24 ",NEOPOST LTD,SP0003054
WANDSWORTH COUNCIL,CS,ENVIRONMENT & COMMUNITY,Revenue,COMMUNICATIONS & COMP,I.T. EQUIPMENT & MAINTENANCE,637606,103036210,21-Apr-15,"18,800.00 ",NEOPOST LTD,SP0003054
WANDSWORTH COUNCIL,CS,ENVIRONMENT & COMMUNITY,Revenue,"EQUIPMENT, FURNITURE & MATS",FLOWERS,639216,103130170,24-Apr-15,646.00 ,PATRICIA WONG,SP0002085
WANDSWORTH COUNCIL,CS,ENVIRONMENT & COMMUNITY,Revenue,COMMUNICATIONS & COMP,I.T. DEVELOPMENTS,634583,103436200,17-Apr-15,"3,078.00 ",DELL CORPORATION LTD,SP0003352
WANDSWORTH COUNCIL,CS,ENVIRONMENT & COMMUNITY,Revenue,COMMUNICATIONS & COMP,I.T. DEVELOPMENTS,634583,103436200,17-Apr-15,"3,800.00 ",DELL CORPORATION LTD,SP0003352
WANDSWORTH COUNCIL,CS,ENVIRONMENT & COMMUNITY,Revenue,COMMUNICATIONS & COMP,I.T. DEVELOPMENTS,630593,103436200,24-Apr-15,"37,200.00 ",DELL CORPORATION LTD,SP0003352
WANDSWORTH COUNCIL,CS,ENVIRONMENT & COMMUNITY,Revenue,COMMUNICATIONS & COMP,I.T. DEVELOPMENTS,634583,103436200,17-Apr-15,"4,612.00 ",DELL CORPORATION LTD,SP0003352
WANDSWORTH COUNCIL,CS,ENVIRONMENT & COMMUNITY,Revenue,COMMUNICATIONS & COMP,I.T. DEVELOPMENTS,630481,103436200,20-Apr-15,"1,098.00 ",DELL CORPORATION LTD,SP0003352
WANDSWORTH COUNCIL,CS,ENVIRONMENT & COMMUNITY,Revenue,COMMUNICATIONS & COMP,I.T. DEVELOPMENTS,630593,103436200,24-Apr-15,630.00 ,DELL CORPORATION LTD,SP0003352
WANDSWORTH COUNCIL,CS,ENVIRONMENT & COMMUNITY,Revenue,COMMUNICATIONS & COMP,I.T. DEVELOPMENTS,634583,103436200,17-Apr-15,"32,634.00 ",DELL CORPORATION LTD,SP0003352
WANDSWORTH COUNCIL,CS,ENVIRONMENT & COMMUNITY,Revenue,COMMUNICATIONS & COMP,I.T. DEVELOPMENTS,630483,103436200,24-Apr-15,"7,440.00 ",DELL CORPORATION LTD,SP0003352
WANDSWORTH COUNCIL,PH,ENVIRONMENT & COMMUNITY,Revenue,HEALTH,HIV RAPID TESTING PILOT,632866,105141710,15-Apr-15,"3,050.00 ",PASSANTE HEALTHCARE LTD,SP0006465
WANDSWORTH COUNCIL,PH,ENVIRONMENT & COMMUNITY,Revenue,HEALTH,THIRD PARTY PAYMENTS- TRAINING,635584,105340530,17-Apr-15,995.00 ,SMART HEALTH SOLUTIONS,SP0006629
WANDSWORTH COUNCIL,PH,ENVIRONMENT & COMMUNITY,Revenue,HEALTH,THIRD PARTY PAYMENTS- TRAINING,635583,105340530,17-Apr-15,750.00 ,SMART HEALTH SOLUTIONS,SP0006629
WANDSWORTH COUNCIL,PH,ENVIRONMENT & COMMUNITY,Revenue,HEALTH,THIRD PARTY PAYMENTS- TRAINING,635585,105340530,17-Apr-15,891.00 ,SMART HEALTH SOLUTIONS,SP0006629
WANDSWORTH COUNCIL,PH,ENVIRONMENT & COMMUNITY,Revenue,HEALTH,THIRD PARTY PAYMENTS- TRAINING,635586,105340530,17-Apr-15,750.00 ,SMART HEALTH SOLUTIONS,SP0006629
WANDSWORTH COUNCIL,PH,ENVIRONMENT & COMMUNITY,Revenue,HEALTH,COMMUNITY OUTREACH HEALTH CHCK,639200,105341300,21-Apr-15,"15,000.00 ",SOLUTIONS 4 HEALTH LTD,SP0008222
WANDSWORTH COUNCIL,PH,FINANCE,Revenue,HEALTH,ADULT WEIGHT MGT SERVICE,630172,105741230,28-Apr-15,"11,536.00 ",MYTIME ACTIVE,SP0006449
WANDSWORTH COUNCIL,PH,ENVIRONMENT & COMMUNITY,Revenue,PRINTING STAT & GEN OFFICE EXP,EVENTS PUBLICITY,629575,106333140,09-Apr-15,"6,960.00 ",TCM TRAILERS,SP0007588
WANDSWORTH COUNCIL,PH,ENVIRONMENT & COMMUNITY,Revenue,HEALTH,THIRD PARTY PYMT - HEALTH,628615,106741130,09-Apr-15,707.88 ,THE BREASTFEEDING NETWORK LTD,SP0006832
WANDSWORTH COUNCIL,PH,ENVIRONMENT & COMMUNITY,Revenue,VOL ASS,THIRD PARTY PYMT - VOL ASS,628647,106948090,09-Apr-15,"2,000.00 ",AGE UK WANDSWORTH,SP0005795
WANDSWORTH COUNCIL,PH,ENVIRONMENT & COMMUNITY,Revenue,SERVICES,PROJECT WORK,634515,107034800,15-Apr-15,"3,355.20 ",REGENERATE.COM,SP0002638
WANDSWORTH COUNCIL,PH,ENVIRONMENT & COMMUNITY,Revenue,SERVICES,PROJECT WORK,643144,107034800,28-Apr-15,280.00 ,NEW ECONOMICS FOUNDATION,SP0009510
WANDSWORTH COUNCIL,PH,ENVIRONMENT & COMMUNITY,Revenue,SERVICES,PROJECT WORK,643144,107034800,28-Apr-15,"1,400.00 ",NEW ECONOMICS FOUNDATION,SP0009510
WANDSWORTH COUNCIL,PH,ENVIRONMENT & COMMUNITY,Revenue,HEALTH,SCREENING IN COMMUNTIES,628116,107141990,08-Apr-15,"2,400.00 ",CANCER RESEARCH UK,SP0009454
WANDSWORTH COUNCIL,PH,ADMINISTRATION,Revenue,COMMUNICATIONS & COMP,MOBILE PHONES,20302392,107836380,20-Apr-15,50.00 ,VODAFONE CORPORATE,2009219
WANDSWORTH COUNCIL,PH,ADMINISTRATION,Revenue,COMMUNICATIONS & COMP,MOBILE PHONES,20302392,107836380,20-Apr-15,50.00 ,VODAFONE CORPORATE,2009219
WANDSWORTH COUNCIL,PH,ENVIRONMENT & COMMUNITY,Revenue,HEALTH,THIRD PARTY PYMT - HEALTH,630145,107941130,13-Apr-15,"4,995.00 ",DFPTV,SP0005860
WANDSWORTH COUNCIL,PH,ENVIRONMENT & COMMUNITY,Revenue,SERVICES,PROJECT WORK,641497,108034800,24-Apr-15,"8,309.80 ",ROEHAMPTON UNIVERSITY,SP0000768
WANDSWORTH COUNCIL,PH,ENVIRONMENT & COMMUNITY,Revenue,SERVICES,PROJECT WORK,641523,108034800,27-Apr-15,"2,886.60 ",HOME START WANDSWORTH LTD,SP0007079
WANDSWORTH COUNCIL,PH,ENVIRONMENT & COMMUNITY,Revenue,SERVICES,PROJECT WORK,629850,108034800,13-Apr-15,"1,165.00 ",GREENWICH CO-OPERATIVE DEVELOPMENT AGENC,SP0008795
WANDSWORTH COUNCIL,PH,ENVIRONMENT & COMMUNITY,Revenue,SERVICES,PROJECT WORK,638443,108134800,21-Apr-15,"12,000.00 ",AIR SPORTS NETWORK,SP0006715
WANDSWORTH COUNCIL,NGF CS,FINANCE,Revenue,ENERGY,ENERGY COSTS - ELECTRICITY,20304125,111010700,27-Apr-15,255.03 ,EDF ENERGY CUSTOMER FIELD SERVICES,2012299
WANDSWORTH COUNCIL,NGF CS,FINANCE,Revenue,ENERGY,ENERGY COSTS - ELECTRICITY,20304125,111010700,27-Apr-15,143.80 ,EDF ENERGY CUSTOMER FIELD SERVICES,2012299
WANDSWORTH COUNCIL,NGF CS,FINANCE,Revenue,ENERGY,ENERGY COSTS - ELECTRICITY,20304125,111010700,27-Apr-15,143.80 ,EDF ENERGY CUSTOMER FIELD SERVICES,2012299
WANDSWORTH COUNCIL,NGF CS,FINANCE,Revenue,ENERGY,ENERGY COSTS - ELECTRICITY,20304125,111010700,27-Apr-15,91.28 ,EDF ENERGY CUSTOMER FIELD SERVICES,2012299
WANDSWORTH COUNCIL,NGF CS,ADMINISTRATION,Revenue,"EQUIPMENT, FURNITURE & MATS",FIRE EXTINGUISHERS,20304108,111030150,23-Apr-15,426.60 ,HOME COUNTY FIRE CATERHAM LTD,2009210
WANDSWORTH COUNCIL,NGF CS,ENVIRONMENT & COMMUNITY,Revenue,PRIVATE,REFUSE COLLECTN & PEST CONTROL,639574,111045500,22-Apr-15,"1,202.69 ",SITA UK LTD,SP0000507
WANDSWORTH COUNCIL,NGF CS,ENVIRONMENT & COMMUNITY,Revenue,PRIVATE,REFUSE COLLECTN & PEST CONTROL,639573,111045500,22-Apr-15,534.79 ,SITA UK LTD,SP0000507
WANDSWORTH COUNCIL,NGF CS,ENVIRONMENT & COMMUNITY,Revenue,CLEANING & DOMESTIC SUPPLIES,CLEANING & DOMESTIC SUPPLIES,639577,113813010,22-Apr-15,"2,421.90 ",WESSEX PRODUCTS (LEASING) LTD,SP0002972
WANDSWORTH COUNCIL,NGF CS,ENVIRONMENT & COMMUNITY,Revenue,CLEANING & DOMESTIC SUPPLIES,CLEANING CONTRACT,641868,113813020,27-Apr-15,"54,297.07 ",OCEAN INTEGRATED SERVICES LTD,SP0001062
WANDSWORTH COUNCIL,NGF CS,ADMINISTRATION,Revenue,COMMUNICATIONS & COMP,I.T. EQUIPMENT & MAINTENANCE,20302392,114136210,20-Apr-15,50.00 ,VODAFONE CORPORATE,2009219
WANDSWORTH COUNCIL,NGF CS,ENVIRONMENT & COMMUNITY,Revenue,PRIVATE,GENERAL CONTRACT WORK,645521,114145370,30-Apr-15,957.50 ,AA PROJECTS LTD,SP0008976
WANDSWORTH COUNCIL,NGF CDC,ENVIRONMENT & COMMUNITY,Revenue,"REPAIRS, ALTERATIONS & MTCE",REMOVALS & REORGANISATIONS,638496,114210140,20-Apr-15,438.75 ,JT & SONS RELOCATIONS,SP0005993
WANDSWORTH COUNCIL,NGF CDC,ENVIRONMENT & COMMUNITY,Revenue,"REPAIRS, ALTERATIONS & MTCE",REMOVALS & REORGANISATIONS,636621,114210140,17-Apr-15,645.00 ,JT & SONS RELOCATIONS,SP0005993
WANDSWORTH COUNCIL,NGF CDC,ENVIRONMENT & COMMUNITY,Revenue,"REPAIRS, ALTERATIONS & MTCE",REMOVALS & REORGANISATIONS,636621,114210140,17-Apr-15,64.50 ,JT & SONS RELOCATIONS,SP0005993
WANDSWORTH COUNCIL,NGF CDC,ENVIRONMENT & COMMUNITY,Revenue,"REPAIRS, ALTERATIONS & MTCE",REMOVALS & REORGANISATIONS,630008,114210140,13-Apr-15,645.00 ,JT & SONS RELOCATIONS,SP0005993
WANDSWORTH COUNCIL,NGF CS,ENVIRONMENT & COMMUNITY,Revenue,WATER,SEWERAGE & ENVIRONMENTAL SVCS,639094,114413800,21-Apr-15,"2,446.99 ",BIFFA WASTE SERVICES LTD,SP0002818
WANDSWORTH COUNCIL,NGF CS,ENVIRONMENT & COMMUNITY,Revenue,PRINTING STAT & GEN OFFICE EXP,PHOTOCOPYING,638448,120133380,21-Apr-15,695.36 ,CANON (UK) LTD,SP0000262
WANDSWORTH COUNCIL,NGF CS,ENVIRONMENT & COMMUNITY,Revenue,PRINTING STAT & GEN OFFICE EXP,PHOTOCOPYING,638449,120133380,21-Apr-15,445.47 ,CANON (UK) LTD,SP0000262
WANDSWORTH COUNCIL,NGF CS,ENVIRONMENT & COMMUNITY,Revenue,COMMUNICATIONS & COMP,I.T. EQUIPMENT & MAINTENANCE,634531,120436210,20-Apr-15,"5,320.00 ",DANWOOD GROUP LTD,SP0002739
WANDSWORTH COUNCIL,NGF CS,ENVIRONMENT & COMMUNITY,Revenue,OTHER AGENCIES,DISBURSEMENTS,628626,120643250,09-Apr-15,64.00 ,SHARPE PRITCHARD LLP,SP0003677
WANDSWORTH COUNCIL,NGF CS,ENVIRONMENT & COMMUNITY,Revenue,OTHER AGENCIES,DISBURSEMENTS,628628,120643250,09-Apr-15,54.00 ,SHARPE PRITCHARD LLP,SP0003677
WANDSWORTH COUNCIL,NGF CS,ENVIRONMENT & COMMUNITY,Revenue,OTHER AGENCIES,DISBURSEMENTS,628628,120643250,09-Apr-15,814.05 ,SHARPE PRITCHARD LLP,SP0003677
WANDSWORTH COUNCIL,NGF CS,ENVIRONMENT & COMMUNITY,Revenue,OTHER AGENCIES,DISBURSEMENTS,628626,120643250,09-Apr-15,"1,818.75 ",SHARPE PRITCHARD LLP,SP0003677
WANDSWORTH COUNCIL,NGF CS,ENVIRONMENT & COMMUNITY,Revenue,OTHER AGENCIES,DISBURSEMENTS,628184,120643250,08-Apr-15,850.00 ,CORNERSTONE BACS,SP0004477
WANDSWORTH COUNCIL,NGF CS,ENVIRONMENT & COMMUNITY,Revenue,OTHER AGENCIES,DISBURSEMENTS,628122,120643250,08-Apr-15,425.00 ,4 BRICK COURT MANAGEMENT LIMITED,SP0007380
WANDSWORTH COUNCIL,NGF CS,ENVIRONMENT & COMMUNITY,Revenue,OTHER AGENCIES,DISBURSEMENTS,627031,120643250,07-Apr-15,311.00 ,JORDANS PROPERTY SERVICES,SP0008948
WANDSWORTH COUNCIL,NGF CS,ENVIRONMENT & COMMUNITY,Revenue,OTHER AGENCIES,DISBURSEMENTS,627031,120643250,07-Apr-15,193.97 ,JORDANS PROPERTY SERVICES,SP0008948
WANDSWORTH COUNCIL,NGF CS,ENVIRONMENT & COMMUNITY,Revenue,OTHER AGENCIES,DISBURSEMENTS,636771,120643250,20-Apr-15,855.00 ,FIELD COURT CHAMBERS,SP0009008
WANDSWORTH COUNCIL,NGF CS,ENVIRONMENT & COMMUNITY,Revenue,OTHER AGENCIES,DISBURSEMENTS,628149,120643250,08-Apr-15,700.00 ,OUTER TEMPLE CHAMBERS,SP0009290
WANDSWORTH COUNCIL,NGF CS,ENVIRONMENT & COMMUNITY,Revenue,OTHER AGENCIES,DISBURSEMENTS,628105,120643250,08-Apr-15,800.00 ,1 GARDEN COURT CHAMBERS,SP0009291
WANDSWORTH COUNCIL,NGF CS,ENVIRONMENT & COMMUNITY,Revenue,OTHER AGENCIES,DISBURSEMENTS,630162,120643250,14-Apr-15,500.00 ,42 BEDFORD ROW CHAMBERS,SP0009440
WANDSWORTH COUNCIL,NGF CS,ENVIRONMENT & COMMUNITY,Revenue,OTHER AGENCIES,DISBURSEMENTS,630161,120643250,14-Apr-15,950.00 ,42 BEDFORD ROW CHAMBERS,SP0009440
WANDSWORTH COUNCIL,NGF CS,ENVIRONMENT & COMMUNITY,Revenue,OTHER AGENCIES,DISBURSEMENTS,630160,120643250,14-Apr-15,500.00 ,42 BEDFORD ROW CHAMBERS,SP0009440
WANDSWORTH COUNCIL,NGF CS,ENVIRONMENT & COMMUNITY,Revenue,OTHER AGENCIES,DISBURSEMENTS,630166,120643250,14-Apr-15,850.00 ,42 BEDFORD ROW CHAMBERS,SP0009440
WANDSWORTH COUNCIL,NGF CS,ENVIRONMENT & COMMUNITY,Revenue,OTHER AGENCIES,DISBURSEMENTS,627048,120643250,07-Apr-15,"2,365.00 ",KALEIDOSCOPE PSYCHOLOGY SERVICES LTD,SP0009489
WANDSWORTH COUNCIL,NGF CS,ENVIRONMENT & COMMUNITY,Revenue,OTHER AGENCIES,DISBURSEMENTS,628637,120643250,09-Apr-15,885.00 ,ONE PAPER BUILDINGS,SP0009490
WANDSWORTH COUNCIL,NGF CS,ENVIRONMENT & COMMUNITY,Revenue,OTHER AGENCIES,DISBURSEMENTS,628599,120643250,08-Apr-15,459.00 ,DR T L McCLINTOCK,SP0009505
WANDSWORTH COUNCIL,NGF CS,ENVIRONMENT & COMMUNITY,Revenue,PRIVATE,CONTRACT 4- LITIGATION,641875,120646160,27-Apr-15,"13,939.28 ",SHARPE PRITCHARD LLP,SP0003677
WANDSWORTH COUNCIL,NGF CS,ENVIRONMENT & COMMUNITY,Revenue,PRIVATE,"CONTRACT 6- HWYS, PLAN ETC",644236,120646170,28-Apr-15,"1,520.98 ",SHARPE PRITCHARD LLP,SP0003677
WANDSWORTH COUNCIL,NGF CS,ENVIRONMENT & COMMUNITY,Revenue,PRIVATE,"CONTRACT 6- HWYS, PLAN ETC",635894,120646170,17-Apr-15,"1,680.75 ",SHARPE PRITCHARD LLP,SP0003677
WANDSWORTH COUNCIL,NGF CS,ENVIRONMENT & COMMUNITY,Revenue,PRIVATE,"CONTRACT 6- HWYS, PLAN ETC",635893,120646170,17-Apr-15,"8,289.86 ",SHARPE PRITCHARD LLP,SP0003677
WANDSWORTH COUNCIL,NGF CS,ENVIRONMENT & COMMUNITY,Revenue,PRIVATE,"CONTRACT 6- HWYS, PLAN ETC",635892,120646170,17-Apr-15,"9,517.63 ",SHARPE PRITCHARD LLP,SP0003677
WANDSWORTH COUNCIL,NGF CS,ENVIRONMENT & COMMUNITY,Revenue,PRIVATE,"CONTRACT 6- HWYS, PLAN ETC",628625,120646170,09-Apr-15,"30,613.03 ",SHARPE PRITCHARD LLP,SP0003677
WANDSWORTH COUNCIL,NGF CS,ENVIRONMENT & COMMUNITY,Revenue,PRIVATE,"CONTRACT 6- HWYS, PLAN ETC",644232,120646170,28-Apr-15,"30,120.78 ",SHARPE PRITCHARD LLP,SP0003677
WANDSWORTH COUNCIL,NGF CS,ENVIRONMENT & COMMUNITY,Revenue,PRIVATE,"CONTRACT 6- HWYS, PLAN ETC",635895,120646170,17-Apr-15,"33,810.51 ",SHARPE PRITCHARD LLP,SP0003677
WANDSWORTH COUNCIL,NGF CS,ENVIRONMENT & COMMUNITY,Revenue,PRIVATE,"CONTRACT 6- HWYS, PLAN ETC",628627,120646170,09-Apr-15,"29,628.53 ",SHARPE PRITCHARD LLP,SP0003677
WANDSWORTH COUNCIL,NGF CS,ENVIRONMENT & COMMUNITY,Revenue,PRIVATE,LOT 1 - LLORD SERVS PROP MGMT,644233,120746180,28-Apr-15,"21,706.23 ",LAMBERT SMITH HAMPTON,SP0002515
WANDSWORTH COUNCIL,NGF CS,ENVIRONMENT & COMMUNITY,Revenue,PRIVATE,LOT 1 - LLORD SERVS PROP MGMT,644234,120746180,28-Apr-15,"6,751.67 ",LAMBERT SMITH HAMPTON,SP0002515
WANDSWORTH COUNCIL,NGF CS,ENVIRONMENT & COMMUNITY,Revenue,PRIVATE,LOT 3 - ASSET VALUATIONS & RAT,644237,120746200,28-Apr-15,"28,285.00 ",WILKS HEAD AND EVE,SP0003406
WANDSWORTH COUNCIL,NGF CS,ENVIRONMENT & COMMUNITY,Revenue,PRIVATE,LOT 2 - GEN VALUATIONS,627024,120746250,07-Apr-15,"1,370.37 ",LAMBERT SMITH HAMPTON,SP0002515
WANDSWORTH COUNCIL,NGF CS,ENVIRONMENT & COMMUNITY,Revenue,DIRECT2,AGENCY STAFF,640936,120800510,23-Apr-15,"1,189.44 ",COBALT CONSULTING (UK) LTD,SP0008002
WANDSWORTH COUNCIL,NGF CS,ENVIRONMENT & COMMUNITY,Revenue,DIRECT2,AGENCY STAFF,639855,120800510,23-Apr-15,"1,486.80 ",COBALT CONSULTING (UK) LTD,SP0008002
WANDSWORTH COUNCIL,NGF CS,ENVIRONMENT & COMMUNITY,Revenue,DIRECT2,AGENCY STAFF,639853,120800510,23-Apr-15,"1,486.80 ",COBALT CONSULTING (UK) LTD,SP0008002
WANDSWORTH COUNCIL,NGF CS,ENVIRONMENT & COMMUNITY,Revenue,DIRECT2,AGENCY STAFF,639852,120800510,23-Apr-15,"1,486.80 ",COBALT CONSULTING (UK) LTD,SP0008002
WANDSWORTH COUNCIL,NGF CS,ENVIRONMENT & COMMUNITY,Revenue,DIRECT2,AGENCY STAFF,640941,120800510,23-Apr-15,"1,062.00 ",COBALT CONSULTING (UK) LTD,SP0008002
WANDSWORTH COUNCIL,NGF CS,ENVIRONMENT & COMMUNITY,Revenue,DIRECT2,AGENCY STAFF,640937,120800510,23-Apr-15,594.72 ,COBALT CONSULTING (UK) LTD,SP0008002
WANDSWORTH COUNCIL,NGF CS,ENVIRONMENT & COMMUNITY,Revenue,PRINTING STAT & GEN OFFICE EXP,OUTWORK - LITHO,632586,121333590,16-Apr-15,616.74 ,HALSTAN & CO LTD,SP0001850
WANDSWORTH COUNCIL,NGF CS,ENVIRONMENT & COMMUNITY,Revenue,PRINTING STAT & GEN OFFICE EXP,OUTWORK - LITHO,632606,121333590,16-Apr-15,690.00 ,KALL KWIK,SP0003093
WANDSWORTH COUNCIL,NGF CS,ENVIRONMENT & COMMUNITY,Revenue,PRINTING STAT & GEN OFFICE EXP,OUTWORK - LITHO,632605,121333590,16-Apr-15,"5,400.00 ",KALL KWIK,SP0003093
WANDSWORTH COUNCIL,NGF CS,ENVIRONMENT & COMMUNITY,Revenue,PRINTING STAT & GEN OFFICE EXP,OUTWORK - LITHO,632592,121333590,16-Apr-15,648.00 ,IMPRESS PRINT SERVICES LTD,SP0003209
WANDSWORTH COUNCIL,NGF CS,ENVIRONMENT & COMMUNITY,Revenue,PRINTING STAT & GEN OFFICE EXP,OUTWORK - LITHO,632590,121333590,16-Apr-15,458.00 ,IMPRESS PRINT SERVICES LTD,SP0003209
WANDSWORTH COUNCIL,NGF CS,ENVIRONMENT & COMMUNITY,Revenue,PRINTING STAT & GEN OFFICE EXP,OUTWORK - LITHO,632591,121333590,16-Apr-15,"1,068.00 ",IMPRESS PRINT SERVICES LTD,SP0003209
WANDSWORTH COUNCIL,NGF CS,ENVIRONMENT & COMMUNITY,Revenue,PRINTING STAT & GEN OFFICE EXP,OUTWORK - LITHO,629629,121333590,13-Apr-15,730.00 ,HILL & GARWOOD PRINTING LTD,SP0007177
WANDSWORTH COUNCIL,NGF CS,ENVIRONMENT & COMMUNITY,Revenue,PRINTING STAT & GEN OFFICE EXP,OUTWORK - LITHO,632587,121333590,16-Apr-15,615.00 ,HILL & GARWOOD PRINTING LTD,SP0007177
WANDSWORTH COUNCIL,NGF CS,ENVIRONMENT & COMMUNITY,Revenue,PRINTING STAT & GEN OFFICE EXP,OUTWORK - LITHO,632578,121333590,16-Apr-15,"1,251.00 ",DELTOR COMMUNICATIONS LTD,SP0007714
WANDSWORTH COUNCIL,NGF CS,ENVIRONMENT & COMMUNITY,Revenue,PRINTING STAT & GEN OFFICE EXP,OUTWORK - EXTERN NON FRAMEWORK,632617,121333600,16-Apr-15,504.00 ,NEWSQUEST MEDIA GROUP,SP0002120
WANDSWORTH COUNCIL,NGF CS,ENVIRONMENT & COMMUNITY,Revenue,"EQUIPMENT, FURNITURE & MATS",OP COSTS - QUICKPRINT MACHINE,627039,121430230,10-Apr-15,599.81 ,RICOH UK LTD,SP0002316
WANDSWORTH COUNCIL,NGF CS,ENVIRONMENT & COMMUNITY,Revenue,INDIRECT,IN-SERVICE TRAINING-SLA,644235,123000740,29-Apr-15,649.00 ,THE KNOWLEDGE ACADEMY LIMITED,SP0005118
WANDSWORTH COUNCIL,NGF CS,ENVIRONMENT & COMMUNITY,Revenue,INDIRECT,IN-SERVICE TRAINING-SLA,627095,123000740,08-Apr-15,497.00 ,OMNI RESOURCE MANAGEENT SOL,SP0009370
WANDSWORTH COUNCIL,NGF CS,ENVIRONMENT & COMMUNITY,Revenue,INDIRECT,IN-SERVICE TRAINING-SLA,639225,123000740,24-Apr-15,550.00 ,RESONANCE VOICE TRAINING LTD,SP0009424
WANDSWORTH COUNCIL,NGF CS,ENVIRONMENT & COMMUNITY,Revenue,INDIRECT,HEALTH CARE PROMOTIONAL,630188,123200630,15-Apr-15,455.00 ,EMERGENCY CARE GATEWAY LTD (ECG),SP0009479
WANDSWORTH COUNCIL,NGF CS,ADMINISTRATION,Revenue,INDIRECT,CHILDCARE VOUCHERS,20303999,123200650,22-Apr-15,111.51 ,COMPUTERSHARE VOUCHER SERVICES,2007281
WANDSWORTH COUNCIL,NGF CS,ADMINISTRATION,Revenue,INDIRECT,CHILDCARE VOUCHERS,20303474,123200650,07-Apr-15,668.07 ,COMPUTERSHARE VOUCHER SERVICES,2007281
WANDSWORTH COUNCIL,NGF CS,ADMINISTRATION,Revenue,INDIRECT,CHILDCARE VOUCHERS,20304000,123200650,22-Apr-15,"1,072.02 ",COMPUTERSHARE VOUCHER SERVICES,2007281
WANDSWORTH COUNCIL,NGF CS,ADMINISTRATION,Revenue,INDIRECT,CHILDCARE VOUCHERS,20303577,123200650,10-Apr-15,105.66 ,COMPUTERSHARE VOUCHER SERVICES,2007281
WANDSWORTH COUNCIL,NGF CS,ADMINISTRATION,Revenue,INDIRECT,CHILDCARE VOUCHERS,20303998,123200650,22-Apr-15,21.87 ,COMPUTERSHARE VOUCHER SERVICES,2007281
WANDSWORTH COUNCIL,NGF CS,ENVIRONMENT & COMMUNITY,Revenue,"EQUIPMENT, FURNITURE & MATS","EQUIPMENT, FURNITURE & MATS",636749,123230000,21-Apr-15,"1,223.20 ",OFFICE DEPOT UK LTD,SP0000092
WANDSWORTH COUNCIL,NGF CS,ENVIRONMENT & COMMUNITY,Revenue,"EQUIPMENT, FURNITURE & MATS","EQUIPMENT, FURNITURE & MATS",632392,123230000,15-Apr-15,50.00 ,POSTURITE (UK) LTD,SP0000964
WANDSWORTH COUNCIL,NGF CS,ENVIRONMENT & COMMUNITY,Revenue,"EQUIPMENT, FURNITURE & MATS","EQUIPMENT, FURNITURE & MATS",632392,123230000,15-Apr-15,25.00 ,POSTURITE (UK) LTD,SP0000964
WANDSWORTH COUNCIL,NGF CS,ENVIRONMENT & COMMUNITY,Revenue,"EQUIPMENT, FURNITURE & MATS","EQUIPMENT, FURNITURE & MATS",632392,123230000,15-Apr-15,41.21 ,POSTURITE (UK) LTD,SP0000964
WANDSWORTH COUNCIL,NGF CS,ENVIRONMENT & COMMUNITY,Revenue,"EQUIPMENT, FURNITURE & MATS","EQUIPMENT, FURNITURE & MATS",632392,123230000,15-Apr-15,205.00 ,POSTURITE (UK) LTD,SP0000964
WANDSWORTH COUNCIL,NGF CS,ENVIRONMENT & COMMUNITY,Revenue,"EQUIPMENT, FURNITURE & MATS","EQUIPMENT, FURNITURE & MATS",632392,123230000,15-Apr-15,654.40 ,POSTURITE (UK) LTD,SP0000964
WANDSWORTH COUNCIL,NGF CS,ENVIRONMENT & COMMUNITY,Revenue,"EQUIPMENT, FURNITURE & MATS","EQUIPMENT, FURNITURE & MATS",632392,123230000,15-Apr-15,100.00 ,POSTURITE (UK) LTD,SP0000964
WANDSWORTH COUNCIL,NGF CS,ENVIRONMENT & COMMUNITY,Revenue,"EQUIPMENT, FURNITURE & MATS","EQUIPMENT, FURNITURE & MATS",632392,123230000,15-Apr-15,327.20 ,POSTURITE (UK) LTD,SP0000964
WANDSWORTH COUNCIL,NGF CS,ENVIRONMENT & COMMUNITY,Revenue,"EQUIPMENT, FURNITURE & MATS","EQUIPMENT, FURNITURE & MATS",632392,123230000,15-Apr-15,205.00 ,POSTURITE (UK) LTD,SP0000964
WANDSWORTH COUNCIL,NGF CS,ENVIRONMENT & COMMUNITY,Revenue,"EQUIPMENT, FURNITURE & MATS","EQUIPMENT, FURNITURE & MATS",632392,123230000,15-Apr-15,82.46 ,POSTURITE (UK) LTD,SP0000964
WANDSWORTH COUNCIL,NGF CS,ENVIRONMENT & COMMUNITY,Revenue,SERVICES,OHS SESSIONAL DOCTOR,630185,123234690,13-Apr-15,"4,930.20 ",HJM ASSOCIATES,SP0003667
WANDSWORTH COUNCIL,NGF CS,ENVIRONMENT & COMMUNITY,Revenue,SERVICES,OHS SESSIONAL DOCTOR,630187,123234690,13-Apr-15,"5,337.24 ",HJM ASSOCIATES,SP0003667
WANDSWORTH COUNCIL,NGF CS,ENVIRONMENT & COMMUNITY,Revenue,SERVICES,OHS SESSIONAL DOCTOR,630186,123234690,13-Apr-15,"3,944.16 ",HJM ASSOCIATES,SP0003667
WANDSWORTH COUNCIL,NGF CS,ENVIRONMENT & COMMUNITY,Revenue,COMMUNICATIONS & COMP,I.T. SOFTWARE,634517,123236240,15-Apr-15,591.00 ,DORSET SOFTWARE SERVICES LIMITED,SP0001072
WANDSWORTH COUNCIL,NGF CDC,ENVIRONMENT & COMMUNITY,Revenue,COMMUNICATIONS & COMP,WEBSITE,639067,124236550,21-Apr-15,"7,010.00 ",MODERN MINDSET LTD,SP0007534
WANDSWORTH COUNCIL,NGF CDC,ADMINISTRATION,Revenue,PRINTING STAT & GEN OFFICE EXP,GENERAL OFFICE EXPENSES,20302392,124433190,20-Apr-15,175.00 ,VODAFONE CORPORATE,2009219
WANDSWORTH COUNCIL,NGF CDC,ADMINISTRATION,Revenue,PRINTING STAT & GEN OFFICE EXP,GENERAL OFFICE EXPENSES,20302392,124433190,20-Apr-15,120.00 ,VODAFONE CORPORATE,2009219
WANDSWORTH COUNCIL,NGF CS,ENVIRONMENT & COMMUNITY,Revenue,PRINTING STAT & GEN OFFICE EXP,GENERAL OFFICE EXPENSES,635066,124733190,30-Apr-15,"5,320.01 ",DANWOOD GROUP LTD,SP0002739
WANDSWORTH COUNCIL,PH,ENVIRONMENT & COMMUNITY,Revenue,SERVICES,PROJECT WORK,628120,125134800,08-Apr-15,"2,367.50 ",PATRICIA CHRISTMAS,SP0009451
WANDSWORTH COUNCIL,NGF CS,FINANCE,Revenue,DIRECT2,AGENCY STAFF,20303501,126000510,09-Apr-15,930.79 ,MATRIX SCM LIMITED,2014926
WANDSWORTH COUNCIL,NGF CS,FINANCE,Revenue,DIRECT2,AGENCY STAFF,20303501,126000510,09-Apr-15,930.00 ,MATRIX SCM LIMITED,2014926
WANDSWORTH COUNCIL,NGF CS,FINANCE,Revenue,DIRECT2,AGENCY STAFF,20303501,126000510,09-Apr-15,831.52 ,MATRIX SCM LIMITED,2014926
WANDSWORTH COUNCIL,NGF CS,FINANCE,Revenue,DIRECT2,AGENCY STAFF,20303501,126000510,09-Apr-15,"2,699.73 ",MATRIX SCM LIMITED,2014926
WANDSWORTH COUNCIL,NGF CS,FINANCE,Revenue,DIRECT2,AGENCY STAFF,20303501,126000510,09-Apr-15,"2,145.02 ",MATRIX SCM LIMITED,2014926
WANDSWORTH COUNCIL,NGF CS,FINANCE,Revenue,DIRECT2,AGENCY STAFF,20303501,126000510,09-Apr-15,"1,969.81 ",MATRIX SCM LIMITED,2014926
WANDSWORTH COUNCIL,NGF CS,FINANCE,Revenue,DIRECT2,AGENCY STAFF,20303818,126000510,17-Apr-15,744.00 ,MATRIX SCM LIMITED,2014926
WANDSWORTH COUNCIL,NGF CS,FINANCE,Revenue,DIRECT2,AGENCY STAFF,20303501,126000510,09-Apr-15,770.76 ,MATRIX SCM LIMITED,2014926
WANDSWORTH COUNCIL,NGF CS,FINANCE,Revenue,DIRECT2,AGENCY STAFF,20303818,126000510,17-Apr-15,749.35 ,MATRIX SCM LIMITED,2014926
WANDSWORTH COUNCIL,NGF CS,FINANCE,Revenue,DIRECT2,AGENCY STAFF,20303818,126000510,17-Apr-15,558.47 ,MATRIX SCM LIMITED,2014926
WANDSWORTH COUNCIL,NGF CS,FINANCE,Revenue,DIRECT2,AGENCY STAFF,20303818,126000510,17-Apr-15,744.00 ,MATRIX SCM LIMITED,2014926
WANDSWORTH COUNCIL,NGF CS,FINANCE,Revenue,DIRECT2,AGENCY STAFF,20303818,126000510,17-Apr-15,651.00 ,MATRIX SCM LIMITED,2014926
WANDSWORTH COUNCIL,NGF CS,FINANCE,Revenue,DIRECT2,AGENCY STAFF,20303818,126000510,17-Apr-15,342.94 ,MATRIX SCM LIMITED,2014926
WANDSWORTH COUNCIL,NGF CS,FINANCE,Revenue,DIRECT2,AGENCY STAFF,20303818,126000510,17-Apr-15,"2,432.43 ",MATRIX SCM LIMITED,2014926
WANDSWORTH COUNCIL,NGF CS,FINANCE,Revenue,DIRECT2,AGENCY STAFF,20303818,126000510,17-Apr-15,"3,421.44 ",MATRIX SCM LIMITED,2014926
WANDSWORTH COUNCIL,NGF CS,FINANCE,Revenue,DIRECT2,AGENCY STAFF,20303501,126000510,09-Apr-15,"2,301.87 ",MATRIX SCM LIMITED,2014926
WANDSWORTH COUNCIL,NGF CS,FINANCE,Revenue,DIRECT2,AGENCY STAFF,20303818,126000510,17-Apr-15,"3,100.68 ",MATRIX SCM LIMITED,2014926
WANDSWORTH COUNCIL,NGF CS,FINANCE,Revenue,DIRECT2,AGENCY STAFF,20304129,126000510,24-Apr-15,930.79 ,MATRIX SCM LIMITED,2014926
WANDSWORTH COUNCIL,NGF CS,FINANCE,Revenue,DIRECT2,AGENCY STAFF,20304129,126000510,24-Apr-15,377.17 ,MATRIX SCM LIMITED,2014926
WANDSWORTH COUNCIL,NGF CS,FINANCE,Revenue,DIRECT2,AGENCY STAFF,20304129,126000510,24-Apr-15,"2,373.94 ",MATRIX SCM LIMITED,2014926
WANDSWORTH COUNCIL,NGF CS,FINANCE,Revenue,DIRECT2,AGENCY STAFF,20304129,126000510,24-Apr-15,398.22 ,MATRIX SCM LIMITED,2014926
WANDSWORTH COUNCIL,NGF CS,FINANCE,Revenue,DIRECT2,AGENCY STAFF,20304129,126000510,24-Apr-15,854.44 ,MATRIX SCM LIMITED,2014926
WANDSWORTH COUNCIL,NGF CS,FINANCE,Revenue,DIRECT2,AGENCY STAFF,20304129,126000510,24-Apr-15,770.76 ,MATRIX SCM LIMITED,2014926
WANDSWORTH COUNCIL,NGF CS,FINANCE,Revenue,DIRECT2,AGENCY STAFF,20303501,126000510,09-Apr-15,"2,860.11 ",MATRIX SCM LIMITED,2014926
WANDSWORTH COUNCIL,NGF CS,ENVIRONMENT & COMMUNITY,Revenue,"EQUIPMENT, FURNITURE & MATS","EQUIPMENT, FURNITURE & MATS",630482,126030000,14-Apr-15,"1,132.40 ",DELL CORPORATION LTD,SP0003352
WANDSWORTH COUNCIL,NGF CS,ENVIRONMENT & COMMUNITY,Revenue,COMMUNICATIONS & COMP,I.T. EQUIPMENT & MAINTENANCE,636600,126036210,22-Apr-15,719.91 ,WAGSTAFF INTERIORS GROUP,SP0005775
WANDSWORTH COUNCIL,NGF CS,FINANCE,Revenue,DIRECT2,AGENCY STAFF,20304129,126300510,24-Apr-15,749.76 ,MATRIX SCM LIMITED,2014926
WANDSWORTH COUNCIL,NGF CS,FINANCE,Revenue,DIRECT2,AGENCY STAFF,20304129,126300510,24-Apr-15,136.32 ,MATRIX SCM LIMITED,2014926
WANDSWORTH COUNCIL,NGF CS,ADMINISTRATION,Revenue,"EQUIPMENT, FURNITURE & MATS","EQUIPMENT, FURNITURE & MATS",20303847,126330000,20-Apr-15,"4,111.00 ",SUNA COMMUNICATION LTD,2003083
WANDSWORTH COUNCIL,NGF CS,ADMINISTRATION,Revenue,"EQUIPMENT, FURNITURE & MATS","EQUIPMENT, FURNITURE & MATS",20303848,126330000,20-Apr-15,"4,685.26 ",SUNA COMMUNICATION LTD,2003083
WANDSWORTH COUNCIL,NGF CS,ADMINISTRATION,Revenue,"EQUIPMENT, FURNITURE & MATS","EQUIPMENT, FURNITURE & MATS",20303849,126330000,20-Apr-15,"11,700.50 ",SUNA COMMUNICATION LTD,2003083
WANDSWORTH COUNCIL,NGF CS,ADMINISTRATION,Revenue,"EQUIPMENT, FURNITURE & MATS","EQUIPMENT, FURNITURE & MATS",20303907,126330000,20-Apr-15,"5,090.39 ",SUNA COMMUNICATION LTD,2003083
WANDSWORTH COUNCIL,NGF CS,ADMINISTRATION,Revenue,"EQUIPMENT, FURNITURE & MATS","EQUIPMENT, FURNITURE & MATS",20303846,126330000,20-Apr-15,"3,932.66 ",VODAFONE CORPORATE,2009219
WANDSWORTH COUNCIL,NGF CS,ENVIRONMENT & COMMUNITY,Revenue,"EQUIPMENT, FURNITURE & MATS","EQUIPMENT, FURNITURE & MATS",638528,126330000,20-Apr-15,"9,683.00 ",VOICE CONNECT LTD,SP0000308
WANDSWORTH COUNCIL,NGF CS,ENVIRONMENT & COMMUNITY,Revenue,"EQUIPMENT, FURNITURE & MATS","EQUIPMENT, FURNITURE & MATS",641505,126330000,27-Apr-15,"16,500.00 ",SUNA COMMUNICATION LTD,SP0000491
WANDSWORTH COUNCIL,NGF CS,ENVIRONMENT & COMMUNITY,Revenue,"EQUIPMENT, FURNITURE & MATS","EQUIPMENT, FURNITURE & MATS",638514,126530000,23-Apr-15,"1,708.66 ",CONTENDER SYSTEMS LTD,SP0005889
WANDSWORTH COUNCIL,NGF CS,ENVIRONMENT & COMMUNITY,Revenue,COMMUNICATIONS & COMP,ICT SUPPORT,632862,126536250,15-Apr-15,711.00 ,RETAIL ASSIST LTD,SP0007725
WANDSWORTH COUNCIL,NGF CS,ENVIRONMENT & COMMUNITY,Revenue,COMMUNICATIONS & COMP,ICT SUPPORT,632862,126536250,15-Apr-15,409.50 ,RETAIL ASSIST LTD,SP0007725
WANDSWORTH COUNCIL,NGF CS,ENVIRONMENT & COMMUNITY,Revenue,COMMUNICATIONS & COMP,I.T. SLA RECHARGE,638500,126836230,20-Apr-15,440.00 ,DORSET SOFTWARE SERVICES LIMITED,SP0001072
WANDSWORTH COUNCIL,NGF CS,ENVIRONMENT & COMMUNITY,Revenue,DIRECT2,AGENCY STAFF,636620,127000510,21-Apr-15,"8,100.00 ",HAZELMERE CONSULTING LTD,SP0007883
WANDSWORTH COUNCIL,CS,ENVIRONMENT & COMMUNITY,Revenue,DIRECT2,AGENCY STAFF,635059,128000510,23-Apr-15,"20,165.49 ",MATRIX SCM LIMITED,SP0004572
WANDSWORTH COUNCIL,CS,ENVIRONMENT & COMMUNITY,Revenue,DIRECT2,AGENCY STAFF,638499,128000510,21-Apr-15,"14,591.75 ",MATRIX SCM LIMITED,SP0004572
WANDSWORTH COUNCIL,CS,ENVIRONMENT & COMMUNITY,Revenue,DIRECT2,AGENCY STAFF,629589,128000510,09-Apr-15,"14,467.52 ",MATRIX SCM LIMITED,SP0004572
WANDSWORTH COUNCIL,CS,ENVIRONMENT & COMMUNITY,Revenue,INDIRECT,STAFF ADVERTISING - VACANCIES,634571,128000960,17-Apr-15,776.00 ,PENNA PLC,SP0006290
WANDSWORTH COUNCIL,CS,ENVIRONMENT & COMMUNITY,Revenue,INDIRECT,STAFF ADVERTISING - VACANCIES,641495,128000960,24-Apr-15,"10,187.04 ",PENNA PLC,SP0006290
WANDSWORTH COUNCIL,CS,ENVIRONMENT & COMMUNITY,Revenue,INDIRECT,STAFF ADVERTISING - VACANCIES,629864,128000960,13-Apr-15,"1,101.63 ",PENNA PLC,SP0006290
WANDSWORTH COUNCIL,CS,ENVIRONMENT & COMMUNITY,Revenue,INDIRECT,STAFF ADVERTISING - VACANCIES,642688,128000960,27-Apr-15,"1,930.00 ",PENNA PLC,SP0006290
WANDSWORTH COUNCIL,CS,ENVIRONMENT & COMMUNITY,Revenue,INDIRECT,STAFF ADVERTISING - VACANCIES,642048,128000960,28-Apr-15,"2,711.00 ",PENNA PLC,SP0006290
WANDSWORTH COUNCIL,CS,ENVIRONMENT & COMMUNITY,Revenue,PRINTING STAT & GEN OFFICE EXP,PUBLICITY,639592,12803347K01877,23-Apr-15,457.60 ,NEWSQUEST MEDIA GROUP,SP0002120
WANDSWORTH COUNCIL,CS,ENVIRONMENT & COMMUNITY,Revenue,PRINTING STAT & GEN OFFICE EXP,PUBLICITY,629688,12803347K01877,13-Apr-15,563.20 ,NEWSQUEST MEDIA GROUP,SP0002120
WANDSWORTH COUNCIL,CS,ENVIRONMENT & COMMUNITY,Revenue,HEALTH,THIRD PARTY PYMT - HEALTH,643637,128041130,28-Apr-15,"3,169.23 ",BATTERSEA FIELDS PRACTICE,SP0000844
WANDSWORTH COUNCIL,CS,ENVIRONMENT & COMMUNITY,Revenue,HEALTH,THIRD PARTY PYMT - HEALTH,645444,128041130,29-Apr-15,"7,616.74 ",BALHAM PARK SURGERY,SP0000925
WANDSWORTH COUNCIL,CS,ENVIRONMENT & COMMUNITY,Revenue,HEALTH,THIRD PARTY PYMT - HEALTH,643914,128041130,29-Apr-15,"3,199.96 ",DR P ILVES T/A DANEBURY SURGERY H85067,SP0002029
WANDSWORTH COUNCIL,CS,ENVIRONMENT & COMMUNITY,Revenue,HEALTH,THIRD PARTY PYMT - HEALTH,641834,128041130,24-Apr-15,"3,737.32 ",MAYFIELD SURGERY,SP0002209
WANDSWORTH COUNCIL,CS,ENVIRONMENT & COMMUNITY,Revenue,HEALTH,THIRD PARTY PYMT - HEALTH,643915,128041130,28-Apr-15,"3,914.37 ",CHATFIELD HEALTH CARE,SP0002903
WANDSWORTH COUNCIL,CS,ENVIRONMENT & COMMUNITY,Revenue,HEALTH,THIRD PARTY PYMT - HEALTH,645863,128041130,30-Apr-15,"8,671.46 ",THURLEIGH ROAD PRACTICE H85114,SP0003310
WANDSWORTH COUNCIL,CS,ENVIRONMENT & COMMUNITY,Revenue,HEALTH,THIRD PARTY PYMT - HEALTH,643638,128041130,28-Apr-15,"6,866.56 ",LAVENDER HILL GROUP PRACTICE H85069,SP0003344
WANDSWORTH COUNCIL,CS,ENVIRONMENT & COMMUNITY,Revenue,HEALTH,THIRD PARTY PYMT - HEALTH,641838,128041130,24-Apr-15,"1,603.76 ",QUEENSTOWN ROAD MEDICAL PRACTICE H85003,SP0003591
WANDSWORTH COUNCIL,CS,ENVIRONMENT & COMMUNITY,Revenue,HEALTH,THIRD PARTY PYMT - HEALTH,645438,128041130,29-Apr-15,"2,299.00 ",PEARL CHEMIST LTD,SP0004997
WANDSWORTH COUNCIL,CS,ENVIRONMENT & COMMUNITY,Revenue,HEALTH,THIRD PARTY PYMT - HEALTH,645858,128041130,30-Apr-15,700.00 ,BARKERS CHEMIST LTD,SP0005021
WANDSWORTH COUNCIL,CS,ENVIRONMENT & COMMUNITY,Revenue,HEALTH,THIRD PARTY PYMT - HEALTH,643911,128041130,28-Apr-15,887.00 ,ABC DRUGSTORE FH098,SP0005023
WANDSWORTH COUNCIL,CS,ENVIRONMENT & COMMUNITY,Revenue,HEALTH,THIRD PARTY PYMT - HEALTH,643881,128041130,28-Apr-15,"2,261.28 ",THE GREYSWOOD PRACTICE,SP0006936
WANDSWORTH COUNCIL,CS,ENVIRONMENT & COMMUNITY,Revenue,HEALTH,THIRD PARTY PYMT - HEALTH,643917,128041130,28-Apr-15,"9,251.74 ",WANDSWORTH MEDICAL CENTRE,SP0007088
WANDSWORTH COUNCIL,CS,ENVIRONMENT & COMMUNITY,Revenue,HEALTH,THIRD PARTY PYMT - HEALTH,643916,128041130,28-Apr-15,"1,591.57 ",BATTERSEA RISE GROUP PRACTICE H85049,SP0007572
WANDSWORTH COUNCIL,CS,ENVIRONMENT & COMMUNITY,Revenue,HEALTH,THIRD PARTY PYMT - HEALTH,643902,128041130,28-Apr-15,"1,129.20 ",DR K BEGG H85659,SP0007574
WANDSWORTH COUNCIL,CS,ENVIRONMENT & COMMUNITY,Revenue,HEALTH,THIRD PARTY PYMT - HEALTH,643903,128041130,28-Apr-15,"1,639.33 ",DR K BEGG H85659,SP0007574
WANDSWORTH COUNCIL,CS,ENVIRONMENT & COMMUNITY,Revenue,HEALTH,THIRD PARTY PYMT - HEALTH,643912,128041130,29-Apr-15,"1,277.78 ",SOUTHFIELDS GROUP PRACTICE H85007,SP0007583
WANDSWORTH COUNCIL,CS,ENVIRONMENT & COMMUNITY,Revenue,HEALTH,THIRD PARTY PYMT - HEALTH,641839,128041130,24-Apr-15,530.50 ,CANTERBURY PHARMACIES LTD,SP0007593
WANDSWORTH COUNCIL,CS,ENVIRONMENT & COMMUNITY,Revenue,HEALTH,THIRD PARTY PYMT - HEALTH,641840,128041130,24-Apr-15,"2,992.70 ",THE FALCON ROAD MEDICAL CENTRE H85002,SP0007953
WANDSWORTH COUNCIL,CS,ENVIRONMENT & COMMUNITY,Revenue,HEALTH,THIRD PARTY PYMT - HEALTH,644002,128041130,28-Apr-15,629.20 ,TOOTING SOUTH MEDICAL CENTRE,SP0007962
WANDSWORTH COUNCIL,CS,ENVIRONMENT & COMMUNITY,Revenue,HEALTH,THIRD PARTY PYMT - HEALTH,645447,128041130,29-Apr-15,"1,730.96 ",HERITAGE MEDICAL PRACTICE (H85077),SP0008282
WANDSWORTH COUNCIL,CS,ENVIRONMENT & COMMUNITY,Revenue,HEALTH,THIRD PARTY PYMT - HEALTH,641835,128041130,24-Apr-15,623.12 ,THE HAIDER PRACTICE H85075,SP0008283
WANDSWORTH COUNCIL,CS,ENVIRONMENT & COMMUNITY,Revenue,HEALTH,THIRD PARTY PYMT - HEALTH,645443,128041130,29-Apr-15,"3,676.58 ",TUDOR LODGE HEALTH CENTRE H85682,SP0008309
WANDSWORTH COUNCIL,CS,ENVIRONMENT & COMMUNITY,Revenue,HEALTH,THIRD PARTY PYMT - HEALTH,645440,128041130,29-Apr-15,874.00 ,WRICKLEMARSH LTD FVM91,SP0008378
WANDSWORTH COUNCIL,CS,ENVIRONMENT & COMMUNITY,Revenue,HEALTH,THIRD PARTY PYMT - HEALTH,645439,128041130,29-Apr-15,897.00 ,JOTOSHOURNE LTD FR323 T/A BARRONS CHEMIS,SP0008416
WANDSWORTH COUNCIL,CS,ENVIRONMENT & COMMUNITY,Revenue,HEALTH,THIRD PARTY PYMT - HEALTH,645436,128041130,29-Apr-15,"1,740.50 ",PEARL CHEMIST LTD FDV93 T/A LORDS PHARMA,SP0008419
WANDSWORTH COUNCIL,CS,ENVIRONMENT & COMMUNITY,Revenue,HEALTH,THIRD PARTY PYMT - HEALTH,641833,128041130,24-Apr-15,"8,580.43 ",GRAFTON MEDICAL PARTNERS Y02423,SP0008442
WANDSWORTH COUNCIL,CS,ENVIRONMENT & COMMUNITY,Revenue,HEALTH,THIRD PARTY PYMT - HEALTH,644001,128041130,28-Apr-15,"1,285.98 ",STREATHAM PARK SURGERY H85052,SP0008443
WANDSWORTH COUNCIL,CS,ENVIRONMENT & COMMUNITY,Revenue,HEALTH,THIRD PARTY PYMT - HEALTH,643910,128041130,28-Apr-15,"2,474.50 ",AMICHEM LIMITED FNQ61 T/A KRYSTAL PHARMA,SP0008457
WANDSWORTH COUNCIL,ASC,SOCIAL SERVICES,Revenue,HIRE,HIRE - TRANSPORT,628850,130020410,08-Apr-15,"1,160.00 ",A STAR TRANSPORT LTD,SP0000866
WANDSWORTH COUNCIL,ASC,SOCIAL SERVICES,Revenue,HIRE,HIRE - TRANSPORT,632814,130020410,14-Apr-15,"1,496.00 ",A STAR TRANSPORT LTD,SP0000866
WANDSWORTH COUNCIL,ASC,SOCIAL SERVICES,Revenue,HIRE,HIRE - TRANSPORT,635846,130220410,16-Apr-15,420.00 ,HEALTHCARE & TRANSPORT SERVICES (HATS),SP0000012
WANDSWORTH COUNCIL,ASC,SOCIAL SERVICES,Revenue,HIRE,HIRE - TRANSPORT,627877,130220410,02-Apr-15,630.00 ,HEALTHCARE & TRANSPORT SERVICES (HATS),SP0000012
WANDSWORTH COUNCIL,ASC,SOCIAL SERVICES,Revenue,HIRE,HIRE - TRANSPORT,635835,130220410,16-Apr-15,420.00 ,HEALTHCARE & TRANSPORT SERVICES (HATS),SP0000012
WANDSWORTH COUNCIL,ASC,SOCIAL SERVICES,Revenue,HIRE,HIRE - TRANSPORT,644161,130220410,28-Apr-15,630.00 ,HEALTHCARE & TRANSPORT SERVICES (HATS),SP0000012
WANDSWORTH COUNCIL,ASC,SOCIAL SERVICES,Revenue,HIRE,HIRE - TRANSPORT,635824,130220410,16-Apr-15,630.00 ,HEALTHCARE & TRANSPORT SERVICES (HATS),SP0000012
WANDSWORTH COUNCIL,ASC,SOCIAL SERVICES,Revenue,HIRE,HIRE - TRANSPORT,627863,130220410,02-Apr-15,630.80 ,BECKETT CORPORATION LTD T/A TINAS CARS,SP0000729
WANDSWORTH COUNCIL,ASC,SOCIAL SERVICES,Revenue,HIRE,HIRE - TRANSPORT,635861,130220410,16-Apr-15,"1,210.00 ",BECKETT CORPORATION LTD T/A TINAS CARS,SP0000729
WANDSWORTH COUNCIL,ASC,SOCIAL SERVICES,Revenue,HIRE,HIRE - TRANSPORT,635856,130220410,16-Apr-15,630.80 ,BECKETT CORPORATION LTD T/A TINAS CARS,SP0000729
WANDSWORTH COUNCIL,ASC,SOCIAL SERVICES,Revenue,HIRE,HIRE - TRANSPORT,635859,130220410,16-Apr-15,108.48 ,BECKETT CORPORATION LTD T/A TINAS CARS,SP0000729
WANDSWORTH COUNCIL,ASC,SOCIAL SERVICES,Revenue,HIRE,HIRE - TRANSPORT,627847,130220410,02-Apr-15,"1,240.00 ",A STAR TRANSPORT LTD,SP0000866
WANDSWORTH COUNCIL,ASC,SOCIAL SERVICES,Revenue,HIRE,HIRE - TRANSPORT,632813,130220410,14-Apr-15,"1,000.00 ",A STAR TRANSPORT LTD,SP0000866
WANDSWORTH COUNCIL,ASC,SOCIAL SERVICES,Revenue,HIRE,HIRE - TRANSPORT,628837,130220410,08-Apr-15,767.36 ,A STAR TRANSPORT LTD,SP0000866
WANDSWORTH COUNCIL,ASC,SOCIAL SERVICES,Revenue,HIRE,HIRE - TRANSPORT,628838,130220410,08-Apr-15,624.00 ,A STAR TRANSPORT LTD,SP0000866
WANDSWORTH COUNCIL,ASC,SOCIAL SERVICES,Revenue,HIRE,HIRE - TRANSPORT,645956,130220410,30-Apr-15,573.80 ,A STAR TRANSPORT LTD,SP0000866
WANDSWORTH COUNCIL,ASC,SOCIAL SERVICES,Revenue,HIRE,HIRE - TRANSPORT,645953,130220410,30-Apr-15,"1,033.20 ",A STAR TRANSPORT LTD,SP0000866
WANDSWORTH COUNCIL,ASC,SOCIAL SERVICES,Revenue,HIRE,HIRE - TRANSPORT,645952,130220410,30-Apr-15,"1,033.60 ",A STAR TRANSPORT LTD,SP0000866
WANDSWORTH COUNCIL,ASC,SOCIAL SERVICES,Revenue,HIRE,HIRE - TRANSPORT,645951,130220410,30-Apr-15,576.00 ,A STAR TRANSPORT LTD,SP0000866
WANDSWORTH COUNCIL,ASC,SOCIAL SERVICES,Revenue,HIRE,HIRE - TRANSPORT,628839,130220410,08-Apr-15,"1,116.00 ",A STAR TRANSPORT LTD,SP0000866
WANDSWORTH COUNCIL,ASC,SOCIAL SERVICES,Revenue,HIRE,HIRE - TRANSPORT,628842,130220410,08-Apr-15,616.24 ,A STAR TRANSPORT LTD,SP0000866
WANDSWORTH COUNCIL,ASC,SOCIAL SERVICES,Revenue,HIRE,HIRE - TRANSPORT,628844,130220410,08-Apr-15,777.00 ,A STAR TRANSPORT LTD,SP0000866
WANDSWORTH COUNCIL,ASC,SOCIAL SERVICES,Revenue,HIRE,HIRE - TRANSPORT,628846,130220410,08-Apr-15,608.00 ,A STAR TRANSPORT LTD,SP0000866
WANDSWORTH COUNCIL,ASC,SOCIAL SERVICES,Revenue,HIRE,HIRE - TRANSPORT,628848,130220410,08-Apr-15,864.00 ,A STAR TRANSPORT LTD,SP0000866
WANDSWORTH COUNCIL,ASC,SOCIAL SERVICES,Revenue,HIRE,HIRE - TRANSPORT,632801,130220410,14-Apr-15,942.00 ,A STAR TRANSPORT LTD,SP0000866
WANDSWORTH COUNCIL,ASC,SOCIAL SERVICES,Revenue,HIRE,HIRE - TRANSPORT,645950,130220410,30-Apr-15,752.00 ,A STAR TRANSPORT LTD,SP0000866
WANDSWORTH COUNCIL,ASC,SOCIAL SERVICES,Revenue,HIRE,HIRE - TRANSPORT,628836,130220410,08-Apr-15,"2,320.00 ",A STAR TRANSPORT LTD,SP0000866
WANDSWORTH COUNCIL,ASC,SOCIAL SERVICES,Revenue,HIRE,HIRE - TRANSPORT,632808,130220410,14-Apr-15,448.00 ,A STAR TRANSPORT LTD,SP0000866
WANDSWORTH COUNCIL,ASC,SOCIAL SERVICES,Revenue,HIRE,HIRE - TRANSPORT,632802,130220410,14-Apr-15,"1,053.60 ",A STAR TRANSPORT LTD,SP0000866
WANDSWORTH COUNCIL,ASC,SOCIAL SERVICES,Revenue,HIRE,HIRE - TRANSPORT,645957,130220410,30-Apr-15,566.28 ,A STAR TRANSPORT LTD,SP0000866
WANDSWORTH COUNCIL,ASC,SOCIAL SERVICES,Revenue,HIRE,HIRE - TRANSPORT,632803,130220410,14-Apr-15,"1,053.20 ",A STAR TRANSPORT LTD,SP0000866
WANDSWORTH COUNCIL,ASC,SOCIAL SERVICES,Revenue,HIRE,HIRE - TRANSPORT,632804,130220410,14-Apr-15,880.00 ,A STAR TRANSPORT LTD,SP0000866
WANDSWORTH COUNCIL,ASC,SOCIAL SERVICES,Revenue,HIRE,HIRE - TRANSPORT,632807,130220410,14-Apr-15,448.00 ,A STAR TRANSPORT LTD,SP0000866
WANDSWORTH COUNCIL,ASC,SOCIAL SERVICES,Revenue,HIRE,HIRE - TRANSPORT,645946,130220410,30-Apr-15,530.00 ,A STAR TRANSPORT LTD,SP0000866
WANDSWORTH COUNCIL,ASC,SOCIAL SERVICES,Revenue,HIRE,HIRE - TRANSPORT,645941,130220410,30-Apr-15,544.00 ,A STAR TRANSPORT LTD,SP0000866
WANDSWORTH COUNCIL,ASC,SOCIAL SERVICES,Revenue,HIRE,HIRE - TRANSPORT,645945,130220410,30-Apr-15,520.00 ,A STAR TRANSPORT LTD,SP0000866
WANDSWORTH COUNCIL,ASC,SOCIAL SERVICES,Revenue,HIRE,HIRE - TRANSPORT,645943,130220410,30-Apr-15,792.00 ,A STAR TRANSPORT LTD,SP0000866
WANDSWORTH COUNCIL,ASC,SOCIAL SERVICES,Revenue,HIRE,HIRE - TRANSPORT,632809,130220410,14-Apr-15,954.00 ,A STAR TRANSPORT LTD,SP0000866
WANDSWORTH COUNCIL,ASC,SOCIAL SERVICES,Revenue,HIRE,HIRE - TRANSPORT,632810,130220410,14-Apr-15,633.46 ,A STAR TRANSPORT LTD,SP0000866
WANDSWORTH COUNCIL,ASC,SOCIAL SERVICES,Revenue,HIRE,HIRE - TRANSPORT,632811,130220410,14-Apr-15,633.46 ,A STAR TRANSPORT LTD,SP0000866
WANDSWORTH COUNCIL,ASC,SOCIAL SERVICES,Revenue,HIRE,HIRE - TRANSPORT,632812,130220410,14-Apr-15,633.08 ,A STAR TRANSPORT LTD,SP0000866
WANDSWORTH COUNCIL,ASC,SOCIAL SERVICES,Revenue,HIRE,HIRE - TRANSPORT,628847,130220410,08-Apr-15,600.00 ,A STAR TRANSPORT LTD,SP0000866
WANDSWORTH COUNCIL,ASC,SOCIAL SERVICES,Revenue,HIRE,HIRE - TRANSPORT,645940,130220410,30-Apr-15,468.00 ,A STAR TRANSPORT LTD,SP0000866
WANDSWORTH COUNCIL,ASC,SOCIAL SERVICES,Revenue,HIRE,HIRE - TRANSPORT,628824,130220410,08-Apr-15,"1,000.00 ",A STAR TRANSPORT LTD,SP0000866
WANDSWORTH COUNCIL,ASC,SOCIAL SERVICES,Revenue,HIRE,HIRE - TRANSPORT,628835,130220410,08-Apr-15,550.00 ,A STAR TRANSPORT LTD,SP0000866
WANDSWORTH COUNCIL,ASC,SOCIAL SERVICES,Revenue,HIRE,HIRE - TRANSPORT,628855,130220410,08-Apr-15,546.36 ,A STAR TRANSPORT LTD,SP0000866
WANDSWORTH COUNCIL,ASC,SOCIAL SERVICES,Revenue,HIRE,HIRE - TRANSPORT,628816,130220410,08-Apr-15,"1,344.00 ",A STAR TRANSPORT LTD,SP0000866
WANDSWORTH COUNCIL,ASC,SOCIAL SERVICES,Revenue,HIRE,HIRE - TRANSPORT,628817,130220410,08-Apr-15,439.44 ,A STAR TRANSPORT LTD,SP0000866
WANDSWORTH COUNCIL,ASC,SOCIAL SERVICES,Revenue,HIRE,HIRE - TRANSPORT,628818,130220410,08-Apr-15,396.00 ,A STAR TRANSPORT LTD,SP0000866
WANDSWORTH COUNCIL,ASC,SOCIAL SERVICES,Revenue,HIRE,HIRE - TRANSPORT,628825,130220410,08-Apr-15,"1,280.00 ",A STAR TRANSPORT LTD,SP0000866
WANDSWORTH COUNCIL,ASC,SOCIAL SERVICES,Revenue,HIRE,HIRE - TRANSPORT,628827,130220410,08-Apr-15,"1,000.00 ",A STAR TRANSPORT LTD,SP0000866
WANDSWORTH COUNCIL,ASC,SOCIAL SERVICES,Revenue,HIRE,HIRE - TRANSPORT,628829,130220410,08-Apr-15,679.92 ,A STAR TRANSPORT LTD,SP0000866
WANDSWORTH COUNCIL,ASC,SOCIAL SERVICES,Revenue,HIRE,HIRE - TRANSPORT,628833,130220410,08-Apr-15,576.00 ,A STAR TRANSPORT LTD,SP0000866
WANDSWORTH COUNCIL,ASC,SOCIAL SERVICES,Revenue,HIRE,HIRE - TRANSPORT,628828,130220410,08-Apr-15,"1,000.00 ",A STAR TRANSPORT LTD,SP0000866
WANDSWORTH COUNCIL,ASC,SOCIAL SERVICES,Revenue,HIRE,HIRE - TRANSPORT,628830,130220410,08-Apr-15,656.00 ,A STAR TRANSPORT LTD,SP0000866
WANDSWORTH COUNCIL,ASC,SOCIAL SERVICES,Revenue,HIRE,HIRE - TRANSPORT,644169,130220410,28-Apr-15,738.02 ,WEST ONE CARS,SP0005818
WANDSWORTH COUNCIL,ASC,SOCIAL SERVICES,Revenue,HIRE,NEW TRANSPORT CONTRACT,635859,130220430,16-Apr-15,396.16 ,BECKETT CORPORATION LTD T/A TINAS CARS,SP0000729
WANDSWORTH COUNCIL,ASC,SOCIAL SERVICES,Revenue,HIRE,NEW TRANSPORT CONTRACT,645955,130220430,30-Apr-15,528.00 ,A STAR TRANSPORT LTD,SP0000866
WANDSWORTH COUNCIL,ASC,SOCIAL SERVICES,Revenue,HIRE,NEW TRANSPORT CONTRACT,628818,130220430,08-Apr-15,180.00 ,A STAR TRANSPORT LTD,SP0000866
WANDSWORTH COUNCIL,ASC,SOCIAL SERVICES,Revenue,SERVICES,TRAVEL BUDDY SCHEME,632823,130234970,14-Apr-15,60.00 ,ASIAN ELDERS SUPPORT SCHEME,SP0000190
WANDSWORTH COUNCIL,ASC,SOCIAL SERVICES,Revenue,SERVICES,TRAVEL BUDDY SCHEME,632824,130234970,14-Apr-15,60.00 ,ASIAN ELDERS SUPPORT SCHEME,SP0000190
WANDSWORTH COUNCIL,ASC,SOCIAL SERVICES,Revenue,HEALTH,EXT RES S28A 100% OLD LONGSTAY,644015,130241010,28-Apr-15,"6,062.54 ",VOYAGE CARE LTD,SP0000366
WANDSWORTH COUNCIL,ASC,SOCIAL SERVICES,Revenue,HEALTH,EXT RES S28A 100% OLD LONGSTAY,644016,130241010,28-Apr-15,"6,056.29 ",VOYAGE CARE LTD,SP0000366
WANDSWORTH COUNCIL,ASC,SOCIAL SERVICES,Revenue,HEALTH,EXT RES S28A 100% OLD LONGSTAY,644026,130241010,28-Apr-15,"8,876.75 ",VOYAGE CARE LTD,SP0000366
WANDSWORTH COUNCIL,ASC,SOCIAL SERVICES,Revenue,HEALTH,EXT RES S28A 100% OLD LONGSTAY,627567,130241010,02-Apr-15,"9,174.85 ",VOYAGE CARE LTD,SP0000366
WANDSWORTH COUNCIL,ASC,SOCIAL SERVICES,Revenue,HEALTH,EXT RES S28A 100% OLD LONGSTAY,627558,130241010,02-Apr-15,"6,266.83 ",VOYAGE CARE LTD,SP0000366
WANDSWORTH COUNCIL,ASC,SOCIAL SERVICES,Revenue,HEALTH,EXT RES S28A 100% OLD LONGSTAY,627559,130241010,02-Apr-15,"6,266.83 ",VOYAGE CARE LTD,SP0000366
WANDSWORTH COUNCIL,ASC,SOCIAL SERVICES,Revenue,HEALTH,EXTERNAL RESIDENTIAL CARE S28A,632434,130241080,14-Apr-15,"6,297.60 ",PROGRESS HOUSING LULWORTH,SP0000921
WANDSWORTH COUNCIL,ASC,SOCIAL SERVICES,Revenue,HEALTH,EXT RES RESPITE CARE S28A,627472,130241100,02-Apr-15,"1,480.00 ",THE BRANDON TRUST,SP0005337
WANDSWORTH COUNCIL,ASC,SOCIAL SERVICES,Revenue,HEALTH,EXT RES S28A OLD LONG STAY,627528,130241110,02-Apr-15,"4,709.79 ",METROPOLITAN HOUSING TRUST,SP0000626
WANDSWORTH COUNCIL,ASC,SOCIAL SERVICES,Revenue,HEALTH,EXT RES S28A OLD LONG STAY,645902,130241110,30-Apr-15,"4,709.79 ",METROPOLITAN HOUSING TRUST,SP0000626
WANDSWORTH COUNCIL,ASC,SOCIAL SERVICES,Revenue,HEALTH,EXT RES S28A OLD LONG STAY,627536,130241110,02-Apr-15,"4,709.79 ",METROPOLITAN HOUSING TRUST,SP0000626
WANDSWORTH COUNCIL,ASC,SOCIAL SERVICES,Revenue,HEALTH,EXT RES S28A OLD LONG STAY,627470,130241110,02-Apr-15,"2,690.16 ",ASHTON CARE,SP0000695
WANDSWORTH COUNCIL,ASC,SOCIAL SERVICES,Revenue,HEALTH,EXT RES S28A OLD LONG STAY,627471,130241110,02-Apr-15,"2,690.16 ",ASHTON CARE,SP0000695
WANDSWORTH COUNCIL,ASC,SOCIAL SERVICES,Revenue,OTHER AGENCIES,ENABLERS/EDUCATION FEES,644163,130243280,28-Apr-15,"21,455.66 ",FAIRFIELD OPPORTUNITY FARM DILTON LTD CA,SP0001758
WANDSWORTH COUNCIL,ASC,SOCIAL SERVICES,Revenue,OTHER AGENCIES,EXTERNAL LODGINGS,636718,130243320,17-Apr-15,"1,085.00 ",M RAZA T/A CLOCK HOUSE HOTEL,SP0001280
WANDSWORTH COUNCIL,ASC,SOCIAL SERVICES,Revenue,OTHER AGENCIES,EXTERNAL OUTREACH,635852,130243330,16-Apr-15,806.84 ,RAINBOW MEDICAL SERVICES,SP0000037
WANDSWORTH COUNCIL,ASC,SOCIAL SERVICES,Revenue,OTHER AGENCIES,EXTERNAL OUTREACH,639274,130243330,21-Apr-15,517.72 ,RAINBOW MEDICAL SERVICES,SP0000037
WANDSWORTH COUNCIL,ASC,SOCIAL SERVICES,Revenue,OTHER AGENCIES,EXTERNAL OUTREACH,635850,130243330,16-Apr-15,456.32 ,RAINBOW MEDICAL SERVICES,SP0000037
WANDSWORTH COUNCIL,ASC,SOCIAL SERVICES,Revenue,OTHER AGENCIES,EXTERNAL OUTREACH,639273,130243330,21-Apr-15,722.00 ,PROTOCOL EDUCATION  LTD,SP0000171
WANDSWORTH COUNCIL,ASC,SOCIAL SERVICES,Revenue,OTHER AGENCIES,EXTERNAL OUTREACH,632834,130243330,14-Apr-15,684.00 ,PROTOCOL EDUCATION  LTD,SP0000171
WANDSWORTH COUNCIL,ASC,SOCIAL SERVICES,Revenue,OTHER AGENCIES,EXTERNAL OUTREACH,632823,130243330,14-Apr-15,151.80 ,ASIAN ELDERS SUPPORT SCHEME,SP0000190
WANDSWORTH COUNCIL,ASC,SOCIAL SERVICES,Revenue,OTHER AGENCIES,EXTERNAL OUTREACH,635818,130243330,16-Apr-15,"1,540.00 ",C M CARE LTD,SP0000455
WANDSWORTH COUNCIL,ASC,SOCIAL SERVICES,Revenue,OTHER AGENCIES,EXTERNAL OUTREACH,635817,130243330,16-Apr-15,576.00 ,C M CARE LTD,SP0000455
WANDSWORTH COUNCIL,ASC,SOCIAL SERVICES,Revenue,OTHER AGENCIES,EXTERNAL OUTREACH,635814,130243330,16-Apr-15,"2,185.32 ",C M CARE LTD,SP0000455
WANDSWORTH COUNCIL,ASC,SOCIAL SERVICES,Revenue,OTHER AGENCIES,EXTERNAL OUTREACH,642059,130243330,24-Apr-15,936.00 ,C M CARE LTD,SP0000455
WANDSWORTH COUNCIL,ASC,SOCIAL SERVICES,Revenue,OTHER AGENCIES,EXTERNAL OUTREACH,642728,130243330,24-Apr-15,643.60 ,C M CARE LTD,SP0000455
WANDSWORTH COUNCIL,ASC,SOCIAL SERVICES,Revenue,OTHER AGENCIES,EXTERNAL OUTREACH,632754,130243330,14-Apr-15,638.08 ,GENERATE OPPORTUNITIES LTD,SP0000503
WANDSWORTH COUNCIL,ASC,SOCIAL SERVICES,Revenue,OTHER AGENCIES,EXTERNAL OUTREACH,632756,130243330,14-Apr-15,735.52 ,GENERATE OPPORTUNITIES LTD,SP0000503
WANDSWORTH COUNCIL,ASC,SOCIAL SERVICES,Revenue,OTHER AGENCIES,EXTERNAL OUTREACH,632760,130243330,14-Apr-15,797.60 ,GENERATE OPPORTUNITIES LTD,SP0000503
WANDSWORTH COUNCIL,ASC,SOCIAL SERVICES,Revenue,OTHER AGENCIES,EXTERNAL OUTREACH,627640,130243330,02-Apr-15,"1,794.60 ",GENERATE OPPORTUNITIES LTD,SP0000503
WANDSWORTH COUNCIL,ASC,SOCIAL SERVICES,Revenue,OTHER AGENCIES,EXTERNAL OUTREACH,632770,130243330,14-Apr-15,322.24 ,GENERATE OPPORTUNITIES LTD,SP0000503
WANDSWORTH COUNCIL,ASC,SOCIAL SERVICES,Revenue,OTHER AGENCIES,EXTERNAL OUTREACH,632771,130243330,14-Apr-15,"2,485.52 ",GENERATE OPPORTUNITIES LTD,SP0000503
WANDSWORTH COUNCIL,ASC,SOCIAL SERVICES,Revenue,OTHER AGENCIES,EXTERNAL OUTREACH,632772,130243330,14-Apr-15,717.84 ,GENERATE OPPORTUNITIES LTD,SP0000503
WANDSWORTH COUNCIL,ASC,SOCIAL SERVICES,Revenue,OTHER AGENCIES,EXTERNAL OUTREACH,632671,130243330,14-Apr-15,797.60 ,GENERATE OPPORTUNITIES LTD,SP0000503
WANDSWORTH COUNCIL,ASC,SOCIAL SERVICES,Revenue,OTHER AGENCIES,EXTERNAL OUTREACH,632663,130243330,14-Apr-15,239.28 ,GENERATE OPPORTUNITIES LTD,SP0000503
WANDSWORTH COUNCIL,ASC,SOCIAL SERVICES,Revenue,OTHER AGENCIES,EXTERNAL OUTREACH,632670,130243330,14-Apr-15,638.08 ,GENERATE OPPORTUNITIES LTD,SP0000503
WANDSWORTH COUNCIL,ASC,SOCIAL SERVICES,Revenue,OTHER AGENCIES,EXTERNAL OUTREACH,632675,130243330,14-Apr-15,398.80 ,GENERATE OPPORTUNITIES LTD,SP0000503
WANDSWORTH COUNCIL,ASC,SOCIAL SERVICES,Revenue,OTHER AGENCIES,EXTERNAL OUTREACH,632683,130243330,14-Apr-15,"2,233.28 ",GENERATE OPPORTUNITIES LTD,SP0000503
WANDSWORTH COUNCIL,ASC,SOCIAL SERVICES,Revenue,OTHER AGENCIES,EXTERNAL OUTREACH,632664,130243330,14-Apr-15,797.60 ,GENERATE OPPORTUNITIES LTD,SP0000503
WANDSWORTH COUNCIL,ASC,SOCIAL SERVICES,Revenue,OTHER AGENCIES,EXTERNAL OUTREACH,644146,130243330,28-Apr-15,720.00 ,ACT TOO LTD,SP0000855
WANDSWORTH COUNCIL,ASC,SOCIAL SERVICES,Revenue,OTHER AGENCIES,EXTERNAL OUTREACH,644148,130243330,28-Apr-15,600.00 ,ACT TOO LTD,SP0000855
WANDSWORTH COUNCIL,ASC,SOCIAL SERVICES,Revenue,OTHER AGENCIES,EXTERNAL OUTREACH,627887,130243330,02-Apr-15,"1,050.00 ",ROYAL ASSOCIATION FOR DEAF PEOPLE,SP0001251
WANDSWORTH COUNCIL,ASC,SOCIAL SERVICES,Revenue,OTHER AGENCIES,EXTERNAL OUTREACH,628283,130243330,07-Apr-15,"1,050.00 ",ROYAL ASSOCIATION FOR DEAF PEOPLE,SP0001251
WANDSWORTH COUNCIL,ASC,SOCIAL SERVICES,Revenue,OTHER AGENCIES,EXTERNAL OUTREACH,628274,130243330,07-Apr-15,600.00 ,ROYAL ASSOCIATION FOR DEAF PEOPLE,SP0001251
WANDSWORTH COUNCIL,ASC,SOCIAL SERVICES,Revenue,OTHER AGENCIES,EXTERNAL OUTREACH,628281,130243330,07-Apr-15,"1,200.00 ",ROYAL ASSOCIATION FOR DEAF PEOPLE,SP0001251
WANDSWORTH COUNCIL,ASC,SOCIAL SERVICES,Revenue,OTHER AGENCIES,EXTERNAL OUTREACH,628284,130243330,07-Apr-15,"1,800.00 ",ROYAL ASSOCIATION FOR DEAF PEOPLE,SP0001251
WANDSWORTH COUNCIL,ASC,SOCIAL SERVICES,Revenue,OTHER AGENCIES,EXTERNAL OUTREACH,628282,130243330,07-Apr-15,"1,200.00 ",ROYAL ASSOCIATION FOR DEAF PEOPLE,SP0001251
WANDSWORTH COUNCIL,ASC,SOCIAL SERVICES,Revenue,OTHER AGENCIES,EXTERNAL OUTREACH,627828,130243330,02-Apr-15,189.48 ,THE BRANDON TRUST,SP0005337
WANDSWORTH COUNCIL,ASC,SOCIAL SERVICES,Revenue,OTHER AGENCIES,EXTERNAL OUTREACH,627785,130243330,02-Apr-15,631.60 ,THE BRANDON TRUST,SP0005337
WANDSWORTH COUNCIL,ASC,SOCIAL SERVICES,Revenue,OTHER AGENCIES,EXTERNAL OUTREACH,627747,130243330,02-Apr-15,757.92 ,THE BRANDON TRUST,SP0005337
WANDSWORTH COUNCIL,ASC,SOCIAL SERVICES,Revenue,OTHER AGENCIES,EXTERNAL OUTREACH,627732,130243330,02-Apr-15,331.20 ,THE BRANDON TRUST,SP0005337
WANDSWORTH COUNCIL,ASC,SOCIAL SERVICES,Revenue,OTHER AGENCIES,EXTERNAL OUTREACH,627798,130243330,02-Apr-15,505.28 ,THE BRANDON TRUST,SP0005337
WANDSWORTH COUNCIL,ASC,SOCIAL SERVICES,Revenue,OTHER AGENCIES,EXTERNAL OUTREACH,627799,130243330,02-Apr-15,189.48 ,THE BRANDON TRUST,SP0005337
WANDSWORTH COUNCIL,ASC,SOCIAL SERVICES,Revenue,OTHER AGENCIES,EXTERNAL OUTREACH,627806,130243330,02-Apr-15,947.40 ,THE BRANDON TRUST,SP0005337
WANDSWORTH COUNCIL,ASC,SOCIAL SERVICES,Revenue,OTHER AGENCIES,EXTERNAL OUTREACH,627842,130243330,02-Apr-15,694.76 ,THE BRANDON TRUST,SP0005337
WANDSWORTH COUNCIL,ASC,SOCIAL SERVICES,Revenue,OTHER AGENCIES,EXTERNAL OUTREACH,627808,130243330,02-Apr-15,"1,170.80 ",THE BRANDON TRUST,SP0005337
WANDSWORTH COUNCIL,ASC,SOCIAL SERVICES,Revenue,OTHER AGENCIES,EXTERNAL OUTREACH,627797,130243330,02-Apr-15,568.44 ,THE BRANDON TRUST,SP0005337
WANDSWORTH COUNCIL,ASC,SOCIAL SERVICES,Revenue,OTHER AGENCIES,EXTERNAL OUTREACH,635833,130243330,16-Apr-15,"3,300.00 ",RELIABLE PERSONNEL LTD,SP0005657
WANDSWORTH COUNCIL,ASC,ENVIRONMENT & COMMUNITY,Revenue,OTHER AGENCIES,APS SHARED LIVES SCHEME,640939,130243820,23-Apr-15,"38,875.58 ",SOUTHSIDE PARTNERSHIP,SP0000692
WANDSWORTH COUNCIL,ASC,ENVIRONMENT & COMMUNITY,Revenue,OTHER AGENCIES,APS SHARED LIVES SCHEME,642041,130243820,24-Apr-15,"15,619.00 ",SOUTHSIDE PARTNERSHIP,SP0000692
WANDSWORTH COUNCIL,ASC,ENVIRONMENT & COMMUNITY,Revenue,OTHER AGENCIES,APS SHARED LIVES SCHEME,638465,130243820,20-Apr-15,"66,088.05 ",SOUTHSIDE PARTNERSHIP,SP0000692
WANDSWORTH COUNCIL,ASC,ENVIRONMENT & COMMUNITY,Revenue,OTHER AGENCIES,APS SHARED LIVES SCHEME,638461,130243820,24-Apr-15,"4,584.87 ",SOUTHSIDE PARTNERSHIP,SP0000692
WANDSWORTH COUNCIL,ASC,ENVIRONMENT & COMMUNITY,Revenue,OTHER AGENCIES,APS SHARED LIVES SCHEME,640938,130243820,23-Apr-15,"55,963.60 ",SOUTHSIDE PARTNERSHIP,SP0000692
WANDSWORTH COUNCIL,ASC,SOCIAL SERVICES,Revenue,PRIVATE,EXTERNAL DAYCARE,642973,130245290,24-Apr-15,"2,094.62 ",CMG HOMES LTD,SP0000075
WANDSWORTH COUNCIL,ASC,SOCIAL SERVICES,Revenue,PRIVATE,EXTERNAL DAYCARE,627638,130245290,02-Apr-15,"1,213.76 ",RESIDENTIAL CARE SERVICES T/A FRANKLYN L,SP0000147
WANDSWORTH COUNCIL,ASC,SOCIAL SERVICES,Revenue,PRIVATE,EXTERNAL DAYCARE,628267,130245290,07-Apr-15,878.48 ,ORCHARD VALE TRUST,SP0000214
WANDSWORTH COUNCIL,ASC,SOCIAL SERVICES,Revenue,PRIVATE,EXTERNAL DAYCARE,628255,130245290,07-Apr-15,708.52 ,ST MARYS RESIDENTIAL HOME,SP0000215
WANDSWORTH COUNCIL,ASC,SOCIAL SERVICES,Revenue,PRIVATE,EXTERNAL DAYCARE,628261,130245290,07-Apr-15,534.28 ,ST MARYS RESIDENTIAL HOME,SP0000215
WANDSWORTH COUNCIL,ASC,SOCIAL SERVICES,Revenue,PRIVATE,EXTERNAL DAYCARE,628254,130245290,07-Apr-15,"1,250.00 ",ST MARYS RESIDENTIAL HOME,SP0000215
WANDSWORTH COUNCIL,ASC,SOCIAL SERVICES,Revenue,PRIVATE,EXTERNAL DAYCARE,628253,130245290,07-Apr-15,"1,736.84 ",ST MARYS RESIDENTIAL HOME,SP0000215
WANDSWORTH COUNCIL,ASC,SOCIAL SERVICES,Revenue,PRIVATE,EXTERNAL DAYCARE,628259,130245290,07-Apr-15,956.80 ,ST MARYS RESIDENTIAL HOME,SP0000215
WANDSWORTH COUNCIL,ASC,SOCIAL SERVICES,Revenue,PRIVATE,EXTERNAL DAYCARE,632848,130245290,14-Apr-15,518.70 ,PARCHMENT TRUST LTD,SP0000255
WANDSWORTH COUNCIL,ASC,SOCIAL SERVICES,Revenue,PRIVATE,EXTERNAL DAYCARE,643046,130245290,24-Apr-15,806.04 ,CRAEGMOOR FACILITIES CO LTD,SP0000306
WANDSWORTH COUNCIL,ASC,SOCIAL SERVICES,Revenue,PRIVATE,EXTERNAL DAYCARE,627654,130245290,02-Apr-15,588.40 ,SHARE COMMUNITY,SP0000329
WANDSWORTH COUNCIL,ASC,SOCIAL SERVICES,Revenue,PRIVATE,EXTERNAL DAYCARE,627673,130245290,02-Apr-15,706.08 ,SHARE COMMUNITY,SP0000329
WANDSWORTH COUNCIL,ASC,SOCIAL SERVICES,Revenue,PRIVATE,EXTERNAL DAYCARE,627668,130245290,02-Apr-15,"1,176.80 ",SHARE COMMUNITY,SP0000329
WANDSWORTH COUNCIL,ASC,SOCIAL SERVICES,Revenue,PRIVATE,EXTERNAL DAYCARE,627667,130245290,02-Apr-15,706.08 ,SHARE COMMUNITY,SP0000329
WANDSWORTH COUNCIL,ASC,SOCIAL SERVICES,Revenue,PRIVATE,EXTERNAL DAYCARE,627663,130245290,02-Apr-15,706.08 ,SHARE COMMUNITY,SP0000329
WANDSWORTH COUNCIL,ASC,SOCIAL SERVICES,Revenue,PRIVATE,EXTERNAL DAYCARE,627662,130245290,02-Apr-15,706.08 ,SHARE COMMUNITY,SP0000329
WANDSWORTH COUNCIL,ASC,SOCIAL SERVICES,Revenue,PRIVATE,EXTERNAL DAYCARE,627661,130245290,02-Apr-15,588.40 ,SHARE COMMUNITY,SP0000329
WANDSWORTH COUNCIL,ASC,SOCIAL SERVICES,Revenue,PRIVATE,EXTERNAL DAYCARE,627659,130245290,02-Apr-15,706.08 ,SHARE COMMUNITY,SP0000329
WANDSWORTH COUNCIL,ASC,SOCIAL SERVICES,Revenue,PRIVATE,EXTERNAL DAYCARE,627674,130245290,02-Apr-15,706.08 ,SHARE COMMUNITY,SP0000329
WANDSWORTH COUNCIL,ASC,SOCIAL SERVICES,Revenue,PRIVATE,EXTERNAL DAYCARE,627655,130245290,02-Apr-15,706.08 ,SHARE COMMUNITY,SP0000329
WANDSWORTH COUNCIL,ASC,SOCIAL SERVICES,Revenue,PRIVATE,EXTERNAL DAYCARE,627678,130245290,02-Apr-15,706.08 ,SHARE COMMUNITY,SP0000329
WANDSWORTH COUNCIL,ASC,SOCIAL SERVICES,Revenue,PRIVATE,EXTERNAL DAYCARE,627653,130245290,02-Apr-15,706.08 ,SHARE COMMUNITY,SP0000329
WANDSWORTH COUNCIL,ASC,SOCIAL SERVICES,Revenue,PRIVATE,EXTERNAL DAYCARE,627652,130245290,02-Apr-15,"1,176.80 ",SHARE COMMUNITY,SP0000329
WANDSWORTH COUNCIL,ASC,SOCIAL SERVICES,Revenue,PRIVATE,EXTERNAL DAYCARE,627651,130245290,02-Apr-15,941.44 ,SHARE COMMUNITY,SP0000329
WANDSWORTH COUNCIL,ASC,SOCIAL SERVICES,Revenue,PRIVATE,EXTERNAL DAYCARE,627650,130245290,02-Apr-15,941.44 ,SHARE COMMUNITY,SP0000329
WANDSWORTH COUNCIL,ASC,SOCIAL SERVICES,Revenue,PRIVATE,EXTERNAL DAYCARE,627648,130245290,02-Apr-15,706.08 ,SHARE COMMUNITY,SP0000329
WANDSWORTH COUNCIL,ASC,SOCIAL SERVICES,Revenue,PRIVATE,EXTERNAL DAYCARE,627645,130245290,02-Apr-15,706.08 ,SHARE COMMUNITY,SP0000329
WANDSWORTH COUNCIL,ASC,SOCIAL SERVICES,Revenue,PRIVATE,EXTERNAL DAYCARE,627644,130245290,02-Apr-15,"1,176.80 ",SHARE COMMUNITY,SP0000329
WANDSWORTH COUNCIL,ASC,SOCIAL SERVICES,Revenue,PRIVATE,EXTERNAL DAYCARE,627642,130245290,02-Apr-15,706.08 ,SHARE COMMUNITY,SP0000329
WANDSWORTH COUNCIL,ASC,SOCIAL SERVICES,Revenue,PRIVATE,EXTERNAL DAYCARE,627656,130245290,02-Apr-15,941.44 ,SHARE COMMUNITY,SP0000329
WANDSWORTH COUNCIL,ASC,SOCIAL SERVICES,Revenue,PRIVATE,EXTERNAL DAYCARE,627696,130245290,02-Apr-15,706.08 ,SHARE COMMUNITY,SP0000329
WANDSWORTH COUNCIL,ASC,SOCIAL SERVICES,Revenue,PRIVATE,EXTERNAL DAYCARE,627694,130245290,02-Apr-15,706.08 ,SHARE COMMUNITY,SP0000329
WANDSWORTH COUNCIL,ASC,SOCIAL SERVICES,Revenue,PRIVATE,EXTERNAL DAYCARE,627690,130245290,02-Apr-15,706.08 ,SHARE COMMUNITY,SP0000329
WANDSWORTH COUNCIL,ASC,SOCIAL SERVICES,Revenue,PRIVATE,EXTERNAL DAYCARE,627685,130245290,02-Apr-15,706.08 ,SHARE COMMUNITY,SP0000329
WANDSWORTH COUNCIL,ASC,SOCIAL SERVICES,Revenue,PRIVATE,EXTERNAL DAYCARE,627682,130245290,02-Apr-15,706.08 ,SHARE COMMUNITY,SP0000329
WANDSWORTH COUNCIL,ASC,SOCIAL SERVICES,Revenue,PRIVATE,EXTERNAL DAYCARE,627681,130245290,02-Apr-15,941.44 ,SHARE COMMUNITY,SP0000329
WANDSWORTH COUNCIL,ASC,SOCIAL SERVICES,Revenue,PRIVATE,EXTERNAL DAYCARE,627680,130245290,02-Apr-15,706.08 ,SHARE COMMUNITY,SP0000329
WANDSWORTH COUNCIL,ASC,SOCIAL SERVICES,Revenue,PRIVATE,EXTERNAL DAYCARE,635813,130245290,16-Apr-15,"1,070.96 ",DOLPHIN HOMES LTD,SP0000331
WANDSWORTH COUNCIL,ASC,SOCIAL SERVICES,Revenue,PRIVATE,EXTERNAL DAYCARE,632774,130245290,14-Apr-15,"2,055.64 ",NORWOOD SCHOOLS LTD,SP0000332
WANDSWORTH COUNCIL,ASC,SOCIAL SERVICES,Revenue,PRIVATE,EXTERNAL DAYCARE,645921,130245290,30-Apr-15,"2,055.64 ",NORWOOD SCHOOLS LTD,SP0000332
WANDSWORTH COUNCIL,ASC,SOCIAL SERVICES,Revenue,PRIVATE,EXTERNAL DAYCARE,632773,130245290,14-Apr-15,"2,000.16 ",NORWOOD SCHOOLS LTD,SP0000332
WANDSWORTH COUNCIL,ASC,SOCIAL SERVICES,Revenue,PRIVATE,EXTERNAL DAYCARE,645920,130245290,30-Apr-15,"2,000.16 ",NORWOOD SCHOOLS LTD,SP0000332
WANDSWORTH COUNCIL,ASC,SOCIAL SERVICES,Revenue,PRIVATE,EXTERNAL DAYCARE,628263,130245290,07-Apr-15,980.00 ,THE MANOR,SP0000340
WANDSWORTH COUNCIL,ASC,SOCIAL SERVICES,Revenue,PRIVATE,EXTERNAL DAYCARE,627699,130245290,02-Apr-15,"1,654.08 ",VOYAGE CARE LTD,SP0000366
WANDSWORTH COUNCIL,ASC,SOCIAL SERVICES,Revenue,PRIVATE,EXTERNAL DAYCARE,627698,130245290,02-Apr-15,578.08 ,VOYAGE CARE LTD,SP0000366
WANDSWORTH COUNCIL,ASC,SOCIAL SERVICES,Revenue,PRIVATE,EXTERNAL DAYCARE,627566,130245290,02-Apr-15,422.82 ,VOYAGE CARE LTD,SP0000366
WANDSWORTH COUNCIL,ASC,SOCIAL SERVICES,Revenue,PRIVATE,EXTERNAL DAYCARE,644303,130245290,28-Apr-15,23.49 ,VOYAGE CARE LTD,SP0000366
WANDSWORTH COUNCIL,ASC,SOCIAL SERVICES,Revenue,PRIVATE,EXTERNAL DAYCARE,635808,130245290,16-Apr-15,"1,057.00 ",ST DAVIDS CARE IN THE COMMUNITY,SP0000379
WANDSWORTH COUNCIL,ASC,SOCIAL SERVICES,Revenue,PRIVATE,EXTERNAL DAYCARE,635807,130245290,16-Apr-15,"1,057.00 ",ST DAVIDS CARE IN THE COMMUNITY,SP0000379
WANDSWORTH COUNCIL,ASC,SOCIAL SERVICES,Revenue,PRIVATE,EXTERNAL DAYCARE,635806,130245290,16-Apr-15,"1,057.00 ",ST DAVIDS CARE IN THE COMMUNITY,SP0000379
WANDSWORTH COUNCIL,ASC,SOCIAL SERVICES,Revenue,PRIVATE,EXTERNAL DAYCARE,636713,130245290,17-Apr-15,854.20 ,CHOICES,SP0000486
WANDSWORTH COUNCIL,ASC,SOCIAL SERVICES,Revenue,PRIVATE,EXTERNAL DAYCARE,632658,130245290,14-Apr-15,640.00 ,GENERATE OPPORTUNITIES LTD,SP0000503
WANDSWORTH COUNCIL,ASC,SOCIAL SERVICES,Revenue,PRIVATE,EXTERNAL DAYCARE,632656,130245290,14-Apr-15,576.00 ,GENERATE OPPORTUNITIES LTD,SP0000503
WANDSWORTH COUNCIL,ASC,SOCIAL SERVICES,Revenue,PRIVATE,EXTERNAL DAYCARE,632664,130245290,14-Apr-15,320.00 ,GENERATE OPPORTUNITIES LTD,SP0000503
WANDSWORTH COUNCIL,ASC,SOCIAL SERVICES,Revenue,PRIVATE,EXTERNAL DAYCARE,632663,130245290,14-Apr-15,560.00 ,GENERATE OPPORTUNITIES LTD,SP0000503
WANDSWORTH COUNCIL,ASC,SOCIAL SERVICES,Revenue,PRIVATE,EXTERNAL DAYCARE,627640,130245290,02-Apr-15,240.00 ,GENERATE OPPORTUNITIES LTD,SP0000503
WANDSWORTH COUNCIL,ASC,SOCIAL SERVICES,Revenue,PRIVATE,EXTERNAL DAYCARE,632771,130245290,14-Apr-15,-10.52 ,GENERATE OPPORTUNITIES LTD,SP0000503
WANDSWORTH COUNCIL,ASC,SOCIAL SERVICES,Revenue,PRIVATE,EXTERNAL DAYCARE,632757,130245290,14-Apr-15,"1,100.00 ",GENERATE OPPORTUNITIES LTD,SP0000503
WANDSWORTH COUNCIL,ASC,SOCIAL SERVICES,Revenue,PRIVATE,EXTERNAL DAYCARE,632770,130245290,14-Apr-15,280.00 ,GENERATE OPPORTUNITIES LTD,SP0000503
WANDSWORTH COUNCIL,ASC,SOCIAL SERVICES,Revenue,PRIVATE,EXTERNAL DAYCARE,632753,130245290,14-Apr-15,576.00 ,GENERATE OPPORTUNITIES LTD,SP0000503
WANDSWORTH COUNCIL,ASC,SOCIAL SERVICES,Revenue,PRIVATE,EXTERNAL DAYCARE,632752,130245290,14-Apr-15,560.00 ,GENERATE OPPORTUNITIES LTD,SP0000503
WANDSWORTH COUNCIL,ASC,SOCIAL SERVICES,Revenue,PRIVATE,EXTERNAL DAYCARE,632743,130245290,14-Apr-15,576.00 ,GENERATE OPPORTUNITIES LTD,SP0000503
WANDSWORTH COUNCIL,ASC,SOCIAL SERVICES,Revenue,PRIVATE,EXTERNAL DAYCARE,632668,130245290,14-Apr-15,800.00 ,GENERATE OPPORTUNITIES LTD,SP0000503
WANDSWORTH COUNCIL,ASC,SOCIAL SERVICES,Revenue,PRIVATE,EXTERNAL DAYCARE,632675,130245290,14-Apr-15,177.20 ,GENERATE OPPORTUNITIES LTD,SP0000503
WANDSWORTH COUNCIL,ASC,SOCIAL SERVICES,Revenue,PRIVATE,EXTERNAL DAYCARE,632666,130245290,14-Apr-15,576.00 ,GENERATE OPPORTUNITIES LTD,SP0000503
WANDSWORTH COUNCIL,ASC,SOCIAL SERVICES,Revenue,PRIVATE,EXTERNAL DAYCARE,628251,130245290,07-Apr-15,"1,371.17 ",THE REGARD PARTNERSHIP,SP0000588
WANDSWORTH COUNCIL,ASC,SOCIAL SERVICES,Revenue,PRIVATE,EXTERNAL DAYCARE,628250,130245290,07-Apr-15,"1,956.01 ",THE REGARD PARTNERSHIP,SP0000588
WANDSWORTH COUNCIL,ASC,SOCIAL SERVICES,Revenue,PRIVATE,EXTERNAL DAYCARE,635800,130245290,16-Apr-15,"1,068.50 ",DORSET SCOPE,SP0000591
WANDSWORTH COUNCIL,ASC,SOCIAL SERVICES,Revenue,PRIVATE,EXTERNAL DAYCARE,627629,130245290,02-Apr-15,572.00 ,THRIVE,SP0000601
WANDSWORTH COUNCIL,ASC,SOCIAL SERVICES,Revenue,PRIVATE,EXTERNAL DAYCARE,635810,130245290,16-Apr-15,602.56 ,HIGH HURLANDS HOMES,SP0000668
WANDSWORTH COUNCIL,ASC,SOCIAL SERVICES,Revenue,PRIVATE,EXTERNAL DAYCARE,636714,130245290,17-Apr-15,632.96 ,CREST COOPERATIVE LTD,SP0000683
WANDSWORTH COUNCIL,ASC,SOCIAL SERVICES,Revenue,PRIVATE,EXTERNAL DAYCARE,635798,130245290,16-Apr-15,"3,965.00 ",WORCESTERSHIRE COUNTY COUNCIL,SP0000700
WANDSWORTH COUNCIL,ASC,SOCIAL SERVICES,Revenue,PRIVATE,EXTERNAL DAYCARE,644138,130245290,28-Apr-15,540.00 ,PROSPECTS,SP0000800
WANDSWORTH COUNCIL,ASC,SOCIAL SERVICES,Revenue,PRIVATE,EXTERNAL DAYCARE,628266,130245290,07-Apr-15,515.32 ,MENCAP OPEN DOOR,SP0000832
WANDSWORTH COUNCIL,ASC,SOCIAL SERVICES,Revenue,PRIVATE,EXTERNAL DAYCARE,628276,130245290,07-Apr-15,504.80 ,MENCAP OPEN DOOR,SP0000832
WANDSWORTH COUNCIL,ASC,SOCIAL SERVICES,Revenue,PRIVATE,EXTERNAL DAYCARE,627622,130245290,02-Apr-15,"1,586.84 ",STALLCOMBE HOUSE,SP0000843
WANDSWORTH COUNCIL,ASC,SOCIAL SERVICES,Revenue,PRIVATE,EXTERNAL DAYCARE,635086,130245290,15-Apr-15,814.03 ,SCOPE,SP0000852
WANDSWORTH COUNCIL,ASC,SOCIAL SERVICES,Revenue,PRIVATE,EXTERNAL DAYCARE,635088,130245290,15-Apr-15,833.52 ,SCOPE,SP0000852
WANDSWORTH COUNCIL,ASC,SOCIAL SERVICES,Revenue,PRIVATE,EXTERNAL DAYCARE,642994,130245290,24-Apr-15,738.72 ,ACT TOO LTD,SP0000855
WANDSWORTH COUNCIL,ASC,SOCIAL SERVICES,Revenue,PRIVATE,EXTERNAL DAYCARE,642993,130245290,24-Apr-15,923.40 ,ACT TOO LTD,SP0000855
WANDSWORTH COUNCIL,ASC,SOCIAL SERVICES,Revenue,PRIVATE,EXTERNAL DAYCARE,642992,130245290,24-Apr-15,738.72 ,ACT TOO LTD,SP0000855
WANDSWORTH COUNCIL,ASC,SOCIAL SERVICES,Revenue,PRIVATE,EXTERNAL DAYCARE,643115,130245290,24-Apr-15,554.04 ,ACT TOO LTD,SP0000855
WANDSWORTH COUNCIL,ASC,SOCIAL SERVICES,Revenue,PRIVATE,EXTERNAL DAYCARE,639259,130245290,21-Apr-15,554.04 ,ACT TOO LTD,SP0000855
WANDSWORTH COUNCIL,ASC,SOCIAL SERVICES,Revenue,PRIVATE,EXTERNAL DAYCARE,642991,130245290,24-Apr-15,554.04 ,ACT TOO LTD,SP0000855
WANDSWORTH COUNCIL,ASC,SOCIAL SERVICES,Revenue,PRIVATE,EXTERNAL DAYCARE,642990,130245290,24-Apr-15,554.04 ,ACT TOO LTD,SP0000855
WANDSWORTH COUNCIL,ASC,SOCIAL SERVICES,Revenue,PRIVATE,EXTERNAL DAYCARE,642995,130245290,24-Apr-15,738.72 ,ACT TOO LTD,SP0000855
WANDSWORTH COUNCIL,ASC,SOCIAL SERVICES,Revenue,PRIVATE,EXTERNAL DAYCARE,642980,130245290,24-Apr-15,"1,108.08 ",ACT TOO LTD,SP0000855
WANDSWORTH COUNCIL,ASC,SOCIAL SERVICES,Revenue,PRIVATE,EXTERNAL DAYCARE,643121,130245290,24-Apr-15,554.04 ,ACT TOO LTD,SP0000855
WANDSWORTH COUNCIL,ASC,SOCIAL SERVICES,Revenue,PRIVATE,EXTERNAL DAYCARE,642983,130245290,24-Apr-15,554.04 ,ACT TOO LTD,SP0000855
WANDSWORTH COUNCIL,ASC,SOCIAL SERVICES,Revenue,PRIVATE,EXTERNAL DAYCARE,642985,130245290,24-Apr-15,738.72 ,ACT TOO LTD,SP0000855
WANDSWORTH COUNCIL,ASC,SOCIAL SERVICES,Revenue,PRIVATE,EXTERNAL DAYCARE,643105,130245290,24-Apr-15,554.04 ,ACT TOO LTD,SP0000855
WANDSWORTH COUNCIL,ASC,SOCIAL SERVICES,Revenue,PRIVATE,EXTERNAL DAYCARE,643106,130245290,24-Apr-15,738.72 ,ACT TOO LTD,SP0000855
WANDSWORTH COUNCIL,ASC,SOCIAL SERVICES,Revenue,PRIVATE,EXTERNAL DAYCARE,643107,130245290,24-Apr-15,923.40 ,ACT TOO LTD,SP0000855
WANDSWORTH COUNCIL,ASC,SOCIAL SERVICES,Revenue,PRIVATE,EXTERNAL DAYCARE,643108,130245290,24-Apr-15,738.72 ,ACT TOO LTD,SP0000855
WANDSWORTH COUNCIL,ASC,SOCIAL SERVICES,Revenue,PRIVATE,EXTERNAL DAYCARE,643109,130245290,24-Apr-15,738.72 ,ACT TOO LTD,SP0000855
WANDSWORTH COUNCIL,ASC,SOCIAL SERVICES,Revenue,PRIVATE,EXTERNAL DAYCARE,643110,130245290,24-Apr-15,738.72 ,ACT TOO LTD,SP0000855
WANDSWORTH COUNCIL,ASC,SOCIAL SERVICES,Revenue,PRIVATE,EXTERNAL DAYCARE,643113,130245290,24-Apr-15,554.04 ,ACT TOO LTD,SP0000855
WANDSWORTH COUNCIL,ASC,SOCIAL SERVICES,Revenue,PRIVATE,EXTERNAL DAYCARE,642996,130245290,24-Apr-15,738.72 ,ACT TOO LTD,SP0000855
WANDSWORTH COUNCIL,ASC,SOCIAL SERVICES,Revenue,PRIVATE,EXTERNAL DAYCARE,643012,130245290,24-Apr-15,554.04 ,ACT TOO LTD,SP0000855
WANDSWORTH COUNCIL,ASC,SOCIAL SERVICES,Revenue,PRIVATE,EXTERNAL DAYCARE,643011,130245290,24-Apr-15,554.04 ,ACT TOO LTD,SP0000855
WANDSWORTH COUNCIL,ASC,SOCIAL SERVICES,Revenue,PRIVATE,EXTERNAL DAYCARE,643008,130245290,24-Apr-15,738.72 ,ACT TOO LTD,SP0000855
WANDSWORTH COUNCIL,ASC,SOCIAL SERVICES,Revenue,PRIVATE,EXTERNAL DAYCARE,643007,130245290,24-Apr-15,554.04 ,ACT TOO LTD,SP0000855
WANDSWORTH COUNCIL,ASC,SOCIAL SERVICES,Revenue,PRIVATE,EXTERNAL DAYCARE,643001,130245290,24-Apr-15,554.04 ,ACT TOO LTD,SP0000855
WANDSWORTH COUNCIL,ASC,SOCIAL SERVICES,Revenue,PRIVATE,EXTERNAL DAYCARE,642999,130245290,24-Apr-15,554.04 ,ACT TOO LTD,SP0000855
WANDSWORTH COUNCIL,ASC,SOCIAL SERVICES,Revenue,PRIVATE,EXTERNAL DAYCARE,642979,130245290,24-Apr-15,554.04 ,ACT TOO LTD,SP0000855
WANDSWORTH COUNCIL,ASC,SOCIAL SERVICES,Revenue,PRIVATE,EXTERNAL DAYCARE,642978,130245290,24-Apr-15,554.04 ,ACT TOO LTD,SP0000855
WANDSWORTH COUNCIL,ASC,SOCIAL SERVICES,Revenue,PRIVATE,EXTERNAL DAYCARE,643013,130245290,24-Apr-15,"1,108.08 ",ACT TOO LTD,SP0000855
WANDSWORTH COUNCIL,ASC,SOCIAL SERVICES,Revenue,PRIVATE,EXTERNAL DAYCARE,642974,130245290,24-Apr-15,738.72 ,ACT TOO LTD,SP0000855
WANDSWORTH COUNCIL,ASC,SOCIAL SERVICES,Revenue,PRIVATE,EXTERNAL DAYCARE,643038,130245290,24-Apr-15,554.04 ,ACT TOO LTD,SP0000855
WANDSWORTH COUNCIL,ASC,SOCIAL SERVICES,Revenue,PRIVATE,EXTERNAL DAYCARE,643044,130245290,24-Apr-15,923.40 ,ACT TOO LTD,SP0000855
WANDSWORTH COUNCIL,ASC,SOCIAL SERVICES,Revenue,PRIVATE,EXTERNAL DAYCARE,643042,130245290,24-Apr-15,554.04 ,ACT TOO LTD,SP0000855
WANDSWORTH COUNCIL,ASC,SOCIAL SERVICES,Revenue,PRIVATE,EXTERNAL DAYCARE,643061,130245290,24-Apr-15,554.04 ,ACT TOO LTD,SP0000855
WANDSWORTH COUNCIL,ASC,SOCIAL SERVICES,Revenue,PRIVATE,EXTERNAL DAYCARE,643104,130245290,24-Apr-15,554.04 ,ACT TOO LTD,SP0000855
WANDSWORTH COUNCIL,ASC,SOCIAL SERVICES,Revenue,PRIVATE,EXTERNAL DAYCARE,643041,130245290,24-Apr-15,738.72 ,ACT TOO LTD,SP0000855
WANDSWORTH COUNCIL,ASC,SOCIAL SERVICES,Revenue,PRIVATE,EXTERNAL DAYCARE,643054,130245290,24-Apr-15,"1,108.08 ",ACT TOO LTD,SP0000855
WANDSWORTH COUNCIL,ASC,SOCIAL SERVICES,Revenue,PRIVATE,EXTERNAL DAYCARE,643057,130245290,24-Apr-15,554.04 ,ACT TOO LTD,SP0000855
WANDSWORTH COUNCIL,ASC,SOCIAL SERVICES,Revenue,PRIVATE,EXTERNAL DAYCARE,643053,130245290,24-Apr-15,554.04 ,ACT TOO LTD,SP0000855
WANDSWORTH COUNCIL,ASC,SOCIAL SERVICES,Revenue,PRIVATE,EXTERNAL DAYCARE,643052,130245290,24-Apr-15,554.04 ,ACT TOO LTD,SP0000855
WANDSWORTH COUNCIL,ASC,SOCIAL SERVICES,Revenue,PRIVATE,EXTERNAL DAYCARE,643049,130245290,24-Apr-15,738.72 ,ACT TOO LTD,SP0000855
WANDSWORTH COUNCIL,ASC,SOCIAL SERVICES,Revenue,PRIVATE,EXTERNAL DAYCARE,643048,130245290,24-Apr-15,554.04 ,ACT TOO LTD,SP0000855
WANDSWORTH COUNCIL,ASC,SOCIAL SERVICES,Revenue,PRIVATE,EXTERNAL DAYCARE,643058,130245290,24-Apr-15,554.04 ,ACT TOO LTD,SP0000855
WANDSWORTH COUNCIL,ASC,SOCIAL SERVICES,Revenue,PRIVATE,EXTERNAL DAYCARE,643059,130245290,24-Apr-15,923.40 ,ACT TOO LTD,SP0000855
WANDSWORTH COUNCIL,ASC,SOCIAL SERVICES,Revenue,PRIVATE,EXTERNAL DAYCARE,643020,130245290,24-Apr-15,554.04 ,ACT TOO LTD,SP0000855
WANDSWORTH COUNCIL,ASC,SOCIAL SERVICES,Revenue,PRIVATE,EXTERNAL DAYCARE,643064,130245290,24-Apr-15,554.04 ,ACT TOO LTD,SP0000855
WANDSWORTH COUNCIL,ASC,SOCIAL SERVICES,Revenue,PRIVATE,EXTERNAL DAYCARE,643072,130245290,24-Apr-15,923.40 ,ACT TOO LTD,SP0000855
WANDSWORTH COUNCIL,ASC,SOCIAL SERVICES,Revenue,PRIVATE,EXTERNAL DAYCARE,643075,130245290,24-Apr-15,554.04 ,ACT TOO LTD,SP0000855
WANDSWORTH COUNCIL,ASC,SOCIAL SERVICES,Revenue,PRIVATE,EXTERNAL DAYCARE,643079,130245290,24-Apr-15,554.04 ,ACT TOO LTD,SP0000855
WANDSWORTH COUNCIL,ASC,SOCIAL SERVICES,Revenue,PRIVATE,EXTERNAL DAYCARE,643080,130245290,24-Apr-15,554.04 ,ACT TOO LTD,SP0000855
WANDSWORTH COUNCIL,ASC,SOCIAL SERVICES,Revenue,PRIVATE,EXTERNAL DAYCARE,643018,130245290,24-Apr-15,923.40 ,ACT TOO LTD,SP0000855
WANDSWORTH COUNCIL,ASC,SOCIAL SERVICES,Revenue,PRIVATE,EXTERNAL DAYCARE,643022,130245290,24-Apr-15,554.04 ,ACT TOO LTD,SP0000855
WANDSWORTH COUNCIL,ASC,SOCIAL SERVICES,Revenue,PRIVATE,EXTERNAL DAYCARE,643016,130245290,24-Apr-15,554.04 ,ACT TOO LTD,SP0000855
WANDSWORTH COUNCIL,ASC,SOCIAL SERVICES,Revenue,PRIVATE,EXTERNAL DAYCARE,643083,130245290,24-Apr-15,738.72 ,ACT TOO LTD,SP0000855
WANDSWORTH COUNCIL,ASC,SOCIAL SERVICES,Revenue,PRIVATE,EXTERNAL DAYCARE,643084,130245290,24-Apr-15,554.04 ,ACT TOO LTD,SP0000855
WANDSWORTH COUNCIL,ASC,SOCIAL SERVICES,Revenue,PRIVATE,EXTERNAL DAYCARE,643086,130245290,24-Apr-15,923.40 ,ACT TOO LTD,SP0000855
WANDSWORTH COUNCIL,ASC,SOCIAL SERVICES,Revenue,PRIVATE,EXTERNAL DAYCARE,643088,130245290,24-Apr-15,738.72 ,ACT TOO LTD,SP0000855
WANDSWORTH COUNCIL,ASC,SOCIAL SERVICES,Revenue,PRIVATE,EXTERNAL DAYCARE,643092,130245290,24-Apr-15,554.04 ,ACT TOO LTD,SP0000855
WANDSWORTH COUNCIL,ASC,SOCIAL SERVICES,Revenue,PRIVATE,EXTERNAL DAYCARE,643093,130245290,24-Apr-15,554.04 ,ACT TOO LTD,SP0000855
WANDSWORTH COUNCIL,ASC,SOCIAL SERVICES,Revenue,PRIVATE,EXTERNAL DAYCARE,643094,130245290,24-Apr-15,"1,108.08 ",ACT TOO LTD,SP0000855
WANDSWORTH COUNCIL,ASC,SOCIAL SERVICES,Revenue,PRIVATE,EXTERNAL DAYCARE,643097,130245290,24-Apr-15,554.04 ,ACT TOO LTD,SP0000855
WANDSWORTH COUNCIL,ASC,SOCIAL SERVICES,Revenue,PRIVATE,EXTERNAL DAYCARE,643099,130245290,24-Apr-15,738.72 ,ACT TOO LTD,SP0000855
WANDSWORTH COUNCIL,ASC,SOCIAL SERVICES,Revenue,PRIVATE,EXTERNAL DAYCARE,643017,130245290,24-Apr-15,554.04 ,ACT TOO LTD,SP0000855
WANDSWORTH COUNCIL,ASC,SOCIAL SERVICES,Revenue,PRIVATE,EXTERNAL DAYCARE,643030,130245290,24-Apr-15,923.40 ,ACT TOO LTD,SP0000855
WANDSWORTH COUNCIL,ASC,SOCIAL SERVICES,Revenue,PRIVATE,EXTERNAL DAYCARE,643037,130245290,24-Apr-15,554.04 ,ACT TOO LTD,SP0000855
WANDSWORTH COUNCIL,ASC,SOCIAL SERVICES,Revenue,PRIVATE,EXTERNAL DAYCARE,643033,130245290,24-Apr-15,554.04 ,ACT TOO LTD,SP0000855
WANDSWORTH COUNCIL,ASC,SOCIAL SERVICES,Revenue,PRIVATE,EXTERNAL DAYCARE,627620,130245290,02-Apr-15,"1,416.24 ",WINSLOW COURT,SP0000886
WANDSWORTH COUNCIL,ASC,SOCIAL SERVICES,Revenue,PRIVATE,EXTERNAL DAYCARE,627621,130245290,02-Apr-15,"1,416.24 ",WINSLOW COURT,SP0000886
WANDSWORTH COUNCIL,ASC,SOCIAL SERVICES,Revenue,PRIVATE,EXTERNAL DAYCARE,635811,130245290,16-Apr-15,895.20 ,SCOPE,SP0000991
WANDSWORTH COUNCIL,ASC,SOCIAL SERVICES,Revenue,PRIVATE,EXTERNAL DAYCARE,635812,130245290,16-Apr-15,596.80 ,SCOPE,SP0000991
WANDSWORTH COUNCIL,ASC,SOCIAL SERVICES,Revenue,PRIVATE,EXTERNAL DAYCARE,635643,130245290,16-Apr-15,"1,239.50 ",SUSSEX HEALTH CARE,SP0001115
WANDSWORTH COUNCIL,ASC,SOCIAL SERVICES,Revenue,PRIVATE,EXTERNAL DAYCARE,628754,130245290,08-Apr-15,745.20 ,HARROW MENCAP,SP0001347
WANDSWORTH COUNCIL,ASC,SOCIAL SERVICES,Revenue,PRIVATE,EXTERNAL DAYCARE,628753,130245290,08-Apr-15,745.20 ,HARROW MENCAP,SP0001347
WANDSWORTH COUNCIL,ASC,SOCIAL SERVICES,Revenue,PRIVATE,EXTERNAL DAYCARE,632686,130245290,14-Apr-15,807.30 ,HARROW MENCAP,SP0001347
WANDSWORTH COUNCIL,ASC,SOCIAL SERVICES,Revenue,PRIVATE,EXTERNAL DAYCARE,632707,130245290,14-Apr-15,708.00 ,WORKSHOP 305,SP0001403
WANDSWORTH COUNCIL,ASC,SOCIAL SERVICES,Revenue,PRIVATE,EXTERNAL DAYCARE,632729,130245290,14-Apr-15,552.00 ,WORKSHOP 305,SP0001403
WANDSWORTH COUNCIL,ASC,SOCIAL SERVICES,Revenue,PRIVATE,EXTERNAL DAYCARE,632723,130245290,14-Apr-15,708.00 ,WORKSHOP 305,SP0001403
WANDSWORTH COUNCIL,ASC,SOCIAL SERVICES,Revenue,PRIVATE,EXTERNAL DAYCARE,632722,130245290,14-Apr-15,552.00 ,WORKSHOP 305,SP0001403
WANDSWORTH COUNCIL,ASC,SOCIAL SERVICES,Revenue,PRIVATE,EXTERNAL DAYCARE,632715,130245290,14-Apr-15,708.00 ,WORKSHOP 305,SP0001403
WANDSWORTH COUNCIL,ASC,SOCIAL SERVICES,Revenue,PRIVATE,EXTERNAL DAYCARE,632714,130245290,14-Apr-15,828.00 ,WORKSHOP 305,SP0001403
WANDSWORTH COUNCIL,ASC,SOCIAL SERVICES,Revenue,PRIVATE,EXTERNAL DAYCARE,632703,130245290,14-Apr-15,944.00 ,WORKSHOP 305,SP0001403
WANDSWORTH COUNCIL,ASC,SOCIAL SERVICES,Revenue,PRIVATE,EXTERNAL DAYCARE,632696,130245290,14-Apr-15,828.00 ,WORKSHOP 305,SP0001403
WANDSWORTH COUNCIL,ASC,SOCIAL SERVICES,Revenue,PRIVATE,EXTERNAL DAYCARE,632695,130245290,14-Apr-15,552.00 ,WORKSHOP 305,SP0001403
WANDSWORTH COUNCIL,ASC,SOCIAL SERVICES,Revenue,PRIVATE,EXTERNAL DAYCARE,632737,130245290,14-Apr-15,944.00 ,WORKSHOP 305,SP0001403
WANDSWORTH COUNCIL,ASC,SOCIAL SERVICES,Revenue,PRIVATE,EXTERNAL DAYCARE,632692,130245290,14-Apr-15,520.00 ,THE CAMDEN SOCIETY,SP0001674
WANDSWORTH COUNCIL,ASC,SOCIAL SERVICES,Revenue,PRIVATE,EXTERNAL DAYCARE,632690,130245290,14-Apr-15,520.00 ,THE CAMDEN SOCIETY,SP0001674
WANDSWORTH COUNCIL,ASC,SOCIAL SERVICES,Revenue,PRIVATE,EXTERNAL DAYCARE,632691,130245290,14-Apr-15,520.00 ,THE CAMDEN SOCIETY,SP0001674
WANDSWORTH COUNCIL,ASC,SOCIAL SERVICES,Revenue,PRIVATE,EXTERNAL DAYCARE,632689,130245290,14-Apr-15,520.00 ,THE CAMDEN SOCIETY,SP0001674
WANDSWORTH COUNCIL,ASC,SOCIAL SERVICES,Revenue,PRIVATE,EXTERNAL DAYCARE,632688,130245290,14-Apr-15,520.00 ,THE CAMDEN SOCIETY,SP0001674
WANDSWORTH COUNCIL,ASC,SOCIAL SERVICES,Revenue,PRIVATE,EXTERNAL DAYCARE,635796,130245290,16-Apr-15,600.00 ,KENT COUNTY COUNCIL (KCC),SP0002270
WANDSWORTH COUNCIL,ASC,SOCIAL SERVICES,Revenue,PRIVATE,EXTERNAL DAYCARE,645926,130245290,30-Apr-15,"1,380.00 ",MERTON MENCAP CAFE,SP0009514
WANDSWORTH COUNCIL,ASC,SOCIAL SERVICES,Revenue,PRIVATE,EXTERNAL HOMECARE,635767,130245300,16-Apr-15,953.04 ,RAINBOW MEDICAL SERVICES,SP0000037
WANDSWORTH COUNCIL,ASC,SOCIAL SERVICES,Revenue,PRIVATE,EXTERNAL HOMECARE,630344,130245300,13-Apr-15,501.44 ,PLAN PERSONNEL,SP0000359
WANDSWORTH COUNCIL,ASC,SOCIAL SERVICES,Revenue,PRIVATE,EXTERNAL HOMECARE,630370,130245300,13-Apr-15,607.74 ,MUSHKIL AASAAN LTD,SP0000978
WANDSWORTH COUNCIL,ASC,SOCIAL SERVICES,Revenue,PRIVATE,EXTERNAL HOMECARE,630434,130245300,13-Apr-15,777.63 ,MUSHKIL AASAAN LTD,SP0000978
WANDSWORTH COUNCIL,ASC,SOCIAL SERVICES,Revenue,PRIVATE,EXTERNAL HOMECARE,628701,130245300,08-Apr-15,"2,230.70 ",MEARS CARE LTD,SP0001491
WANDSWORTH COUNCIL,ASC,SOCIAL SERVICES,Revenue,PRIVATE,EXTERNAL HOMECARE,627597,130245300,02-Apr-15,"3,232.00 ",CHRISTIES CARE LTD,SP0005440
WANDSWORTH COUNCIL,ASC,SOCIAL SERVICES,Revenue,PRIVATE,EXTERNAL NURSING CARE,642773,130245310,24-Apr-15,"5,975.84 ",WINGHAM COURT,SP0000025
WANDSWORTH COUNCIL,ASC,SOCIAL SERVICES,Revenue,PRIVATE,EXTERNAL NURSING CARE,627564,130245310,02-Apr-15,"5,325.08 ",VOYAGE CARE LTD,SP0000366
WANDSWORTH COUNCIL,ASC,SOCIAL SERVICES,Revenue,PRIVATE,EXTERNAL NURSING CARE,627557,130245310,02-Apr-15,"4,181.88 ",VOYAGE CARE LTD,SP0000366
WANDSWORTH COUNCIL,ASC,SOCIAL SERVICES,Revenue,PRIVATE,EXTERNAL NURSING CARE,627560,130245310,02-Apr-15,"7,887.51 ",VOYAGE CARE LTD,SP0000366
WANDSWORTH COUNCIL,ASC,SOCIAL SERVICES,Revenue,PRIVATE,EXTERNAL NURSING CARE,644014,130245310,28-Apr-15,"4,181.88 ",VOYAGE CARE LTD,SP0000366
WANDSWORTH COUNCIL,ASC,SOCIAL SERVICES,Revenue,PRIVATE,EXTERNAL NURSING CARE,644018,130245310,28-Apr-15,"7,633.07 ",VOYAGE CARE LTD,SP0000366
WANDSWORTH COUNCIL,ASC,SOCIAL SERVICES,Revenue,PRIVATE,EXTERNAL NURSING CARE,644023,130245310,28-Apr-15,"5,320.47 ",VOYAGE CARE LTD,SP0000366
WANDSWORTH COUNCIL,ASC,SOCIAL SERVICES,Revenue,PRIVATE,EXTERNAL NURSING CARE,635671,130245310,16-Apr-15,"6,577.05 ",ROYAL HOSPITAL FOR NEURO-DISABILITY,SP0000375
WANDSWORTH COUNCIL,ASC,SOCIAL SERVICES,Revenue,PRIVATE,EXTERNAL NURSING CARE,635694,130245310,16-Apr-15,"5,382.08 ",HIGH HURLANDS HOMES,SP0000668
WANDSWORTH COUNCIL,ASC,SOCIAL SERVICES,Revenue,PRIVATE,EXTERNAL NURSING CARE,641788,130245310,24-Apr-15,"2,787.60 ",TRINITY COURT NURSING HOME,SP0001001
WANDSWORTH COUNCIL,ASC,SOCIAL SERVICES,Revenue,PRIVATE,EXTERNAL NURSING CARE,641820,130245310,24-Apr-15,"2,667.97 ",YORK COURT CARE HOME,SP0006091
WANDSWORTH COUNCIL,ASC,SOCIAL SERVICES,Revenue,PRIVATE,EXTERNAL RESIDENTIAL CARE,627518,130245330,02-Apr-15,"5,632.12 ",CMG HOMES LTD,SP0000075
WANDSWORTH COUNCIL,ASC,SOCIAL SERVICES,Revenue,PRIVATE,EXTERNAL RESIDENTIAL CARE,627521,130245330,02-Apr-15,"4,646.00 ",CMG HOMES LTD,SP0000075
WANDSWORTH COUNCIL,ASC,SOCIAL SERVICES,Revenue,PRIVATE,EXTERNAL RESIDENTIAL CARE,627519,130245330,02-Apr-15,"3,911.48 ",CMG HOMES LTD,SP0000075
WANDSWORTH COUNCIL,ASC,SOCIAL SERVICES,Revenue,PRIVATE,EXTERNAL RESIDENTIAL CARE,627520,130245330,02-Apr-15,"4,866.36 ",CMG HOMES LTD,SP0000075
WANDSWORTH COUNCIL,ASC,SOCIAL SERVICES,Revenue,PRIVATE,EXTERNAL RESIDENTIAL CARE,646236,130245330,30-Apr-15,"3,911.48 ",CMG HOMES LTD,SP0000075
WANDSWORTH COUNCIL,ASC,SOCIAL SERVICES,Revenue,PRIVATE,EXTERNAL RESIDENTIAL CARE,646237,130245330,30-Apr-15,"5,554.21 ",CMG HOMES LTD,SP0000075
WANDSWORTH COUNCIL,ASC,SOCIAL SERVICES,Revenue,PRIVATE,EXTERNAL RESIDENTIAL CARE,646240,130245330,30-Apr-15,"4,867.22 ",CMG HOMES LTD,SP0000075
WANDSWORTH COUNCIL,ASC,SOCIAL SERVICES,Revenue,PRIVATE,EXTERNAL RESIDENTIAL CARE,646235,130245330,30-Apr-15,"5,632.12 ",CMG HOMES LTD,SP0000075
WANDSWORTH COUNCIL,ASC,SOCIAL SERVICES,Revenue,PRIVATE,EXTERNAL RESIDENTIAL CARE,646239,130245330,30-Apr-15,"8,061.86 ",CMG HOMES LTD,SP0000075
WANDSWORTH COUNCIL,ASC,SOCIAL SERVICES,Revenue,PRIVATE,EXTERNAL RESIDENTIAL CARE,646238,130245330,30-Apr-15,"4,117.34 ",CMG HOMES LTD,SP0000075
WANDSWORTH COUNCIL,ASC,SOCIAL SERVICES,Revenue,PRIVATE,EXTERNAL RESIDENTIAL CARE,646232,130245330,30-Apr-15,"6,007.12 ",CMG HOMES LTD,SP0000075
WANDSWORTH COUNCIL,ASC,SOCIAL SERVICES,Revenue,PRIVATE,EXTERNAL RESIDENTIAL CARE,646234,130245330,30-Apr-15,"4,416.46 ",CMG HOMES LTD,SP0000075
WANDSWORTH COUNCIL,ASC,SOCIAL SERVICES,Revenue,PRIVATE,EXTERNAL RESIDENTIAL CARE,646233,130245330,30-Apr-15,"4,646.00 ",CMG HOMES LTD,SP0000075
WANDSWORTH COUNCIL,ASC,SOCIAL SERVICES,Revenue,PRIVATE,EXTERNAL RESIDENTIAL CARE,646241,130245330,30-Apr-15,"7,123.64 ",CMG HOMES LTD,SP0000075
WANDSWORTH COUNCIL,ASC,SOCIAL SERVICES,Revenue,PRIVATE,EXTERNAL RESIDENTIAL CARE,645909,130245330,30-Apr-15,"6,428.57 ",NATIONAL SOCIETY FOR EPILEPSY,SP0000120
WANDSWORTH COUNCIL,ASC,SOCIAL SERVICES,Revenue,PRIVATE,EXTERNAL RESIDENTIAL CARE,641540,130245330,24-Apr-15,"2,162.32 ",SANCTUARY CARE LTD,SP0000121
WANDSWORTH COUNCIL,ASC,SOCIAL SERVICES,Revenue,PRIVATE,EXTERNAL RESIDENTIAL CARE,635635,130245330,16-Apr-15,"4,863.25 ",IN CHORUS LTD,SP0000129
WANDSWORTH COUNCIL,ASC,SOCIAL SERVICES,Revenue,PRIVATE,EXTERNAL RESIDENTIAL CARE,644055,130245330,28-Apr-15,"3,205.71 ",CENTRUST CARE HOMES LTD,SP0000141
WANDSWORTH COUNCIL,ASC,SOCIAL SERVICES,Revenue,PRIVATE,EXTERNAL RESIDENTIAL CARE,644054,130245330,28-Apr-15,641.15 ,CENTRUST CARE HOMES LTD,SP0000141
WANDSWORTH COUNCIL,ASC,SOCIAL SERVICES,Revenue,PRIVATE,EXTERNAL RESIDENTIAL CARE,644039,130245330,28-Apr-15,"4,191.15 ",FRANCES TAYLOR FOUNDATION,SP0000142
WANDSWORTH COUNCIL,ASC,SOCIAL SERVICES,Revenue,PRIVATE,EXTERNAL RESIDENTIAL CARE,644038,130245330,28-Apr-15,"4,338.80 ",FRANCES TAYLOR FOUNDATION,SP0000142
WANDSWORTH COUNCIL,ASC,SOCIAL SERVICES,Revenue,PRIVATE,EXTERNAL RESIDENTIAL CARE,644037,130245330,28-Apr-15,"4,835.91 ",FRANCES TAYLOR FOUNDATION,SP0000142
WANDSWORTH COUNCIL,ASC,SOCIAL SERVICES,Revenue,PRIVATE,EXTERNAL RESIDENTIAL CARE,627516,130245330,02-Apr-15,"4,453.15 ",RESIDENTIAL CARE SERVICES T/A FRANKLYN L,SP0000147
WANDSWORTH COUNCIL,ASC,SOCIAL SERVICES,Revenue,PRIVATE,EXTERNAL RESIDENTIAL CARE,645873,130245330,30-Apr-15,"9,223.48 ",THE MAPLES,SP0000154
WANDSWORTH COUNCIL,ASC,SOCIAL SERVICES,Revenue,PRIVATE,EXTERNAL RESIDENTIAL CARE,645872,130245330,30-Apr-15,"9,223.48 ",THE MAPLES,SP0000154
WANDSWORTH COUNCIL,ASC,SOCIAL SERVICES,Revenue,PRIVATE,EXTERNAL RESIDENTIAL CARE,642753,130245330,24-Apr-15,"5,555.20 ",THE CHESTNUTS,SP0000182
WANDSWORTH COUNCIL,ASC,SOCIAL SERVICES,Revenue,PRIVATE,EXTERNAL RESIDENTIAL CARE,628227,130245330,07-Apr-15,"1,647.40 ",ORCHARD VALE TRUST,SP0000214
WANDSWORTH COUNCIL,ASC,SOCIAL SERVICES,Revenue,PRIVATE,EXTERNAL RESIDENTIAL CARE,628220,130245330,07-Apr-15,"1,930.94 ",ST MARYS RESIDENTIAL HOME,SP0000215
WANDSWORTH COUNCIL,ASC,SOCIAL SERVICES,Revenue,PRIVATE,EXTERNAL RESIDENTIAL CARE,628672,130245330,08-Apr-15,"3,961.80 ",ST MARYS RESIDENTIAL HOME,SP0000215
WANDSWORTH COUNCIL,ASC,SOCIAL SERVICES,Revenue,PRIVATE,EXTERNAL RESIDENTIAL CARE,628673,130245330,08-Apr-15,"3,582.71 ",ST MARYS RESIDENTIAL HOME,SP0000215
WANDSWORTH COUNCIL,ASC,SOCIAL SERVICES,Revenue,PRIVATE,EXTERNAL RESIDENTIAL CARE,628674,130245330,08-Apr-15,"3,898.73 ",ST MARYS RESIDENTIAL HOME,SP0000215
WANDSWORTH COUNCIL,ASC,SOCIAL SERVICES,Revenue,PRIVATE,EXTERNAL RESIDENTIAL CARE,628679,130245330,08-Apr-15,"3,619.78 ",ST MARYS RESIDENTIAL HOME,SP0000215
WANDSWORTH COUNCIL,ASC,SOCIAL SERVICES,Revenue,PRIVATE,EXTERNAL RESIDENTIAL CARE,628680,130245330,08-Apr-15,"3,582.71 ",ST MARYS RESIDENTIAL HOME,SP0000215
WANDSWORTH COUNCIL,ASC,SOCIAL SERVICES,Revenue,PRIVATE,EXTERNAL RESIDENTIAL CARE,628681,130245330,08-Apr-15,"3,269.48 ",ST MARYS RESIDENTIAL HOME,SP0000215
WANDSWORTH COUNCIL,ASC,SOCIAL SERVICES,Revenue,PRIVATE,EXTERNAL RESIDENTIAL CARE,628682,130245330,08-Apr-15,"3,542.85 ",ST MARYS RESIDENTIAL HOME,SP0000215
WANDSWORTH COUNCIL,ASC,SOCIAL SERVICES,Revenue,PRIVATE,EXTERNAL RESIDENTIAL CARE,628683,130245330,08-Apr-15,"3,101.12 ",ST MARYS RESIDENTIAL HOME,SP0000215
WANDSWORTH COUNCIL,ASC,SOCIAL SERVICES,Revenue,PRIVATE,EXTERNAL RESIDENTIAL CARE,628684,130245330,08-Apr-15,"3,723.12 ",ST MARYS RESIDENTIAL HOME,SP0000215
WANDSWORTH COUNCIL,ASC,SOCIAL SERVICES,Revenue,PRIVATE,EXTERNAL RESIDENTIAL CARE,642777,130245330,24-Apr-15,"2,089.60 ",ST MARYS RESIDENTIAL HOME,SP0000215
WANDSWORTH COUNCIL,ASC,SOCIAL SERVICES,Revenue,PRIVATE,EXTERNAL RESIDENTIAL CARE,628676,130245330,08-Apr-15,"3,711.63 ",ST MARYS RESIDENTIAL HOME,SP0000215
WANDSWORTH COUNCIL,ASC,SOCIAL SERVICES,Revenue,PRIVATE,EXTERNAL RESIDENTIAL CARE,628677,130245330,08-Apr-15,"3,134.18 ",ST MARYS RESIDENTIAL HOME,SP0000215
WANDSWORTH COUNCIL,ASC,SOCIAL SERVICES,Revenue,PRIVATE,EXTERNAL RESIDENTIAL CARE,628678,130245330,08-Apr-15,"5,041.35 ",ST MARYS RESIDENTIAL HOME,SP0000215
WANDSWORTH COUNCIL,ASC,SOCIAL SERVICES,Revenue,PRIVATE,EXTERNAL RESIDENTIAL CARE,628675,130245330,08-Apr-15,"3,569.82 ",ST MARYS RESIDENTIAL HOME,SP0000215
WANDSWORTH COUNCIL,ASC,SOCIAL SERVICES,Revenue,PRIVATE,EXTERNAL RESIDENTIAL CARE,627556,130245330,02-Apr-15,"3,723.12 ",ST MARYS RESIDENTIAL HOME,SP0000215
WANDSWORTH COUNCIL,ASC,SOCIAL SERVICES,Revenue,PRIVATE,EXTERNAL RESIDENTIAL CARE,627555,130245330,02-Apr-15,"3,101.12 ",ST MARYS RESIDENTIAL HOME,SP0000215
WANDSWORTH COUNCIL,ASC,SOCIAL SERVICES,Revenue,PRIVATE,EXTERNAL RESIDENTIAL CARE,627554,130245330,02-Apr-15,"3,269.48 ",ST MARYS RESIDENTIAL HOME,SP0000215
WANDSWORTH COUNCIL,ASC,SOCIAL SERVICES,Revenue,PRIVATE,EXTERNAL RESIDENTIAL CARE,627513,130245330,02-Apr-15,"7,600.00 ",SPRING LAKE,SP0000223
WANDSWORTH COUNCIL,ASC,SOCIAL SERVICES,Revenue,PRIVATE,EXTERNAL RESIDENTIAL CARE,627512,130245330,02-Apr-15,"8,720.00 ",SPRING LAKE,SP0000223
WANDSWORTH COUNCIL,ASC,SOCIAL SERVICES,Revenue,PRIVATE,EXTERNAL RESIDENTIAL CARE,627511,130245330,02-Apr-15,"7,600.00 ",SPRING LAKE,SP0000223
WANDSWORTH COUNCIL,ASC,SOCIAL SERVICES,Revenue,PRIVATE,EXTERNAL RESIDENTIAL CARE,627514,130245330,02-Apr-15,"8,720.00 ",SPRING LAKE,SP0000223
WANDSWORTH COUNCIL,ASC,SOCIAL SERVICES,Revenue,PRIVATE,EXTERNAL RESIDENTIAL CARE,627508,130245330,02-Apr-15,"3,724.72 ",HAYDON PARK LODGE LTD,SP0000231
WANDSWORTH COUNCIL,ASC,SOCIAL SERVICES,Revenue,PRIVATE,EXTERNAL RESIDENTIAL CARE,632460,130245330,14-Apr-15,"3,724.72 ",HAYDON PARK LODGE LTD,SP0000231
WANDSWORTH COUNCIL,ASC,SOCIAL SERVICES,Revenue,PRIVATE,EXTERNAL RESIDENTIAL CARE,635695,130245330,16-Apr-15,"7,460.27 ",THE DISABILITIES TRUST,SP0000239
WANDSWORTH COUNCIL,ASC,SOCIAL SERVICES,Revenue,PRIVATE,EXTERNAL RESIDENTIAL CARE,635665,130245330,16-Apr-15,"4,684.92 ",CAMERON LODGE LIMITED,SP0000271
WANDSWORTH COUNCIL,ASC,SOCIAL SERVICES,Revenue,PRIVATE,EXTERNAL RESIDENTIAL CARE,635706,130245330,16-Apr-15,"7,787.02 ",BROOKDALE CARE,SP0000282
WANDSWORTH COUNCIL,ASC,SOCIAL SERVICES,Revenue,PRIVATE,EXTERNAL RESIDENTIAL CARE,642775,130245330,24-Apr-15,"3,029.72 ",CRAEGMOOR FACILITIES CO LTD,SP0000306
WANDSWORTH COUNCIL,ASC,SOCIAL SERVICES,Revenue,PRIVATE,EXTERNAL RESIDENTIAL CARE,632486,130245330,14-Apr-15,"5,299.61 ",DOLPHIN HOMES LTD,SP0000331
WANDSWORTH COUNCIL,ASC,SOCIAL SERVICES,Revenue,PRIVATE,EXTERNAL RESIDENTIAL CARE,632487,130245330,14-Apr-15,"4,172.10 ",DOLPHIN HOMES LTD,SP0000331
WANDSWORTH COUNCIL,ASC,SOCIAL SERVICES,Revenue,PRIVATE,EXTERNAL RESIDENTIAL CARE,632474,130245330,14-Apr-15,"6,152.87 ",NORWOOD SCHOOLS LTD,SP0000332
WANDSWORTH COUNCIL,ASC,SOCIAL SERVICES,Revenue,PRIVATE,EXTERNAL RESIDENTIAL CARE,632475,130245330,14-Apr-15,"6,408.23 ",NORWOOD SCHOOLS LTD,SP0000332
WANDSWORTH COUNCIL,ASC,SOCIAL SERVICES,Revenue,PRIVATE,EXTERNAL RESIDENTIAL CARE,645887,130245330,30-Apr-15,"6,409.80 ",NORWOOD SCHOOLS LTD,SP0000332
WANDSWORTH COUNCIL,ASC,SOCIAL SERVICES,Revenue,PRIVATE,EXTERNAL RESIDENTIAL CARE,645886,130245330,30-Apr-15,"6,154.44 ",NORWOOD SCHOOLS LTD,SP0000332
WANDSWORTH COUNCIL,ASC,SOCIAL SERVICES,Revenue,PRIVATE,EXTERNAL RESIDENTIAL CARE,632440,130245330,14-Apr-15,"2,409.62 ",THE MANOR,SP0000340
WANDSWORTH COUNCIL,ASC,SOCIAL SERVICES,Revenue,PRIVATE,EXTERNAL RESIDENTIAL CARE,627570,130245330,02-Apr-15,"6,127.81 ",VOYAGE CARE LTD,SP0000366
WANDSWORTH COUNCIL,ASC,SOCIAL SERVICES,Revenue,PRIVATE,EXTERNAL RESIDENTIAL CARE,627569,130245330,02-Apr-15,"6,441.12 ",VOYAGE CARE LTD,SP0000366
WANDSWORTH COUNCIL,ASC,SOCIAL SERVICES,Revenue,PRIVATE,EXTERNAL RESIDENTIAL CARE,627568,130245330,02-Apr-15,"7,766.72 ",VOYAGE CARE LTD,SP0000366
WANDSWORTH COUNCIL,ASC,SOCIAL SERVICES,Revenue,PRIVATE,EXTERNAL RESIDENTIAL CARE,627566,130245330,02-Apr-15,"6,897.37 ",VOYAGE CARE LTD,SP0000366
WANDSWORTH COUNCIL,ASC,SOCIAL SERVICES,Revenue,PRIVATE,EXTERNAL RESIDENTIAL CARE,627565,130245330,02-Apr-15,"6,091.76 ",VOYAGE CARE LTD,SP0000366
WANDSWORTH COUNCIL,ASC,SOCIAL SERVICES,Revenue,PRIVATE,EXTERNAL RESIDENTIAL CARE,627563,130245330,02-Apr-15,"7,444.36 ",VOYAGE CARE LTD,SP0000366
WANDSWORTH COUNCIL,ASC,SOCIAL SERVICES,Revenue,PRIVATE,EXTERNAL RESIDENTIAL CARE,627561,130245330,02-Apr-15,"5,979.28 ",VOYAGE CARE LTD,SP0000366
WANDSWORTH COUNCIL,ASC,SOCIAL SERVICES,Revenue,PRIVATE,EXTERNAL RESIDENTIAL CARE,644020,130245330,28-Apr-15,"5,979.28 ",VOYAGE CARE LTD,SP0000366
WANDSWORTH COUNCIL,ASC,SOCIAL SERVICES,Revenue,PRIVATE,EXTERNAL RESIDENTIAL CARE,644303,130245330,28-Apr-15,"7,109.69 ",VOYAGE CARE LTD,SP0000366
WANDSWORTH COUNCIL,ASC,SOCIAL SERVICES,Revenue,PRIVATE,EXTERNAL RESIDENTIAL CARE,644029,130245330,28-Apr-15,"6,443.12 ",VOYAGE CARE LTD,SP0000366
WANDSWORTH COUNCIL,ASC,SOCIAL SERVICES,Revenue,PRIVATE,EXTERNAL RESIDENTIAL CARE,644025,130245330,28-Apr-15,"1,028.57 ",VOYAGE CARE LTD,SP0000366
WANDSWORTH COUNCIL,ASC,SOCIAL SERVICES,Revenue,PRIVATE,EXTERNAL RESIDENTIAL CARE,644022,130245330,28-Apr-15,"7,439.75 ",VOYAGE CARE LTD,SP0000366
WANDSWORTH COUNCIL,ASC,SOCIAL SERVICES,Revenue,PRIVATE,EXTERNAL RESIDENTIAL CARE,644024,130245330,28-Apr-15,"5,893.12 ",VOYAGE CARE LTD,SP0000366
WANDSWORTH COUNCIL,ASC,SOCIAL SERVICES,Revenue,PRIVATE,EXTERNAL RESIDENTIAL CARE,644028,130245330,28-Apr-15,"7,768.72 ",VOYAGE CARE LTD,SP0000366
WANDSWORTH COUNCIL,ASC,SOCIAL SERVICES,Revenue,PRIVATE,EXTERNAL RESIDENTIAL CARE,635680,130245330,16-Apr-15,"2,105.61 ",ST DAVIDS CARE IN THE COMMUNITY,SP0000379
WANDSWORTH COUNCIL,ASC,SOCIAL SERVICES,Revenue,PRIVATE,EXTERNAL RESIDENTIAL CARE,635678,130245330,16-Apr-15,"2,105.61 ",ST DAVIDS CARE IN THE COMMUNITY,SP0000379
WANDSWORTH COUNCIL,ASC,SOCIAL SERVICES,Revenue,PRIVATE,EXTERNAL RESIDENTIAL CARE,635679,130245330,16-Apr-15,"2,538.20 ",ST DAVIDS CARE IN THE COMMUNITY,SP0000379
WANDSWORTH COUNCIL,ASC,SOCIAL SERVICES,Revenue,PRIVATE,EXTERNAL RESIDENTIAL CARE,635681,130245330,16-Apr-15,"5,461.87 ",ESSEX CARE CONSORTIUM,SP0000387
WANDSWORTH COUNCIL,ASC,SOCIAL SERVICES,Revenue,PRIVATE,EXTERNAL RESIDENTIAL CARE,632433,130245330,14-Apr-15,"4,147.69 ",KENILWORTH RESIDENTIAL HOME,SP0000432
WANDSWORTH COUNCIL,ASC,SOCIAL SERVICES,Revenue,PRIVATE,EXTERNAL RESIDENTIAL CARE,632432,130245330,14-Apr-15,"3,975.84 ",KENILWORTH RESIDENTIAL HOME,SP0000432
WANDSWORTH COUNCIL,ASC,SOCIAL SERVICES,Revenue,PRIVATE,EXTERNAL RESIDENTIAL CARE,635660,130245330,16-Apr-15,"4,654.08 ",THE WELL HOUSE,SP0000448
WANDSWORTH COUNCIL,ASC,SOCIAL SERVICES,Revenue,PRIVATE,EXTERNAL RESIDENTIAL CARE,635661,130245330,16-Apr-15,"4,403.76 ",THE WELL HOUSE,SP0000448
WANDSWORTH COUNCIL,ASC,SOCIAL SERVICES,Revenue,PRIVATE,EXTERNAL RESIDENTIAL CARE,632484,130245330,14-Apr-15,"5,030.56 ",MACINTYRE CARE,SP0000473
WANDSWORTH COUNCIL,ASC,SOCIAL SERVICES,Revenue,PRIVATE,EXTERNAL RESIDENTIAL CARE,632485,130245330,14-Apr-15,"4,906.04 ",MACINTYRE CARE,SP0000473
WANDSWORTH COUNCIL,ASC,SOCIAL SERVICES,Revenue,PRIVATE,EXTERNAL RESIDENTIAL CARE,632479,130245330,14-Apr-15,"4,893.16 ",MACINTYRE CARE,SP0000473
WANDSWORTH COUNCIL,ASC,SOCIAL SERVICES,Revenue,PRIVATE,EXTERNAL RESIDENTIAL CARE,632467,130245330,14-Apr-15,"8,054.24 ",MACINTYRE CARE,SP0000473
WANDSWORTH COUNCIL,ASC,SOCIAL SERVICES,Revenue,PRIVATE,EXTERNAL RESIDENTIAL CARE,632468,130245330,14-Apr-15,"5,024.64 ",MACINTYRE CARE,SP0000473
WANDSWORTH COUNCIL,ASC,SOCIAL SERVICES,Revenue,PRIVATE,EXTERNAL RESIDENTIAL CARE,632469,130245330,14-Apr-15,"5,423.04 ",MACINTYRE CARE,SP0000473
WANDSWORTH COUNCIL,ASC,SOCIAL SERVICES,Revenue,PRIVATE,EXTERNAL RESIDENTIAL CARE,632470,130245330,14-Apr-15,"4,296.00 ",MACINTYRE CARE,SP0000473
WANDSWORTH COUNCIL,ASC,SOCIAL SERVICES,Revenue,PRIVATE,EXTERNAL RESIDENTIAL CARE,632483,130245330,14-Apr-15,"4,901.68 ",MACINTYRE CARE,SP0000473
WANDSWORTH COUNCIL,ASC,SOCIAL SERVICES,Revenue,PRIVATE,EXTERNAL RESIDENTIAL CARE,632459,130245330,14-Apr-15,"3,757.92 ",MACINTYRE CARE,SP0000473
WANDSWORTH COUNCIL,ASC,SOCIAL SERVICES,Revenue,PRIVATE,EXTERNAL RESIDENTIAL CARE,632480,130245330,14-Apr-15,"4,902.44 ",MACINTYRE CARE,SP0000473
WANDSWORTH COUNCIL,ASC,SOCIAL SERVICES,Revenue,PRIVATE,EXTERNAL RESIDENTIAL CARE,632481,130245330,14-Apr-15,"4,907.76 ",MACINTYRE CARE,SP0000473
WANDSWORTH COUNCIL,ASC,SOCIAL SERVICES,Revenue,PRIVATE,EXTERNAL RESIDENTIAL CARE,632482,130245330,14-Apr-15,"4,906.04 ",MACINTYRE CARE,SP0000473
WANDSWORTH COUNCIL,ASC,SOCIAL SERVICES,Revenue,PRIVATE,EXTERNAL RESIDENTIAL CARE,632458,130245330,14-Apr-15,"5,095.48 ",MACINTYRE CARE,SP0000473
WANDSWORTH COUNCIL,ASC,SOCIAL SERVICES,Revenue,PRIVATE,EXTERNAL RESIDENTIAL CARE,632457,130245330,14-Apr-15,"4,997.12 ",MACINTYRE CARE,SP0000473
WANDSWORTH COUNCIL,ASC,SOCIAL SERVICES,Revenue,PRIVATE,EXTERNAL RESIDENTIAL CARE,632456,130245330,14-Apr-15,"3,812.12 ",MACINTYRE CARE,SP0000473
WANDSWORTH COUNCIL,ASC,SOCIAL SERVICES,Revenue,PRIVATE,EXTERNAL RESIDENTIAL CARE,632455,130245330,14-Apr-15,"3,748.15 ",MACINTYRE CARE,SP0000473
WANDSWORTH COUNCIL,ASC,SOCIAL SERVICES,Revenue,PRIVATE,EXTERNAL RESIDENTIAL CARE,632454,130245330,14-Apr-15,"5,190.76 ",MACINTYRE CARE,SP0000473
WANDSWORTH COUNCIL,ASC,SOCIAL SERVICES,Revenue,PRIVATE,EXTERNAL RESIDENTIAL CARE,632453,130245330,14-Apr-15,"3,757.92 ",MACINTYRE CARE,SP0000473
WANDSWORTH COUNCIL,ASC,SOCIAL SERVICES,Revenue,PRIVATE,EXTERNAL RESIDENTIAL CARE,632451,130245330,14-Apr-15,"5,422.92 ",MACINTYRE CARE,SP0000473
WANDSWORTH COUNCIL,ASC,SOCIAL SERVICES,Revenue,PRIVATE,EXTERNAL RESIDENTIAL CARE,632450,130245330,14-Apr-15,"5,204.56 ",MACINTYRE CARE,SP0000473
WANDSWORTH COUNCIL,ASC,SOCIAL SERVICES,Revenue,PRIVATE,EXTERNAL RESIDENTIAL CARE,644049,130245330,28-Apr-15,"7,717.76 ",LORING HALL LIMITED,SP0000511
WANDSWORTH COUNCIL,ASC,SOCIAL SERVICES,Revenue,PRIVATE,EXTERNAL RESIDENTIAL CARE,635659,130245330,16-Apr-15,"8,100.82 ",AIMS CARE PARTNERSHIP,SP0000561
WANDSWORTH COUNCIL,ASC,SOCIAL SERVICES,Revenue,PRIVATE,EXTERNAL RESIDENTIAL CARE,642751,130245330,24-Apr-15,"7,276.41 ",SEEABILITY,SP0000572
WANDSWORTH COUNCIL,ASC,SOCIAL SERVICES,Revenue,PRIVATE,EXTERNAL RESIDENTIAL CARE,627491,130245330,02-Apr-15,"7,597.04 ",SEEABILITY,SP0000572
WANDSWORTH COUNCIL,ASC,SOCIAL SERVICES,Revenue,PRIVATE,EXTERNAL RESIDENTIAL CARE,635673,130245330,16-Apr-15,"5,408.15 ",THE COMMUNITY CARE COMPANY UK LTD,SP0000576
WANDSWORTH COUNCIL,ASC,SOCIAL SERVICES,Revenue,PRIVATE,EXTERNAL RESIDENTIAL CARE,635677,130245330,16-Apr-15,"5,929.72 ",THE COMMUNITY CARE COMPANY UK LTD,SP0000576
WANDSWORTH COUNCIL,ASC,SOCIAL SERVICES,Revenue,PRIVATE,EXTERNAL RESIDENTIAL CARE,644047,130245330,28-Apr-15,"6,427.20 ",BIRCC,SP0000584
WANDSWORTH COUNCIL,ASC,SOCIAL SERVICES,Revenue,PRIVATE,EXTERNAL RESIDENTIAL CARE,628188,130245330,07-Apr-15,"7,409.80 ",THE REGARD PARTNERSHIP,SP0000588
WANDSWORTH COUNCIL,ASC,SOCIAL SERVICES,Revenue,PRIVATE,EXTERNAL RESIDENTIAL CARE,628189,130245330,07-Apr-15,"6,689.58 ",THE REGARD PARTNERSHIP,SP0000588
WANDSWORTH COUNCIL,ASC,SOCIAL SERVICES,Revenue,PRIVATE,EXTERNAL RESIDENTIAL CARE,628190,130245330,07-Apr-15,"6,974.82 ",THE REGARD PARTNERSHIP,SP0000588
WANDSWORTH COUNCIL,ASC,SOCIAL SERVICES,Revenue,PRIVATE,EXTERNAL RESIDENTIAL CARE,628191,130245330,07-Apr-15,"7,073.85 ",THE REGARD PARTNERSHIP,SP0000588
WANDSWORTH COUNCIL,ASC,SOCIAL SERVICES,Revenue,PRIVATE,EXTERNAL RESIDENTIAL CARE,628192,130245330,07-Apr-15,"7,794.29 ",THE REGARD PARTNERSHIP,SP0000588
WANDSWORTH COUNCIL,ASC,SOCIAL SERVICES,Revenue,PRIVATE,EXTERNAL RESIDENTIAL CARE,628195,130245330,07-Apr-15,"6,096.48 ",LAETUS LODGE,SP0000600
WANDSWORTH COUNCIL,ASC,SOCIAL SERVICES,Revenue,PRIVATE,EXTERNAL RESIDENTIAL CARE,628194,130245330,07-Apr-15,"4,792.20 ",LAETUS LODGE,SP0000600
WANDSWORTH COUNCIL,ASC,SOCIAL SERVICES,Revenue,PRIVATE,EXTERNAL RESIDENTIAL CARE,628196,130245330,07-Apr-15,"3,759.76 ",LAETUS LODGE,SP0000600
WANDSWORTH COUNCIL,ASC,SOCIAL SERVICES,Revenue,PRIVATE,EXTERNAL RESIDENTIAL CARE,628197,130245330,07-Apr-15,"6,193.48 ",LAETUS LODGE,SP0000600
WANDSWORTH COUNCIL,ASC,SOCIAL SERVICES,Revenue,PRIVATE,EXTERNAL RESIDENTIAL CARE,628198,130245330,07-Apr-15,"3,669.12 ",LAETUS LODGE,SP0000600
WANDSWORTH COUNCIL,ASC,SOCIAL SERVICES,Revenue,PRIVATE,EXTERNAL RESIDENTIAL CARE,628199,130245330,07-Apr-15,"3,759.76 ",LAETUS LODGE,SP0000600
WANDSWORTH COUNCIL,ASC,SOCIAL SERVICES,Revenue,PRIVATE,EXTERNAL RESIDENTIAL CARE,628200,130245330,07-Apr-15,"5,240.56 ",LAETUS LODGE,SP0000600
WANDSWORTH COUNCIL,ASC,SOCIAL SERVICES,Revenue,PRIVATE,EXTERNAL RESIDENTIAL CARE,632546,130245330,14-Apr-15,"13,353.34 ",LAETUS LODGE,SP0000600
WANDSWORTH COUNCIL,ASC,SOCIAL SERVICES,Revenue,PRIVATE,EXTERNAL RESIDENTIAL CARE,645906,130245330,30-Apr-15,"2,785.78 ",MENCAP,SP0000604
WANDSWORTH COUNCIL,ASC,SOCIAL SERVICES,Revenue,PRIVATE,EXTERNAL RESIDENTIAL CARE,645905,130245330,30-Apr-15,557.16 ,MENCAP,SP0000604
WANDSWORTH COUNCIL,ASC,SOCIAL SERVICES,Revenue,PRIVATE,EXTERNAL RESIDENTIAL CARE,627535,130245330,02-Apr-15,"4,709.79 ",METROPOLITAN HOUSING TRUST,SP0000626
WANDSWORTH COUNCIL,ASC,SOCIAL SERVICES,Revenue,PRIVATE,EXTERNAL RESIDENTIAL CARE,627526,130245330,02-Apr-15,"4,709.79 ",METROPOLITAN HOUSING TRUST,SP0000626
WANDSWORTH COUNCIL,ASC,SOCIAL SERVICES,Revenue,PRIVATE,EXTERNAL RESIDENTIAL CARE,627534,130245330,02-Apr-15,"4,709.79 ",METROPOLITAN HOUSING TRUST,SP0000626
WANDSWORTH COUNCIL,ASC,SOCIAL SERVICES,Revenue,PRIVATE,EXTERNAL RESIDENTIAL CARE,627533,130245330,02-Apr-15,"4,709.79 ",METROPOLITAN HOUSING TRUST,SP0000626
WANDSWORTH COUNCIL,ASC,SOCIAL SERVICES,Revenue,PRIVATE,EXTERNAL RESIDENTIAL CARE,627532,130245330,02-Apr-15,"4,427.04 ",METROPOLITAN HOUSING TRUST,SP0000626
WANDSWORTH COUNCIL,ASC,SOCIAL SERVICES,Revenue,PRIVATE,EXTERNAL RESIDENTIAL CARE,627531,130245330,02-Apr-15,"4,756.88 ",METROPOLITAN HOUSING TRUST,SP0000626
WANDSWORTH COUNCIL,ASC,SOCIAL SERVICES,Revenue,PRIVATE,EXTERNAL RESIDENTIAL CARE,627530,130245330,02-Apr-15,"4,756.88 ",METROPOLITAN HOUSING TRUST,SP0000626
WANDSWORTH COUNCIL,ASC,SOCIAL SERVICES,Revenue,PRIVATE,EXTERNAL RESIDENTIAL CARE,627529,130245330,02-Apr-15,"4,709.79 ",METROPOLITAN HOUSING TRUST,SP0000626
WANDSWORTH COUNCIL,ASC,SOCIAL SERVICES,Revenue,PRIVATE,EXTERNAL RESIDENTIAL CARE,627537,130245330,02-Apr-15,"4,709.79 ",METROPOLITAN HOUSING TRUST,SP0000626
WANDSWORTH COUNCIL,ASC,SOCIAL SERVICES,Revenue,PRIVATE,EXTERNAL RESIDENTIAL CARE,627525,130245330,02-Apr-15,"4,709.79 ",METROPOLITAN HOUSING TRUST,SP0000626
WANDSWORTH COUNCIL,ASC,SOCIAL SERVICES,Revenue,PRIVATE,EXTERNAL RESIDENTIAL CARE,627527,130245330,02-Apr-15,"4,709.79 ",METROPOLITAN HOUSING TRUST,SP0000626
WANDSWORTH COUNCIL,ASC,SOCIAL SERVICES,Revenue,PRIVATE,EXTERNAL RESIDENTIAL CARE,627524,130245330,02-Apr-15,"4,427.04 ",METROPOLITAN HOUSING TRUST,SP0000626
WANDSWORTH COUNCIL,ASC,SOCIAL SERVICES,Revenue,PRIVATE,EXTERNAL RESIDENTIAL CARE,627523,130245330,02-Apr-15,"4,756.88 ",METROPOLITAN HOUSING TRUST,SP0000626
WANDSWORTH COUNCIL,ASC,SOCIAL SERVICES,Revenue,PRIVATE,EXTERNAL RESIDENTIAL CARE,627522,130245330,02-Apr-15,"4,756.88 ",METROPOLITAN HOUSING TRUST,SP0000626
WANDSWORTH COUNCIL,ASC,SOCIAL SERVICES,Revenue,PRIVATE,EXTERNAL RESIDENTIAL CARE,645899,130245330,30-Apr-15,"3,195.94 ",METROPOLITAN HOUSING TRUST,SP0000626
WANDSWORTH COUNCIL,ASC,SOCIAL SERVICES,Revenue,PRIVATE,EXTERNAL RESIDENTIAL CARE,645903,130245330,30-Apr-15,"4,709.79 ",METROPOLITAN HOUSING TRUST,SP0000626
WANDSWORTH COUNCIL,ASC,SOCIAL SERVICES,Revenue,PRIVATE,EXTERNAL RESIDENTIAL CARE,645895,130245330,30-Apr-15,"4,756.92 ",METROPOLITAN HOUSING TRUST,SP0000626
WANDSWORTH COUNCIL,ASC,SOCIAL SERVICES,Revenue,PRIVATE,EXTERNAL RESIDENTIAL CARE,645898,130245330,30-Apr-15,"4,427.04 ",METROPOLITAN HOUSING TRUST,SP0000626
WANDSWORTH COUNCIL,ASC,SOCIAL SERVICES,Revenue,PRIVATE,EXTERNAL RESIDENTIAL CARE,645897,130245330,30-Apr-15,"4,756.88 ",METROPOLITAN HOUSING TRUST,SP0000626
WANDSWORTH COUNCIL,ASC,SOCIAL SERVICES,Revenue,PRIVATE,EXTERNAL RESIDENTIAL CARE,645896,130245330,30-Apr-15,"4,756.88 ",METROPOLITAN HOUSING TRUST,SP0000626
WANDSWORTH COUNCIL,ASC,SOCIAL SERVICES,Revenue,PRIVATE,EXTERNAL RESIDENTIAL CARE,645900,130245330,30-Apr-15,"4,709.79 ",METROPOLITAN HOUSING TRUST,SP0000626
WANDSWORTH COUNCIL,ASC,SOCIAL SERVICES,Revenue,PRIVATE,EXTERNAL RESIDENTIAL CARE,645901,130245330,30-Apr-15,"4,709.79 ",METROPOLITAN HOUSING TRUST,SP0000626
WANDSWORTH COUNCIL,ASC,SOCIAL SERVICES,Revenue,PRIVATE,EXTERNAL RESIDENTIAL CARE,635700,130245330,16-Apr-15,941.13 ,LIVABILITY,SP0000669
WANDSWORTH COUNCIL,ASC,SOCIAL SERVICES,Revenue,PRIVATE,EXTERNAL RESIDENTIAL CARE,645893,130245330,30-Apr-15,"11,474.52 ",LOVING CARE LTD,SP0000670
WANDSWORTH COUNCIL,ASC,SOCIAL SERVICES,Revenue,PRIVATE,EXTERNAL RESIDENTIAL CARE,627464,130245330,02-Apr-15,"11,475.88 ",LOVING CARE LTD,SP0000670
WANDSWORTH COUNCIL,ASC,SOCIAL SERVICES,Revenue,PRIVATE,EXTERNAL RESIDENTIAL CARE,645894,130245330,30-Apr-15,"11,170.12 ",LOVING CARE LTD,SP0000670
WANDSWORTH COUNCIL,ASC,SOCIAL SERVICES,Revenue,PRIVATE,EXTERNAL RESIDENTIAL CARE,627463,130245330,02-Apr-15,"11,017.24 ",LOVING CARE LTD,SP0000670
WANDSWORTH COUNCIL,ASC,SOCIAL SERVICES,Revenue,PRIVATE,EXTERNAL RESIDENTIAL CARE,645889,130245330,30-Apr-15,"11,282.12 ",LOVING CARE LTD,SP0000670
WANDSWORTH COUNCIL,ASC,SOCIAL SERVICES,Revenue,PRIVATE,EXTERNAL RESIDENTIAL CARE,627465,130245330,02-Apr-15,"11,475.88 ",LOVING CARE LTD,SP0000670
WANDSWORTH COUNCIL,ASC,SOCIAL SERVICES,Revenue,PRIVATE,EXTERNAL RESIDENTIAL CARE,627466,130245330,02-Apr-15,"11,170.12 ",LOVING CARE LTD,SP0000670
WANDSWORTH COUNCIL,ASC,SOCIAL SERVICES,Revenue,PRIVATE,EXTERNAL RESIDENTIAL CARE,645892,130245330,30-Apr-15,"11,475.90 ",LOVING CARE LTD,SP0000670
WANDSWORTH COUNCIL,ASC,SOCIAL SERVICES,Revenue,PRIVATE,EXTERNAL RESIDENTIAL CARE,645891,130245330,30-Apr-15,"11,017.19 ",LOVING CARE LTD,SP0000670
WANDSWORTH COUNCIL,ASC,SOCIAL SERVICES,Revenue,PRIVATE,EXTERNAL RESIDENTIAL CARE,627460,130245330,02-Apr-15,"11,322.96 ",LOVING CARE LTD,SP0000670
WANDSWORTH COUNCIL,ASC,SOCIAL SERVICES,Revenue,PRIVATE,EXTERNAL RESIDENTIAL CARE,627461,130245330,02-Apr-15,"11,282.12 ",LOVING CARE LTD,SP0000670
WANDSWORTH COUNCIL,ASC,SOCIAL SERVICES,Revenue,PRIVATE,EXTERNAL RESIDENTIAL CARE,627462,130245330,02-Apr-15,"11,475.84 ",LOVING CARE LTD,SP0000670
WANDSWORTH COUNCIL,ASC,SOCIAL SERVICES,Revenue,PRIVATE,EXTERNAL RESIDENTIAL CARE,645890,130245330,30-Apr-15,"11,475.82 ",LOVING CARE LTD,SP0000670
WANDSWORTH COUNCIL,ASC,SOCIAL SERVICES,Revenue,PRIVATE,EXTERNAL RESIDENTIAL CARE,645888,130245330,30-Apr-15,"11,322.94 ",LOVING CARE LTD,SP0000670
WANDSWORTH COUNCIL,ASC,SOCIAL SERVICES,Revenue,PRIVATE,EXTERNAL RESIDENTIAL CARE,635636,130245330,16-Apr-15,"4,831.44 ",WHITE ROSE CARE,SP0000780
WANDSWORTH COUNCIL,ASC,SOCIAL SERVICES,Revenue,PRIVATE,EXTERNAL RESIDENTIAL CARE,645871,130245330,30-Apr-15,"4,827.84 ",WHITE ROSE CARE,SP0000780
WANDSWORTH COUNCIL,ASC,SOCIAL SERVICES,Revenue,PRIVATE,EXTERNAL RESIDENTIAL CARE,628225,130245330,07-Apr-15,"2,267.32 ",FREEWAYS TRUST LTD,SP0000793
WANDSWORTH COUNCIL,ASC,SOCIAL SERVICES,Revenue,PRIVATE,EXTERNAL RESIDENTIAL CARE,644050,130245330,28-Apr-15,"3,128.39 ",PROSPECTS,SP0000800
WANDSWORTH COUNCIL,ASC,SOCIAL SERVICES,Revenue,PRIVATE,EXTERNAL RESIDENTIAL CARE,627476,130245330,02-Apr-15,"6,312.44 ",WESSEX AUTISTIC SOCIETY,SP0000805
WANDSWORTH COUNCIL,ASC,SOCIAL SERVICES,Revenue,PRIVATE,EXTERNAL RESIDENTIAL CARE,635664,130245330,16-Apr-15,"3,970.39 ",BEECH LODGE,SP0000807
WANDSWORTH COUNCIL,ASC,SOCIAL SERVICES,Revenue,PRIVATE,EXTERNAL RESIDENTIAL CARE,635663,130245330,16-Apr-15,"3,970.39 ",BEECH LODGE,SP0000807
WANDSWORTH COUNCIL,ASC,SOCIAL SERVICES,Revenue,PRIVATE,EXTERNAL RESIDENTIAL CARE,635662,130245330,16-Apr-15,"3,970.39 ",BEECH LODGE,SP0000807
WANDSWORTH COUNCIL,ASC,SOCIAL SERVICES,Revenue,PRIVATE,EXTERNAL RESIDENTIAL CARE,627503,130245330,02-Apr-15,"9,206.20 ",CHATSWORTH CARE,SP0000831
WANDSWORTH COUNCIL,ASC,SOCIAL SERVICES,Revenue,PRIVATE,EXTERNAL RESIDENTIAL CARE,632489,130245330,14-Apr-15,"7,699.17 ",CHATSWORTH CARE,SP0000831
WANDSWORTH COUNCIL,ASC,SOCIAL SERVICES,Revenue,PRIVATE,EXTERNAL RESIDENTIAL CARE,632400,130245330,14-Apr-15,"5,840.68 ",ROYAL MENCAP SOCIETY,SP0000842
WANDSWORTH COUNCIL,ASC,SOCIAL SERVICES,Revenue,PRIVATE,EXTERNAL RESIDENTIAL CARE,632401,130245330,14-Apr-15,"4,197.68 ",ROYAL MENCAP SOCIETY,SP0000842
WANDSWORTH COUNCIL,ASC,SOCIAL SERVICES,Revenue,PRIVATE,EXTERNAL RESIDENTIAL CARE,627492,130245330,02-Apr-15,"3,259.91 ",STALLCOMBE HOUSE,SP0000843
WANDSWORTH COUNCIL,ASC,SOCIAL SERVICES,Revenue,PRIVATE,EXTERNAL RESIDENTIAL CARE,635083,130245330,15-Apr-15,"2,674.38 ",SCOPE,SP0000852
WANDSWORTH COUNCIL,ASC,SOCIAL SERVICES,Revenue,PRIVATE,EXTERNAL RESIDENTIAL CARE,635082,130245330,15-Apr-15,"2,530.86 ",SCOPE,SP0000852
WANDSWORTH COUNCIL,ASC,SOCIAL SERVICES,Revenue,PRIVATE,EXTERNAL RESIDENTIAL CARE,642743,130245330,24-Apr-15,"10,946.36 ",ASHCROFT CARE SERVICES,SP0000872
WANDSWORTH COUNCIL,ASC,SOCIAL SERVICES,Revenue,PRIVATE,EXTERNAL RESIDENTIAL CARE,627489,130245330,02-Apr-15,"5,599.36 ",WINSLOW COURT,SP0000886
WANDSWORTH COUNCIL,ASC,SOCIAL SERVICES,Revenue,PRIVATE,EXTERNAL RESIDENTIAL CARE,627490,130245330,02-Apr-15,"5,819.32 ",WINSLOW COURT,SP0000886
WANDSWORTH COUNCIL,ASC,SOCIAL SERVICES,Revenue,PRIVATE,EXTERNAL RESIDENTIAL CARE,635657,130245330,16-Apr-15,"3,955.52 ",THE LEO TRUST,SP0000908
WANDSWORTH COUNCIL,ASC,SOCIAL SERVICES,Revenue,PRIVATE,EXTERNAL RESIDENTIAL CARE,642774,130245330,24-Apr-15,"7,271.56 ",CORICH COMMUNITY CARE LTD,SP0000915
WANDSWORTH COUNCIL,ASC,SOCIAL SERVICES,Revenue,PRIVATE,EXTERNAL RESIDENTIAL CARE,635653,130245330,16-Apr-15,"2,327.92 ",HILL PARK AUTISTIC TRUST,SP0000926
WANDSWORTH COUNCIL,ASC,SOCIAL SERVICES,Revenue,PRIVATE,EXTERNAL RESIDENTIAL CARE,632462,130245330,14-Apr-15,"2,930.00 ",MISSION CARE,SP0000958
WANDSWORTH COUNCIL,ASC,SOCIAL SERVICES,Revenue,PRIVATE,EXTERNAL RESIDENTIAL CARE,642745,130245330,24-Apr-15,"3,990.54 ",CHERRY LODGE,SP0000965
WANDSWORTH COUNCIL,ASC,SOCIAL SERVICES,Revenue,PRIVATE,EXTERNAL RESIDENTIAL CARE,627474,130245330,02-Apr-15,"6,493.16 ",RIDGEWOOD CARE SERVICES LTD,SP0000969
WANDSWORTH COUNCIL,ASC,SOCIAL SERVICES,Revenue,PRIVATE,EXTERNAL RESIDENTIAL CARE,628224,130245330,07-Apr-15,"4,306.03 ",LEONARD CHESHIRE,SP0000976
WANDSWORTH COUNCIL,ASC,SOCIAL SERVICES,Revenue,PRIVATE,EXTERNAL RESIDENTIAL CARE,628226,130245330,07-Apr-15,"6,323.91 ",LEONARD CHESHIRE,SP0000976
WANDSWORTH COUNCIL,ASC,SOCIAL SERVICES,Revenue,PRIVATE,EXTERNAL RESIDENTIAL CARE,635649,130245330,16-Apr-15,"5,211.56 ",CREDITON CARE & SUPPORT HOMES,SP0000998
WANDSWORTH COUNCIL,ASC,SOCIAL SERVICES,Revenue,PRIVATE,EXTERNAL RESIDENTIAL CARE,632436,130245330,14-Apr-15,"4,613.60 ",LOTUS CARE HOME LTD,SP0001006
WANDSWORTH COUNCIL,ASC,SOCIAL SERVICES,Revenue,PRIVATE,EXTERNAL RESIDENTIAL CARE,628206,130245330,07-Apr-15,"5,245.12 ",ST ELIZABETHS CENTRE,SP0001019
WANDSWORTH COUNCIL,ASC,SOCIAL SERVICES,Revenue,PRIVATE,EXTERNAL RESIDENTIAL CARE,627467,130245330,02-Apr-15,"4,895.44 ",ST ELIZABETHS CENTRE,SP0001019
WANDSWORTH COUNCIL,ASC,SOCIAL SERVICES,Revenue,PRIVATE,EXTERNAL RESIDENTIAL CARE,627468,130245330,02-Apr-15,"5,419.95 ",ST ELIZABETHS CENTRE,SP0001019
WANDSWORTH COUNCIL,ASC,SOCIAL SERVICES,Revenue,PRIVATE,EXTERNAL RESIDENTIAL CARE,642752,130245330,24-Apr-15,"5,187.85 ",M JINGREE T/A SUNLIGHT HOUSE,SP0001024
WANDSWORTH COUNCIL,ASC,SOCIAL SERVICES,Revenue,PRIVATE,EXTERNAL RESIDENTIAL CARE,628204,130245330,07-Apr-15,"4,685.80 ",M JINGREE T/A SUNLIGHT HOUSE,SP0001024
WANDSWORTH COUNCIL,ASC,SOCIAL SERVICES,Revenue,PRIVATE,EXTERNAL RESIDENTIAL CARE,635654,130245330,16-Apr-15,"3,705.85 ",THE HOME FARM TRUST LTD,SP0001048
WANDSWORTH COUNCIL,ASC,SOCIAL SERVICES,Revenue,PRIVATE,EXTERNAL RESIDENTIAL CARE,635646,130245330,16-Apr-15,"2,323.00 ",THE HOME FARM TRUST LTD,SP0001048
WANDSWORTH COUNCIL,ASC,SOCIAL SERVICES,Revenue,PRIVATE,EXTERNAL RESIDENTIAL CARE,635645,130245330,16-Apr-15,"2,742.08 ",THE HOME FARM TRUST LTD,SP0001048
WANDSWORTH COUNCIL,ASC,SOCIAL SERVICES,Revenue,PRIVATE,EXTERNAL RESIDENTIAL CARE,635647,130245330,16-Apr-15,"2,450.35 ",THE HOME FARM TRUST LTD,SP0001048
WANDSWORTH COUNCIL,ASC,SOCIAL SERVICES,Revenue,PRIVATE,EXTERNAL RESIDENTIAL CARE,635652,130245330,16-Apr-15,"4,628.88 ",ALLIED CARE (MHS) LTD,SP0001069
WANDSWORTH COUNCIL,ASC,SOCIAL SERVICES,Revenue,PRIVATE,EXTERNAL RESIDENTIAL CARE,635651,130245330,16-Apr-15,"4,839.00 ",ALLIED CARE (MHS) LTD,SP0001069
WANDSWORTH COUNCIL,ASC,SOCIAL SERVICES,Revenue,PRIVATE,EXTERNAL RESIDENTIAL CARE,635658,130245330,16-Apr-15,"1,871.52 ",SAXON COURT,SP0001100
WANDSWORTH COUNCIL,ASC,SOCIAL SERVICES,Revenue,PRIVATE,EXTERNAL RESIDENTIAL CARE,627562,130245330,02-Apr-15,"12,485.03 ",ILG LTD,SP0001103
WANDSWORTH COUNCIL,ASC,SOCIAL SERVICES,Revenue,PRIVATE,EXTERNAL RESIDENTIAL CARE,644021,130245330,28-Apr-15,"12,080.15 ",ILG LTD,SP0001103
WANDSWORTH COUNCIL,ASC,SOCIAL SERVICES,Revenue,PRIVATE,EXTERNAL RESIDENTIAL CARE,628202,130245330,07-Apr-15,"3,671.24 ",TOTTERDOWN,SP0001113
WANDSWORTH COUNCIL,ASC,SOCIAL SERVICES,Revenue,PRIVATE,EXTERNAL RESIDENTIAL CARE,628201,130245330,07-Apr-15,"7,395.80 ",TOTTERDOWN,SP0001113
WANDSWORTH COUNCIL,ASC,SOCIAL SERVICES,Revenue,PRIVATE,EXTERNAL RESIDENTIAL CARE,635656,130245330,16-Apr-15,"5,987.06 ",SUSSEX HEALTH CARE,SP0001115
WANDSWORTH COUNCIL,ASC,SOCIAL SERVICES,Revenue,PRIVATE,EXTERNAL RESIDENTIAL CARE,635643,130245330,16-Apr-15,"7,104.65 ",SUSSEX HEALTH CARE,SP0001115
WANDSWORTH COUNCIL,ASC,SOCIAL SERVICES,Revenue,PRIVATE,EXTERNAL RESIDENTIAL CARE,635634,130245330,16-Apr-15,"6,461.66 ",HOME FROM HOME CARE LIMITED,SP0001373
WANDSWORTH COUNCIL,ASC,SOCIAL SERVICES,Revenue,PRIVATE,EXTERNAL RESIDENTIAL CARE,627451,130245330,02-Apr-15,"2,838.51 ",LARKFIELD HALL LTD T/A PEPENBURY,SP0001378
WANDSWORTH COUNCIL,ASC,SOCIAL SERVICES,Revenue,PRIVATE,EXTERNAL RESIDENTIAL CARE,627452,130245330,02-Apr-15,887.04 ,LARKFIELD HALL LTD T/A PEPENBURY,SP0001378
WANDSWORTH COUNCIL,ASC,SOCIAL SERVICES,Revenue,PRIVATE,EXTERNAL RESIDENTIAL CARE,632488,130245330,14-Apr-15,"8,498.07 ",ROOKERY HOVE PRIORY,SP0001498
WANDSWORTH COUNCIL,ASC,SOCIAL SERVICES,Revenue,PRIVATE,EXTERNAL RESIDENTIAL CARE,644040,130245330,28-Apr-15,"7,523.88 ",MCCH SOCIETY LIMITED,SP0001531
WANDSWORTH COUNCIL,ASC,SOCIAL SERVICES,Revenue,PRIVATE,EXTERNAL RESIDENTIAL CARE,644043,130245330,28-Apr-15,"7,523.88 ",MCCH SOCIETY LIMITED,SP0001531
WANDSWORTH COUNCIL,ASC,SOCIAL SERVICES,Revenue,PRIVATE,EXTERNAL RESIDENTIAL CARE,644042,130245330,28-Apr-15,"7,523.88 ",MCCH SOCIETY LIMITED,SP0001531
WANDSWORTH COUNCIL,ASC,SOCIAL SERVICES,Revenue,PRIVATE,EXTERNAL RESIDENTIAL CARE,644041,130245330,28-Apr-15,"7,523.88 ",MCCH SOCIETY LIMITED,SP0001531
WANDSWORTH COUNCIL,ASC,SOCIAL SERVICES,Revenue,PRIVATE,EXTERNAL RESIDENTIAL CARE,635697,130245330,16-Apr-15,"4,233.91 ",NUTLEY HALL LTD,SP0001581
WANDSWORTH COUNCIL,ASC,SOCIAL SERVICES,Revenue,PRIVATE,EXTERNAL RESIDENTIAL CARE,632430,130245330,14-Apr-15,"3,774.94 ",CRAEGMOOR OLD RECTORY BREDE PRIORY,SP0001621
WANDSWORTH COUNCIL,ASC,SOCIAL SERVICES,Revenue,PRIVATE,EXTERNAL RESIDENTIAL CARE,635642,130245330,16-Apr-15,"4,931.53 ",ACH OF LONDON LLP,SP0001688
WANDSWORTH COUNCIL,ASC,SOCIAL SERVICES,Revenue,PRIVATE,EXTERNAL RESIDENTIAL CARE,628205,130245330,07-Apr-15,"8,257.33 ",ACH OF LONDON LLP,SP0001688
WANDSWORTH COUNCIL,ASC,SOCIAL SERVICES,Revenue,PRIVATE,EXTERNAL RESIDENTIAL CARE,635685,130245330,24-Apr-15,"10,219.46 ",SALISBURY SUPPORT 4 AUTISM LTD,SP0001691
WANDSWORTH COUNCIL,ASC,SOCIAL SERVICES,Revenue,PRIVATE,EXTERNAL RESIDENTIAL CARE,643648,130245330,27-Apr-15,"9,230.48 ",SALISBURY SUPPORT 4 AUTISM LTD,SP0001691
WANDSWORTH COUNCIL,ASC,SOCIAL SERVICES,Revenue,PRIVATE,EXTERNAL RESIDENTIAL CARE,642783,130245330,24-Apr-15,"6,904.07 ",PATHWAY HEALTHCARE,SP0001779
WANDSWORTH COUNCIL,ASC,SOCIAL SERVICES,Revenue,PRIVATE,EXTERNAL RESIDENTIAL CARE,642782,130245330,24-Apr-15,"7,336.93 ",PATHWAY HEALTHCARE,SP0001779
WANDSWORTH COUNCIL,ASC,SOCIAL SERVICES,Revenue,PRIVATE,EXTERNAL RESIDENTIAL CARE,645874,130245330,30-Apr-15,"11,057.48 ",KISIMUL GROUP LTD,SP0002487
WANDSWORTH COUNCIL,ASC,SOCIAL SERVICES,Revenue,PRIVATE,EXTERNAL RESIDENTIAL CARE,627517,130245330,02-Apr-15,"6,408.96 ",THE BRANDON TRUST,SP0005337
WANDSWORTH COUNCIL,ASC,SOCIAL SERVICES,Revenue,PRIVATE,EXTERNAL RESIDENTIAL CARE,627553,130245330,02-Apr-15,"2,755.56 ",HASTINGS & BEXHILL MENCAP SOCIETY,SP0005380
WANDSWORTH COUNCIL,ASC,SOCIAL SERVICES,Revenue,PRIVATE,EXTERNAL RESIDENTIAL CARE,632396,130245330,14-Apr-15,"4,035.96 ",PARK LODGE SOLUTIONS LTD,SP0006663
WANDSWORTH COUNCIL,ASC,SOCIAL SERVICES,Revenue,PRIVATE,EXTERNAL RESIDENTIAL CARE,627510,130245330,02-Apr-15,"7,501.72 ",NORCREST (2000) HOME LTD,SP0008343
WANDSWORTH COUNCIL,ASC,SOCIAL SERVICES,Revenue,PRIVATE,EXTERNAL RESIDENTIAL CARE,641672,130245330,24-Apr-15,"2,618.36 ",COUNTRY COURT CARE,SP0009215
WANDSWORTH COUNCIL,ASC,SOCIAL SERVICES,Revenue,PRIVATE,RESPITE CARE AT HOME -VOUCHERS,635768,130245510,16-Apr-15,"1,355.04 ",RAINBOW MEDICAL SERVICES,SP0000037
WANDSWORTH COUNCIL,ASC,SOCIAL SERVICES,Revenue,PRIVATE,ONE TO ONE CARE,635853,130246220,16-Apr-15,"1,880.82 ",RAINBOW MEDICAL SERVICES,SP0000037
WANDSWORTH COUNCIL,ASC,SOCIAL SERVICES,Revenue,PRIVATE,ONE TO ONE CARE,635851,130246220,16-Apr-15,"1,563.60 ",RAINBOW MEDICAL SERVICES,SP0000037
WANDSWORTH COUNCIL,ASC,SOCIAL SERVICES,Revenue,PRIVATE,ONE TO ONE CARE,635847,130246220,16-Apr-15,457.20 ,RAINBOW MEDICAL SERVICES,SP0000037
WANDSWORTH COUNCIL,ASC,SOCIAL SERVICES,Revenue,PRIVATE,ONE TO ONE CARE,635849,130246220,16-Apr-15,"2,133.60 ",RAINBOW MEDICAL SERVICES,SP0000037
WANDSWORTH COUNCIL,ASC,SOCIAL SERVICES,Revenue,PRIVATE,ONE TO ONE CARE,644167,130246220,28-Apr-15,979.69 ,FRANCES TAYLOR FOUNDATION,SP0000142
WANDSWORTH COUNCIL,ASC,SOCIAL SERVICES,Revenue,PRIVATE,ONE TO ONE CARE,632823,130246220,14-Apr-15,"1,407.20 ",ASIAN ELDERS SUPPORT SCHEME,SP0000190
WANDSWORTH COUNCIL,ASC,SOCIAL SERVICES,Revenue,PRIVATE,ONE TO ONE CARE,632824,130246220,14-Apr-15,"1,559.00 ",ASIAN ELDERS SUPPORT SCHEME,SP0000190
WANDSWORTH COUNCIL,ASC,SOCIAL SERVICES,Revenue,PRIVATE,ONE TO ONE CARE,628812,130246220,08-Apr-15,693.78 ,ST MARYS RESIDENTIAL HOME,SP0000215
WANDSWORTH COUNCIL,ASC,SOCIAL SERVICES,Revenue,PRIVATE,ONE TO ONE CARE,628813,130246220,08-Apr-15,648.83 ,ST MARYS RESIDENTIAL HOME,SP0000215
WANDSWORTH COUNCIL,ASC,SOCIAL SERVICES,Revenue,PRIVATE,ONE TO ONE CARE,632845,130246220,14-Apr-15,"1,350.52 ",MACINTYRE CARE,SP0000473
WANDSWORTH COUNCIL,ASC,SOCIAL SERVICES,Revenue,PRIVATE,ONE TO ONE CARE,632844,130246220,14-Apr-15,"1,350.52 ",MACINTYRE CARE,SP0000473
WANDSWORTH COUNCIL,ASC,SOCIAL SERVICES,Revenue,PRIVATE,ONE TO ONE CARE,632847,130246220,14-Apr-15,"1,350.52 ",MACINTYRE CARE,SP0000473
WANDSWORTH COUNCIL,ASC,SOCIAL SERVICES,Revenue,PRIVATE,ONE TO ONE CARE,632850,130246220,14-Apr-15,694.56 ,MACINTYRE CARE,SP0000473
WANDSWORTH COUNCIL,ASC,SOCIAL SERVICES,Revenue,PRIVATE,ONE TO ONE CARE,632846,130246220,14-Apr-15,"1,910.04 ",MACINTYRE CARE,SP0000473
WANDSWORTH COUNCIL,ASC,SOCIAL SERVICES,Revenue,PRIVATE,ONE TO ONE CARE,645939,130246220,30-Apr-15,"2,293.92 ",METROPOLITAN HOUSING TRUST,SP0000626
WANDSWORTH COUNCIL,ASC,SOCIAL SERVICES,Revenue,PRIVATE,ONE TO ONE CARE,639268,130246220,21-Apr-15,"3,171.84 ",METROPOLITAN HOUSING TRUST,SP0000626
WANDSWORTH COUNCIL,ASC,SOCIAL SERVICES,Revenue,PRIVATE,ONE TO ONE CARE,635089,130246220,15-Apr-15,"2,378.88 ",METROPOLITAN HOUSING TRUST,SP0000626
WANDSWORTH COUNCIL,ASC,SOCIAL SERVICES,Revenue,PRIVATE,ONE TO ONE CARE,639271,130246220,21-Apr-15,"2,039.04 ",METROPOLITAN HOUSING TRUST,SP0000626
WANDSWORTH COUNCIL,ASC,SOCIAL SERVICES,Revenue,PRIVATE,ONE TO ONE CARE,628268,130246220,07-Apr-15,"1,597.44 ",TOTTERDOWN,SP0001113
WANDSWORTH COUNCIL,ASC,SOCIAL SERVICES,Revenue,PRIVATE,ONE TO ONE CARE,632785,130246220,14-Apr-15,708.24 ,FRONTIER SUPPORT SERVICES LTD,SP0001132
WANDSWORTH COUNCIL,ASC,SOCIAL SERVICES,Revenue,PRIVATE,ONE TO ONE CARE,632781,130246220,14-Apr-15,177.00 ,FRONTIER SUPPORT SERVICES LTD,SP0001132
WANDSWORTH COUNCIL,ASC,SOCIAL SERVICES,Revenue,PRIVATE,ONE TO ONE CARE,632826,130246220,14-Apr-15,976.56 ,HARROW MENCAP,SP0001347
WANDSWORTH COUNCIL,ASC,SOCIAL SERVICES,Revenue,PRIVATE,ONE TO ONE CARE,628815,130246220,08-Apr-15,901.44 ,HARROW MENCAP,SP0001347
WANDSWORTH COUNCIL,ASC,SOCIAL SERVICES,Revenue,PRIVATE,ONE TO ONE CARE,628814,130246220,08-Apr-15,901.44 ,HARROW MENCAP,SP0001347
WANDSWORTH COUNCIL,ASC,SOCIAL SERVICES,Revenue,PRIVATE,ONE TO ONE CARE,632825,130246220,14-Apr-15,"3,214.29 ",CRAEGMOOR OLD RECTORY BREDE PRIORY,SP0001621
WANDSWORTH COUNCIL,ASC,SOCIAL SERVICES,Revenue,PRIVATE,ONE TO ONE CARE,635825,130246220,16-Apr-15,"1,953.00 ",ACH OF LONDON LLP,SP0001688
WANDSWORTH COUNCIL,ASC,SOCIAL SERVICES,Revenue,PRIVATE,ONE TO ONE CARE,627836,130246220,02-Apr-15,331.20 ,THE BRANDON TRUST,SP0005337
WANDSWORTH COUNCIL,ASC,SOCIAL SERVICES,Revenue,PRIVATE,ONE TO ONE CARE,627766,130246220,02-Apr-15,"2,450.88 ",THE BRANDON TRUST,SP0005337
WANDSWORTH COUNCIL,ASC,SOCIAL SERVICES,Revenue,PRIVATE,ONE TO ONE CARE,627784,130246220,02-Apr-15,"1,987.20 ",THE BRANDON TRUST,SP0005337
WANDSWORTH COUNCIL,ASC,SOCIAL SERVICES,Revenue,PRIVATE,ONE TO ONE CARE,627763,130246220,02-Apr-15,"1,312.00 ",THE BRANDON TRUST,SP0005337
WANDSWORTH COUNCIL,ASC,SOCIAL SERVICES,Revenue,PRIVATE,ONE TO ONE CARE,627834,130246220,02-Apr-15,331.20 ,THE BRANDON TRUST,SP0005337
WANDSWORTH COUNCIL,ASC,SOCIAL SERVICES,Revenue,PRIVATE,ONE TO ONE CARE,627822,130246220,02-Apr-15,600.04 ,THE BRANDON TRUST,SP0005337
WANDSWORTH COUNCIL,ASC,SOCIAL SERVICES,Revenue,PRIVATE,ONE TO ONE CARE,627731,130246220,02-Apr-15,324.00 ,THE BRANDON TRUST,SP0005337
WANDSWORTH COUNCIL,ASC,SOCIAL SERVICES,Revenue,PRIVATE,ONE TO ONE CARE,642112,130246220,24-Apr-15,"11,064.69 ",CAMBIAN WHINFELL SCHOOL LTD,SP0008913
WANDSWORTH COUNCIL,ASC,SOCIAL SERVICES,Revenue,PRIVATE,ONE TO ONE CARE,642110,130246220,24-Apr-15,"10,942.20 ",CAMBIAN WHINFELL SCHOOL LTD,SP0008913
WANDSWORTH COUNCIL,ASC,SOCIAL SERVICES,Revenue,PRIVATE,ONE TO ONE CARE,642111,130246220,24-Apr-15,"7,781.12 ",CAMBIAN WHINFELL SCHOOL LTD,SP0008913
WANDSWORTH COUNCIL,ASC,SOCIAL SERVICES,Revenue,VOL ASS,SUPPORTED HOUSING PROGRAMME,632853,130248030,14-Apr-15,"5,543.72 ",NORWOOD SCHOOLS LTD,SP0000332
WANDSWORTH COUNCIL,ASC,SOCIAL SERVICES,Revenue,VOL ASS,SUPPORTED HOUSING PROGRAMME,645958,130248030,30-Apr-15,"5,543.72 ",NORWOOD SCHOOLS LTD,SP0000332
WANDSWORTH COUNCIL,ASC,SOCIAL SERVICES,Revenue,VOL ASS,SUPPORTED HOUSING PROGRAMME,628788,130248030,08-Apr-15,"3,885.44 ",LIFEWAYS COMMUNITY CARE LTD,SP0000364
WANDSWORTH COUNCIL,ASC,SOCIAL SERVICES,Revenue,VOL ASS,SUPPORTED HOUSING PROGRAMME,644121,130248030,28-Apr-15,"7,336.00 ",LIFEWAYS COMMUNITY CARE LTD,SP0000364
WANDSWORTH COUNCIL,ASC,SOCIAL SERVICES,Revenue,VOL ASS,SUPPORTED HOUSING PROGRAMME,644162,130248030,28-Apr-15,"2,596.04 ",LIFEWAYS COMMUNITY CARE LTD,SP0000364
WANDSWORTH COUNCIL,ASC,SOCIAL SERVICES,Revenue,VOL ASS,SUPPORTED HOUSING PROGRAMME,628810,130248030,08-Apr-15,"2,498.80 ",LIFEWAYS COMMUNITY CARE LTD,SP0000364
WANDSWORTH COUNCIL,ASC,SOCIAL SERVICES,Revenue,VOL ASS,SUPPORTED HOUSING PROGRAMME,628811,130248030,08-Apr-15,"2,244.28 ",LIFEWAYS COMMUNITY CARE LTD,SP0000364
WANDSWORTH COUNCIL,ASC,SOCIAL SERVICES,Revenue,VOL ASS,SUPPORTED HOUSING PROGRAMME,632822,130248030,14-Apr-15,"2,345.32 ",LIFEWAYS COMMUNITY CARE LTD,SP0000364
WANDSWORTH COUNCIL,ASC,SOCIAL SERVICES,Revenue,VOL ASS,SUPPORTED HOUSING PROGRAMME,628809,130248030,08-Apr-15,"2,244.28 ",LIFEWAYS COMMUNITY CARE LTD,SP0000364
WANDSWORTH COUNCIL,ASC,SOCIAL SERVICES,Revenue,VOL ASS,SUPPORTED HOUSING PROGRAMME,628789,130248030,08-Apr-15,"2,166.24 ",LIFEWAYS COMMUNITY CARE LTD,SP0000364
WANDSWORTH COUNCIL,ASC,SOCIAL SERVICES,Revenue,VOL ASS,SUPPORTED HOUSING PROGRAMME,632821,130248030,14-Apr-15,"2,242.76 ",LIFEWAYS COMMUNITY CARE LTD,SP0000364
WANDSWORTH COUNCIL,ASC,SOCIAL SERVICES,Revenue,VOL ASS,SUPPORTED HOUSING PROGRAMME,628799,130248030,08-Apr-15,"2,551.16 ",LIFEWAYS COMMUNITY CARE LTD,SP0000364
WANDSWORTH COUNCIL,ASC,SOCIAL SERVICES,Revenue,VOL ASS,SUPPORTED HOUSING PROGRAMME,628863,130248030,08-Apr-15,"1,982.04 ",LIFEWAYS COMMUNITY CARE LTD,SP0000364
WANDSWORTH COUNCIL,ASC,SOCIAL SERVICES,Revenue,VOL ASS,SUPPORTED HOUSING PROGRAMME,628805,130248030,08-Apr-15,"2,025.24 ",LIFEWAYS COMMUNITY CARE LTD,SP0000364
WANDSWORTH COUNCIL,ASC,SOCIAL SERVICES,Revenue,VOL ASS,SUPPORTED HOUSING PROGRAMME,628798,130248030,08-Apr-15,"2,603.48 ",LIFEWAYS COMMUNITY CARE LTD,SP0000364
WANDSWORTH COUNCIL,ASC,SOCIAL SERVICES,Revenue,VOL ASS,SUPPORTED HOUSING PROGRAMME,628800,130248030,08-Apr-15,"3,335.96 ",LIFEWAYS COMMUNITY CARE LTD,SP0000364
WANDSWORTH COUNCIL,ASC,SOCIAL SERVICES,Revenue,VOL ASS,SUPPORTED HOUSING PROGRAMME,628801,130248030,08-Apr-15,"2,603.48 ",LIFEWAYS COMMUNITY CARE LTD,SP0000364
WANDSWORTH COUNCIL,ASC,SOCIAL SERVICES,Revenue,VOL ASS,SUPPORTED HOUSING PROGRAMME,628802,130248030,08-Apr-15,"2,341.88 ",LIFEWAYS COMMUNITY CARE LTD,SP0000364
WANDSWORTH COUNCIL,ASC,SOCIAL SERVICES,Revenue,VOL ASS,SUPPORTED HOUSING PROGRAMME,628803,130248030,08-Apr-15,"2,551.16 ",LIFEWAYS COMMUNITY CARE LTD,SP0000364
WANDSWORTH COUNCIL,ASC,SOCIAL SERVICES,Revenue,VOL ASS,SUPPORTED HOUSING PROGRAMME,628804,130248030,08-Apr-15,"2,025.24 ",LIFEWAYS COMMUNITY CARE LTD,SP0000364
WANDSWORTH COUNCIL,ASC,SOCIAL SERVICES,Revenue,VOL ASS,SUPPORTED HOUSING PROGRAMME,628795,130248030,08-Apr-15,"1,920.64 ",LIFEWAYS COMMUNITY CARE LTD,SP0000364
WANDSWORTH COUNCIL,ASC,SOCIAL SERVICES,Revenue,VOL ASS,SUPPORTED HOUSING PROGRAMME,628794,130248030,08-Apr-15,"1,736.44 ",LIFEWAYS COMMUNITY CARE LTD,SP0000364
WANDSWORTH COUNCIL,ASC,SOCIAL SERVICES,Revenue,VOL ASS,SUPPORTED HOUSING PROGRAMME,628806,130248030,08-Apr-15,"2,025.24 ",LIFEWAYS COMMUNITY CARE LTD,SP0000364
WANDSWORTH COUNCIL,ASC,SOCIAL SERVICES,Revenue,VOL ASS,SUPPORTED HOUSING PROGRAMME,628807,130248030,08-Apr-15,"2,518.08 ",LIFEWAYS COMMUNITY CARE LTD,SP0000364
WANDSWORTH COUNCIL,ASC,SOCIAL SERVICES,Revenue,VOL ASS,SUPPORTED HOUSING PROGRAMME,628793,130248030,08-Apr-15,"2,411.84 ",LIFEWAYS COMMUNITY CARE LTD,SP0000364
WANDSWORTH COUNCIL,ASC,SOCIAL SERVICES,Revenue,VOL ASS,SUPPORTED HOUSING PROGRAMME,628792,130248030,08-Apr-15,"2,227.64 ",LIFEWAYS COMMUNITY CARE LTD,SP0000364
WANDSWORTH COUNCIL,ASC,SOCIAL SERVICES,Revenue,VOL ASS,SUPPORTED HOUSING PROGRAMME,628791,130248030,08-Apr-15,"1,982.04 ",LIFEWAYS COMMUNITY CARE LTD,SP0000364
WANDSWORTH COUNCIL,ASC,SOCIAL SERVICES,Revenue,VOL ASS,SUPPORTED HOUSING PROGRAMME,628808,130248030,08-Apr-15,"2,025.24 ",LIFEWAYS COMMUNITY CARE LTD,SP0000364
WANDSWORTH COUNCIL,ASC,SOCIAL SERVICES,Revenue,VOL ASS,SUPPORTED HOUSING PROGRAMME,628797,130248030,08-Apr-15,"3,335.96 ",LIFEWAYS COMMUNITY CARE LTD,SP0000364
WANDSWORTH COUNCIL,ASC,SOCIAL SERVICES,Revenue,VOL ASS,SUPPORTED HOUSING PROGRAMME,642113,130248030,24-Apr-15,"3,210.04 ",LIFEWAYS COMMUNITY CARE LTD,SP0000364
WANDSWORTH COUNCIL,ASC,SOCIAL SERVICES,Revenue,VOL ASS,SUPPORTED HOUSING PROGRAMME,632818,130248030,14-Apr-15,"1,142.40 ",LIFEWAYS COMMUNITY CARE LTD,SP0000364
WANDSWORTH COUNCIL,ASC,SOCIAL SERVICES,Revenue,VOL ASS,SUPPORTED HOUSING PROGRAMME,642114,130248030,24-Apr-15,"2,867.20 ",LIFEWAYS COMMUNITY CARE LTD,SP0000364
WANDSWORTH COUNCIL,ASC,SOCIAL SERVICES,Revenue,VOL ASS,SUPPORTED HOUSING PROGRAMME,628862,130248030,08-Apr-15,"2,227.64 ",LIFEWAYS COMMUNITY CARE LTD,SP0000364
WANDSWORTH COUNCIL,ASC,SOCIAL SERVICES,Revenue,VOL ASS,SUPPORTED HOUSING PROGRAMME,628790,130248030,08-Apr-15,"2,289.04 ",LIFEWAYS COMMUNITY CARE LTD,SP0000364
WANDSWORTH COUNCIL,ASC,SOCIAL SERVICES,Revenue,VOL ASS,SUPPORTED HOUSING PROGRAMME,632820,130248030,14-Apr-15,"1,444.56 ",LIFEWAYS COMMUNITY CARE LTD,SP0000364
WANDSWORTH COUNCIL,ASC,SOCIAL SERVICES,Revenue,VOL ASS,SUPPORTED HOUSING PROGRAMME,635826,130248030,16-Apr-15,"8,080.68 ",CHOICE SUPPORT,SP0000398
WANDSWORTH COUNCIL,ASC,SOCIAL SERVICES,Revenue,VOL ASS,SUPPORTED HOUSING PROGRAMME,635648,130248030,16-Apr-15,"7,972.24 ",CHOICE SUPPORT,SP0000398
WANDSWORTH COUNCIL,ASC,SOCIAL SERVICES,Revenue,VOL ASS,SUPPORTED HOUSING PROGRAMME,635816,130248030,16-Apr-15,"1,687.76 ",C M CARE LTD,SP0000455
WANDSWORTH COUNCIL,ASC,SOCIAL SERVICES,Revenue,VOL ASS,SUPPORTED HOUSING PROGRAMME,642728,130248030,24-Apr-15,643.60 ,C M CARE LTD,SP0000455
WANDSWORTH COUNCIL,ASC,SOCIAL SERVICES,Revenue,VOL ASS,SUPPORTED HOUSING PROGRAMME,632800,130248030,14-Apr-15,"1,748.04 ",ROYAL MENCAP SOCIETY,SP0000842
WANDSWORTH COUNCIL,ASC,SOCIAL SERVICES,Revenue,VOL ASS,SUPPORTED HOUSING PROGRAMME,632799,130248030,14-Apr-15,"4,143.72 ",ROYAL MENCAP SOCIETY,SP0000842
WANDSWORTH COUNCIL,ASC,SOCIAL SERVICES,Revenue,VOL ASS,SUPPORTED HOUSING PROGRAMME,632798,130248030,14-Apr-15,"3,273.32 ",ROYAL MENCAP SOCIETY,SP0000842
WANDSWORTH COUNCIL,ASC,SOCIAL SERVICES,Revenue,VOL ASS,SUPPORTED HOUSING PROGRAMME,632795,130248030,14-Apr-15,"2,491.28 ",ROYAL MENCAP SOCIETY,SP0000842
WANDSWORTH COUNCIL,ASC,SOCIAL SERVICES,Revenue,VOL ASS,SUPPORTED HOUSING PROGRAMME,632794,130248030,14-Apr-15,"2,600.24 ",ROYAL MENCAP SOCIETY,SP0000842
WANDSWORTH COUNCIL,ASC,SOCIAL SERVICES,Revenue,VOL ASS,SUPPORTED HOUSING PROGRAMME,632793,130248030,14-Apr-15,"2,251.52 ",ROYAL MENCAP SOCIETY,SP0000842
WANDSWORTH COUNCIL,ASC,SOCIAL SERVICES,Revenue,VOL ASS,SUPPORTED HOUSING PROGRAMME,632797,130248030,14-Apr-15,"7,069.80 ",ROYAL MENCAP SOCIETY,SP0000842
WANDSWORTH COUNCIL,ASC,SOCIAL SERVICES,Revenue,VOL ASS,SUPPORTED HOUSING PROGRAMME,644140,130248030,28-Apr-15,"11,760.00 ",ACT TOO LTD,SP0000855
WANDSWORTH COUNCIL,ASC,SOCIAL SERVICES,Revenue,VOL ASS,SUPPORTED HOUSING PROGRAMME,644144,130248030,28-Apr-15,"1,320.00 ",ACT TOO LTD,SP0000855
WANDSWORTH COUNCIL,ASC,SOCIAL SERVICES,Revenue,VOL ASS,SUPPORTED HOUSING PROGRAMME,644141,130248030,28-Apr-15,"1,800.00 ",ACT TOO LTD,SP0000855
WANDSWORTH COUNCIL,ASC,SOCIAL SERVICES,Revenue,VOL ASS,SUPPORTED HOUSING PROGRAMME,644149,130248030,28-Apr-15,"2,160.00 ",ACT TOO LTD,SP0000855
WANDSWORTH COUNCIL,ASC,SOCIAL SERVICES,Revenue,VOL ASS,SUPPORTED HOUSING PROGRAMME,644139,130248030,28-Apr-15,600.00 ,ACT TOO LTD,SP0000855
WANDSWORTH COUNCIL,ASC,SOCIAL SERVICES,Revenue,VOL ASS,SUPPORTED HOUSING PROGRAMME,642088,130248030,24-Apr-15,930.00 ,ACT TOO LTD,SP0000855
WANDSWORTH COUNCIL,ASC,SOCIAL SERVICES,Revenue,VOL ASS,SUPPORTED HOUSING PROGRAMME,642109,130248030,24-Apr-15,"1,568.00 ",ACT TOO LTD,SP0000855
WANDSWORTH COUNCIL,ASC,SOCIAL SERVICES,Revenue,VOL ASS,SUPPORTED HOUSING PROGRAMME,642097,130248030,24-Apr-15,700.00 ,ACT TOO LTD,SP0000855
WANDSWORTH COUNCIL,ASC,SOCIAL SERVICES,Revenue,VOL ASS,SUPPORTED HOUSING PROGRAMME,642094,130248030,24-Apr-15,"1,440.00 ",ACT TOO LTD,SP0000855
WANDSWORTH COUNCIL,ASC,SOCIAL SERVICES,Revenue,VOL ASS,SUPPORTED HOUSING PROGRAMME,642089,130248030,24-Apr-15,"1,680.00 ",ACT TOO LTD,SP0000855
WANDSWORTH COUNCIL,ASC,SOCIAL SERVICES,Revenue,VOL ASS,SUPPORTED HOUSING PROGRAMME,642092,130248030,24-Apr-15,"1,350.00 ",ACT TOO LTD,SP0000855
WANDSWORTH COUNCIL,ASC,SOCIAL SERVICES,Revenue,VOL ASS,SUPPORTED HOUSING PROGRAMME,642091,130248030,24-Apr-15,"1,710.00 ",ACT TOO LTD,SP0000855
WANDSWORTH COUNCIL,ASC,SOCIAL SERVICES,Revenue,VOL ASS,SUPPORTED HOUSING PROGRAMME,642090,130248030,24-Apr-15,720.00 ,ACT TOO LTD,SP0000855
WANDSWORTH COUNCIL,ASC,SOCIAL SERVICES,Revenue,VOL ASS,SUPPORTED HOUSING PROGRAMME,642073,130248030,24-Apr-15,784.00 ,ACT TOO LTD,SP0000855
WANDSWORTH COUNCIL,ASC,SOCIAL SERVICES,Revenue,VOL ASS,SUPPORTED HOUSING PROGRAMME,642086,130248030,24-Apr-15,"1,260.00 ",ACT TOO LTD,SP0000855
WANDSWORTH COUNCIL,ASC,SOCIAL SERVICES,Revenue,VOL ASS,SUPPORTED HOUSING PROGRAMME,642087,130248030,24-Apr-15,990.00 ,ACT TOO LTD,SP0000855
WANDSWORTH COUNCIL,ASC,SOCIAL SERVICES,Revenue,VOL ASS,SUPPORTED HOUSING PROGRAMME,632779,130248030,14-Apr-15,"1,097.52 ",FRONTIER SUPPORT SERVICES LTD,SP0001132
WANDSWORTH COUNCIL,ASC,SOCIAL SERVICES,Revenue,VOL ASS,SUPPORTED HOUSING PROGRAMME,632786,130248030,14-Apr-15,"1,864.88 ",FRONTIER SUPPORT SERVICES LTD,SP0001132
WANDSWORTH COUNCIL,ASC,SOCIAL SERVICES,Revenue,VOL ASS,SUPPORTED HOUSING PROGRAMME,632778,130248030,14-Apr-15,"1,251.12 ",FRONTIER SUPPORT SERVICES LTD,SP0001132
WANDSWORTH COUNCIL,ASC,SOCIAL SERVICES,Revenue,VOL ASS,SUPPORTED HOUSING PROGRAMME,632788,130248030,14-Apr-15,"1,353.32 ",FRONTIER SUPPORT SERVICES LTD,SP0001132
WANDSWORTH COUNCIL,ASC,SOCIAL SERVICES,Revenue,VOL ASS,SUPPORTED HOUSING PROGRAMME,632787,130248030,14-Apr-15,"1,353.32 ",FRONTIER SUPPORT SERVICES LTD,SP0001132
WANDSWORTH COUNCIL,ASC,SOCIAL SERVICES,Revenue,VOL ASS,SUPPORTED HOUSING PROGRAMME,632776,130248030,14-Apr-15,657.80 ,FRONTIER SUPPORT SERVICES LTD,SP0001132
WANDSWORTH COUNCIL,ASC,SOCIAL SERVICES,Revenue,VOL ASS,SUPPORTED HOUSING PROGRAMME,632775,130248030,14-Apr-15,"2,509.20 ",FRONTIER SUPPORT SERVICES LTD,SP0001132
WANDSWORTH COUNCIL,ASC,SOCIAL SERVICES,Revenue,VOL ASS,SUPPORTED HOUSING PROGRAMME,632780,130248030,14-Apr-15,"1,533.00 ",FRONTIER SUPPORT SERVICES LTD,SP0001132
WANDSWORTH COUNCIL,ASC,SOCIAL SERVICES,Revenue,VOL ASS,SUPPORTED HOUSING PROGRAMME,632782,130248030,14-Apr-15,"1,685.92 ",FRONTIER SUPPORT SERVICES LTD,SP0001132
WANDSWORTH COUNCIL,ASC,SOCIAL SERVICES,Revenue,VOL ASS,SUPPORTED HOUSING PROGRAMME,632781,130248030,14-Apr-15,"1,358.48 ",FRONTIER SUPPORT SERVICES LTD,SP0001132
WANDSWORTH COUNCIL,ASC,SOCIAL SERVICES,Revenue,VOL ASS,SUPPORTED HOUSING PROGRAMME,632783,130248030,14-Apr-15,"1,097.56 ",FRONTIER SUPPORT SERVICES LTD,SP0001132
WANDSWORTH COUNCIL,ASC,SOCIAL SERVICES,Revenue,VOL ASS,SUPPORTED HOUSING PROGRAMME,632835,130248030,14-Apr-15,"27,773.97 ",FRONTIER SUPPORT SERVICES LTD,SP0001132
WANDSWORTH COUNCIL,ASC,SOCIAL SERVICES,Revenue,VOL ASS,SUPPORTED HOUSING PROGRAMME,632785,130248030,14-Apr-15,"1,097.60 ",FRONTIER SUPPORT SERVICES LTD,SP0001132
WANDSWORTH COUNCIL,ASC,SOCIAL SERVICES,Revenue,VOL ASS,SUPPORTED HOUSING PROGRAMME,644166,130248030,28-Apr-15,"2,777.14 ",PRECIOUS HOMES LTD,SP0001459
WANDSWORTH COUNCIL,ASC,SOCIAL SERVICES,Revenue,VOL ASS,SUPPORTED HOUSING PROGRAMME,644165,130248030,28-Apr-15,"8,744.83 ",PRECIOUS HOMES LTD,SP0001459
WANDSWORTH COUNCIL,ASC,SOCIAL SERVICES,Revenue,VOL ASS,SUPPORTED HOUSING PROGRAMME,627723,130248030,02-Apr-15,"2,869.71 ",PRECIOUS HOMES LTD,SP0001459
WANDSWORTH COUNCIL,ASC,SOCIAL SERVICES,Revenue,VOL ASS,SUPPORTED HOUSING PROGRAMME,627722,130248030,02-Apr-15,"9,036.32 ",PRECIOUS HOMES LTD,SP0001459
WANDSWORTH COUNCIL,ASC,SOCIAL SERVICES,Revenue,VOL ASS,SUPPORTED HOUSING PROGRAMME,632849,130248030,14-Apr-15,"5,745.60 ",INDEPENDENCE HOMES LTD,SP0004378
WANDSWORTH COUNCIL,ASC,SOCIAL SERVICES,Revenue,VOL ASS,SUPPORTED HOUSING PROGRAMME,627738,130248030,02-Apr-15,"1,854.72 ",THE BRANDON TRUST,SP0005337
WANDSWORTH COUNCIL,ASC,SOCIAL SERVICES,Revenue,VOL ASS,SUPPORTED HOUSING PROGRAMME,627758,130248030,02-Apr-15,"3,320.64 ",THE BRANDON TRUST,SP0005337
WANDSWORTH COUNCIL,ASC,SOCIAL SERVICES,Revenue,VOL ASS,SUPPORTED HOUSING PROGRAMME,627737,130248030,02-Apr-15,"1,155.88 ",THE BRANDON TRUST,SP0005337
WANDSWORTH COUNCIL,ASC,SOCIAL SERVICES,Revenue,VOL ASS,SUPPORTED HOUSING PROGRAMME,627735,130248030,02-Apr-15,"2,160.00 ",THE BRANDON TRUST,SP0005337
WANDSWORTH COUNCIL,ASC,SOCIAL SERVICES,Revenue,VOL ASS,SUPPORTED HOUSING PROGRAMME,627760,130248030,02-Apr-15,"1,465.92 ",THE BRANDON TRUST,SP0005337
WANDSWORTH COUNCIL,ASC,SOCIAL SERVICES,Revenue,VOL ASS,SUPPORTED HOUSING PROGRAMME,627739,130248030,02-Apr-15,"1,380.64 ",THE BRANDON TRUST,SP0005337
WANDSWORTH COUNCIL,ASC,SOCIAL SERVICES,Revenue,VOL ASS,SUPPORTED HOUSING PROGRAMME,627755,130248030,02-Apr-15,"2,923.88 ",THE BRANDON TRUST,SP0005337
WANDSWORTH COUNCIL,ASC,SOCIAL SERVICES,Revenue,VOL ASS,SUPPORTED HOUSING PROGRAMME,627783,130248030,02-Apr-15,"2,065.12 ",THE BRANDON TRUST,SP0005337
WANDSWORTH COUNCIL,ASC,SOCIAL SERVICES,Revenue,VOL ASS,SUPPORTED HOUSING PROGRAMME,627736,130248030,02-Apr-15,"1,125.08 ",THE BRANDON TRUST,SP0005337
WANDSWORTH COUNCIL,ASC,SOCIAL SERVICES,Revenue,VOL ASS,SUPPORTED HOUSING PROGRAMME,627759,130248030,02-Apr-15,"3,702.20 ",THE BRANDON TRUST,SP0005337
WANDSWORTH COUNCIL,ASC,SOCIAL SERVICES,Revenue,VOL ASS,SUPPORTED HOUSING PROGRAMME,627752,130248030,02-Apr-15,"2,580.17 ",THE BRANDON TRUST,SP0005337
WANDSWORTH COUNCIL,ASC,SOCIAL SERVICES,Revenue,VOL ASS,SUPPORTED HOUSING PROGRAMME,627746,130248030,02-Apr-15,"2,790.72 ",THE BRANDON TRUST,SP0005337
WANDSWORTH COUNCIL,ASC,SOCIAL SERVICES,Revenue,VOL ASS,SUPPORTED HOUSING PROGRAMME,627799,130248030,02-Apr-15,"1,499.04 ",THE BRANDON TRUST,SP0005337
WANDSWORTH COUNCIL,ASC,SOCIAL SERVICES,Revenue,VOL ASS,SUPPORTED HOUSING PROGRAMME,627829,130248030,02-Apr-15,"1,674.84 ",THE BRANDON TRUST,SP0005337
WANDSWORTH COUNCIL,ASC,SOCIAL SERVICES,Revenue,VOL ASS,SUPPORTED HOUSING PROGRAMME,627745,130248030,02-Apr-15,"3,453.12 ",THE BRANDON TRUST,SP0005337
WANDSWORTH COUNCIL,ASC,SOCIAL SERVICES,Revenue,VOL ASS,SUPPORTED HOUSING PROGRAMME,627744,130248030,02-Apr-15,"2,260.80 ",THE BRANDON TRUST,SP0005337
WANDSWORTH COUNCIL,ASC,SOCIAL SERVICES,Revenue,VOL ASS,SUPPORTED HOUSING PROGRAMME,627749,130248030,02-Apr-15,"1,797.12 ",THE BRANDON TRUST,SP0005337
WANDSWORTH COUNCIL,ASC,SOCIAL SERVICES,Revenue,VOL ASS,SUPPORTED HOUSING PROGRAMME,627750,130248030,02-Apr-15,"2,062.08 ",THE BRANDON TRUST,SP0005337
WANDSWORTH COUNCIL,ASC,SOCIAL SERVICES,Revenue,VOL ASS,SUPPORTED HOUSING PROGRAMME,627756,130248030,02-Apr-15,"4,687.20 ",THE BRANDON TRUST,SP0005337
WANDSWORTH COUNCIL,ASC,SOCIAL SERVICES,Revenue,VOL ASS,SUPPORTED HOUSING PROGRAMME,627743,130248030,02-Apr-15,"2,856.96 ",THE BRANDON TRUST,SP0005337
WANDSWORTH COUNCIL,ASC,SOCIAL SERVICES,Revenue,VOL ASS,SUPPORTED HOUSING PROGRAMME,627740,130248030,02-Apr-15,"1,466.16 ",THE BRANDON TRUST,SP0005337
WANDSWORTH COUNCIL,ASC,SOCIAL SERVICES,Revenue,VOL ASS,SUPPORTED HOUSING PROGRAMME,627753,130248030,02-Apr-15,"3,453.12 ",THE BRANDON TRUST,SP0005337
WANDSWORTH COUNCIL,ASC,SOCIAL SERVICES,Revenue,VOL ASS,SUPPORTED HOUSING PROGRAMME,627784,130248030,02-Apr-15,"5,688.08 ",THE BRANDON TRUST,SP0005337
WANDSWORTH COUNCIL,ASC,SOCIAL SERVICES,Revenue,VOL ASS,SUPPORTED HOUSING PROGRAMME,627754,130248030,02-Apr-15,"1,929.60 ",THE BRANDON TRUST,SP0005337
WANDSWORTH COUNCIL,ASC,SOCIAL SERVICES,Revenue,VOL ASS,SUPPORTED HOUSING PROGRAMME,627742,130248030,02-Apr-15,"1,513.68 ",THE BRANDON TRUST,SP0005337
WANDSWORTH COUNCIL,ASC,SOCIAL SERVICES,Revenue,VOL ASS,SUPPORTED HOUSING PROGRAMME,627741,130248030,02-Apr-15,"1,513.68 ",THE BRANDON TRUST,SP0005337
WANDSWORTH COUNCIL,ASC,SOCIAL SERVICES,Revenue,VOL ASS,SUPPORTED HOUSING PROGRAMME,627748,130248030,02-Apr-15,"1,886.40 ",THE BRANDON TRUST,SP0005337
WANDSWORTH COUNCIL,ASC,SOCIAL SERVICES,Revenue,VOL ASS,SUPPORTED HOUSING PROGRAMME,627757,130248030,02-Apr-15,"4,688.56 ",THE BRANDON TRUST,SP0005337
WANDSWORTH COUNCIL,ASC,SOCIAL SERVICES,Revenue,VOL ASS,SUPPORTED HOUSING PROGRAMME,627751,130248030,02-Apr-15,"3,520.16 ",THE BRANDON TRUST,SP0005337
WANDSWORTH COUNCIL,ASC,SOCIAL SERVICES,Revenue,VOL ASS,SUPPORTED HOUSING PROGRAMME,627770,130248030,02-Apr-15,"2,758.28 ",THE BRANDON TRUST,SP0005337
WANDSWORTH COUNCIL,ASC,SOCIAL SERVICES,Revenue,VOL ASS,SUPPORTED HOUSING PROGRAMME,627771,130248030,02-Apr-15,"2,128.32 ",THE BRANDON TRUST,SP0005337
WANDSWORTH COUNCIL,ASC,SOCIAL SERVICES,Revenue,VOL ASS,SUPPORTED HOUSING PROGRAMME,627781,130248030,02-Apr-15,"2,327.24 ",THE BRANDON TRUST,SP0005337
WANDSWORTH COUNCIL,ASC,SOCIAL SERVICES,Revenue,VOL ASS,SUPPORTED HOUSING PROGRAMME,627772,130248030,02-Apr-15,"6,198.76 ",THE BRANDON TRUST,SP0005337
WANDSWORTH COUNCIL,ASC,SOCIAL SERVICES,Revenue,VOL ASS,SUPPORTED HOUSING PROGRAMME,627765,130248030,02-Apr-15,"6,346.04 ",THE BRANDON TRUST,SP0005337
WANDSWORTH COUNCIL,ASC,SOCIAL SERVICES,Revenue,VOL ASS,SUPPORTED HOUSING PROGRAMME,627734,130248030,02-Apr-15,"2,186.04 ",THE BRANDON TRUST,SP0005337
WANDSWORTH COUNCIL,ASC,SOCIAL SERVICES,Revenue,VOL ASS,SUPPORTED HOUSING PROGRAMME,627780,130248030,02-Apr-15,"2,848.72 ",THE BRANDON TRUST,SP0005337
WANDSWORTH COUNCIL,ASC,SOCIAL SERVICES,Revenue,VOL ASS,SUPPORTED HOUSING PROGRAMME,627777,130248030,02-Apr-15,"2,724.48 ",THE BRANDON TRUST,SP0005337
WANDSWORTH COUNCIL,ASC,SOCIAL SERVICES,Revenue,VOL ASS,SUPPORTED HOUSING PROGRAMME,627761,130248030,02-Apr-15,"3,718.08 ",THE BRANDON TRUST,SP0005337
WANDSWORTH COUNCIL,ASC,SOCIAL SERVICES,Revenue,VOL ASS,SUPPORTED HOUSING PROGRAMME,627762,130248030,02-Apr-15,"3,121.92 ",THE BRANDON TRUST,SP0005337
WANDSWORTH COUNCIL,ASC,SOCIAL SERVICES,Revenue,VOL ASS,SUPPORTED HOUSING PROGRAMME,627763,130248030,02-Apr-15,"5,983.44 ",THE BRANDON TRUST,SP0005337
WANDSWORTH COUNCIL,ASC,SOCIAL SERVICES,Revenue,VOL ASS,SUPPORTED HOUSING PROGRAMME,627764,130248030,02-Apr-15,"4,827.60 ",THE BRANDON TRUST,SP0005337
WANDSWORTH COUNCIL,ASC,SOCIAL SERVICES,Revenue,VOL ASS,SUPPORTED HOUSING PROGRAMME,627778,130248030,02-Apr-15,"3,564.56 ",THE BRANDON TRUST,SP0005337
WANDSWORTH COUNCIL,ASC,SOCIAL SERVICES,Revenue,VOL ASS,SUPPORTED HOUSING PROGRAMME,627767,130248030,02-Apr-15,"2,886.04 ",THE BRANDON TRUST,SP0005337
WANDSWORTH COUNCIL,ASC,SOCIAL SERVICES,Revenue,VOL ASS,SUPPORTED HOUSING PROGRAMME,627782,130248030,02-Apr-15,"2,327.24 ",THE BRANDON TRUST,SP0005337
WANDSWORTH COUNCIL,ASC,SOCIAL SERVICES,Revenue,VOL ASS,SUPPORTED HOUSING PROGRAMME,627776,130248030,02-Apr-15,"2,592.60 ",THE BRANDON TRUST,SP0005337
WANDSWORTH COUNCIL,ASC,SOCIAL SERVICES,Revenue,VOL ASS,SUPPORTED HOUSING PROGRAMME,627779,130248030,02-Apr-15,"3,416.80 ",THE BRANDON TRUST,SP0005337
WANDSWORTH COUNCIL,ASC,SOCIAL SERVICES,Revenue,VOL ASS,SUPPORTED HOUSING PROGRAMME,627775,130248030,02-Apr-15,"2,658.24 ",THE BRANDON TRUST,SP0005337
WANDSWORTH COUNCIL,ASC,SOCIAL SERVICES,Revenue,VOL ASS,SUPPORTED HOUSING PROGRAMME,627768,130248030,02-Apr-15,"2,856.96 ",THE BRANDON TRUST,SP0005337
WANDSWORTH COUNCIL,ASC,SOCIAL SERVICES,Revenue,VOL ASS,SUPPORTED HOUSING PROGRAMME,627774,130248030,02-Apr-15,"1,548.72 ",THE BRANDON TRUST,SP0005337
WANDSWORTH COUNCIL,ASC,SOCIAL SERVICES,Revenue,VOL ASS,SUPPORTED HOUSING PROGRAMME,627773,130248030,02-Apr-15,"1,465.92 ",THE BRANDON TRUST,SP0005337
WANDSWORTH COUNCIL,ASC,SOCIAL SERVICES,Revenue,VOL ASS,SUPPORTED HOUSING PROGRAMME,627766,130248030,02-Apr-15,"3,324.96 ",THE BRANDON TRUST,SP0005337
WANDSWORTH COUNCIL,ASC,SOCIAL SERVICES,Revenue,VOL ASS,SUPPORTED HOUSING PROGRAMME,627809,130248030,02-Apr-15,"1,034.48 ",THE BRANDON TRUST,SP0005337
WANDSWORTH COUNCIL,ASC,SOCIAL SERVICES,Revenue,VOL ASS,SUPPORTED HOUSING PROGRAMME,627851,130248030,02-Apr-15,"2,994.04 ",THE BRANDON TRUST,SP0005337
WANDSWORTH COUNCIL,ASC,SOCIAL SERVICES,Revenue,VOL ASS,SUPPORTED HOUSING PROGRAMME,627849,130248030,02-Apr-15,"2,923.88 ",THE BRANDON TRUST,SP0005337
WANDSWORTH COUNCIL,ASC,SOCIAL SERVICES,Revenue,VOL ASS,SUPPORTED HOUSING PROGRAMME,627846,130248030,02-Apr-15,"1,465.92 ",THE BRANDON TRUST,SP0005337
WANDSWORTH COUNCIL,ASC,SOCIAL SERVICES,Revenue,VOL ASS,SUPPORTED HOUSING PROGRAMME,627837,130248030,02-Apr-15,"1,730.88 ",THE BRANDON TRUST,SP0005337
WANDSWORTH COUNCIL,ASC,SOCIAL SERVICES,Revenue,VOL ASS,SUPPORTED HOUSING PROGRAMME,627828,130248030,02-Apr-15,"1,625.36 ",THE BRANDON TRUST,SP0005337
WANDSWORTH COUNCIL,ASC,SOCIAL SERVICES,Revenue,VOL ASS,SUPPORTED HOUSING PROGRAMME,627733,130248030,02-Apr-15,"2,979.92 ",THE BRANDON TRUST,SP0005337
WANDSWORTH COUNCIL,ASC,SOCIAL SERVICES,Revenue,VOL ASS,SUPPORTED HOUSING PROGRAMME,627728,130248030,02-Apr-15,"1,504.84 ",THE BRANDON TRUST,SP0005337
WANDSWORTH COUNCIL,ASC,SOCIAL SERVICES,Revenue,VOL ASS,SUPPORTED HOUSING PROGRAMME,627729,130248030,02-Apr-15,"1,936.52 ",THE BRANDON TRUST,SP0005337
WANDSWORTH COUNCIL,ASC,SOCIAL SERVICES,Revenue,VOL ASS,SUPPORTED HOUSING PROGRAMME,627730,130248030,02-Apr-15,"7,764.16 ",THE BRANDON TRUST,SP0005337
WANDSWORTH COUNCIL,ASC,SOCIAL SERVICES,Revenue,VOL ASS,SUPPORTED HOUSING PROGRAMME,627726,130248030,02-Apr-15,"1,551.32 ",THE BRANDON TRUST,SP0005337
WANDSWORTH COUNCIL,ASC,SOCIAL SERVICES,Revenue,VOL ASS,SUPPORTED HOUSING PROGRAMME,627850,130248030,02-Apr-15,"2,923.88 ",THE BRANDON TRUST,SP0005337
WANDSWORTH COUNCIL,ASC,SOCIAL SERVICES,Revenue,VOL ASS,SUPPORTED HOUSING PROGRAMME,627834,130248030,02-Apr-15,"2,459.52 ",THE BRANDON TRUST,SP0005337
WANDSWORTH COUNCIL,ASC,SOCIAL SERVICES,Revenue,VOL ASS,SUPPORTED HOUSING PROGRAMME,627731,130248030,02-Apr-15,"2,327.04 ",THE BRANDON TRUST,SP0005337
WANDSWORTH COUNCIL,ASC,SOCIAL SERVICES,Revenue,VOL ASS,SUPPORTED HOUSING PROGRAMME,627727,130248030,02-Apr-15,"1,504.84 ",THE BRANDON TRUST,SP0005337
WANDSWORTH COUNCIL,ASC,SOCIAL SERVICES,Revenue,VOL ASS,SUPPORTED HOUSING PROGRAMME,627830,130248030,02-Apr-15,"2,658.24 ",THE BRANDON TRUST,SP0005337
WANDSWORTH COUNCIL,ASC,SOCIAL SERVICES,Revenue,VOL ASS,SUPPORTED HOUSING PROGRAMME,627831,130248030,02-Apr-15,"2,405.96 ",THE BRANDON TRUST,SP0005337
WANDSWORTH COUNCIL,ASC,SOCIAL SERVICES,Revenue,VOL ASS,SUPPORTED HOUSING PROGRAMME,627835,130248030,02-Apr-15,"3,883.68 ",THE BRANDON TRUST,SP0005337
WANDSWORTH COUNCIL,ASC,SOCIAL SERVICES,Revenue,VOL ASS,SUPPORTED HOUSING PROGRAMME,627836,130248030,02-Apr-15,"2,618.48 ",THE BRANDON TRUST,SP0005337
WANDSWORTH COUNCIL,ASC,SOCIAL SERVICES,Revenue,VOL ASS,SUPPORTED HOUSING PROGRAMME,627805,130248030,02-Apr-15,591.04 ,THE BRANDON TRUST,SP0005337
WANDSWORTH COUNCIL,ASC,SOCIAL SERVICES,Revenue,VOL ASS,SUPPORTED HOUSING PROGRAMME,627732,130248030,02-Apr-15,"2,969.16 ",THE BRANDON TRUST,SP0005337
WANDSWORTH COUNCIL,ASC,SOCIAL SERVICES,Revenue,VOL ASS,SUPPORTED HOUSING PROGRAMME,635832,130248030,16-Apr-15,"7,650.00 ",RELIABLE PERSONNEL LTD,SP0005657
WANDSWORTH COUNCIL,ASC,SOCIAL SERVICES,Revenue,DIRECT,DIRECT PAYMENTS,642558,130250380,24-Apr-15,"1,333.04 ",WESTMINSTER MIND,SP0005471
WANDSWORTH COUNCIL,ASC,SOCIAL SERVICES,Revenue,DIRECT,DIRECT PAYMENTS,642532,130250380,24-Apr-15,838.12 ,VIBRANCE,SP0005489
WANDSWORTH COUNCIL,ASC,SOCIAL SERVICES,Revenue,DIRECT,DIRECT PAYMENTS,642232,130250380,24-Apr-15,"3,176.28 ",I DECIDE LTD (DIRECT PAYMENT),SP0006159
WANDSWORTH COUNCIL,ASC,SOCIAL SERVICES,Revenue,CUSTOMER & CLIENT RECPTS - EXT,CL CONT EXT RESIDEN S28A 100%,628682,130280680,08-Apr-15,-548.92 ,ST MARYS RESIDENTIAL HOME,SP0000215
WANDSWORTH COUNCIL,ASC,SOCIAL SERVICES,Revenue,CUSTOMER & CLIENT RECPTS - EXT,CL CONT EXT RESIDEN S28A 100%,627559,130280680,02-Apr-15,-548.92 ,VOYAGE CARE LTD,SP0000366
WANDSWORTH COUNCIL,ASC,SOCIAL SERVICES,Revenue,CUSTOMER & CLIENT RECPTS - EXT,CL CONT EXT RESIDEN S28A 100%,644015,130280680,28-Apr-15,-342.22 ,VOYAGE CARE LTD,SP0000366
WANDSWORTH COUNCIL,ASC,SOCIAL SERVICES,Revenue,CUSTOMER & CLIENT RECPTS - EXT,CL CONT EXT RESIDEN S28A 100%,644026,130280680,28-Apr-15,-342.22 ,VOYAGE CARE LTD,SP0000366
WANDSWORTH COUNCIL,ASC,SOCIAL SERVICES,Revenue,CUSTOMER & CLIENT RECPTS - EXT,CL CONT EXT RESIDEN S28A 100%,627558,130280680,02-Apr-15,-353.62 ,VOYAGE CARE LTD,SP0000366
WANDSWORTH COUNCIL,ASC,SOCIAL SERVICES,Revenue,CUSTOMER & CLIENT RECPTS - EXT,CL CONT EXT RESIDEN S28A 100%,627567,130280680,02-Apr-15,-353.62 ,VOYAGE CARE LTD,SP0000366
WANDSWORTH COUNCIL,ASC,SOCIAL SERVICES,Revenue,CUSTOMER & CLIENT RECPTS - EXT,CL CONT EXT RESIDEN S28A 100%,644016,130280680,28-Apr-15,-531.22 ,VOYAGE CARE LTD,SP0000366
WANDSWORTH COUNCIL,ASC,SOCIAL SERVICES,Revenue,CUSTOMER & CLIENT RECPTS - EXT,CL CONT EXT RESIDEN S28A 100%,627470,130280680,02-Apr-15,-495.80 ,ASHTON CARE,SP0000695
WANDSWORTH COUNCIL,ASC,SOCIAL SERVICES,Revenue,CUSTOMER & CLIENT RECPTS - EXT,CL CONT EXT RESIDEN S28A 100%,627471,130280680,02-Apr-15,-495.80 ,ASHTON CARE,SP0000695
WANDSWORTH COUNCIL,ASC,SOCIAL SERVICES,Revenue,CUSTOMER & CLIENT RECPTS - EXT,CL CONT EXTERNAL RESIDENT S28A,645902,130280710,30-Apr-15,-319.40 ,METROPOLITAN HOUSING TRUST,SP0000626
WANDSWORTH COUNCIL,ASC,SOCIAL SERVICES,Revenue,CUSTOMER & CLIENT RECPTS - EXT,CL CONT EXTERNAL RESIDENT S28A,627536,130280710,02-Apr-15,-319.40 ,METROPOLITAN HOUSING TRUST,SP0000626
WANDSWORTH COUNCIL,ASC,SOCIAL SERVICES,Revenue,CUSTOMER & CLIENT RECPTS - EXT,CL CONT EXTERNAL RESIDENT S28A,627528,130280710,02-Apr-15,-319.40 ,METROPOLITAN HOUSING TRUST,SP0000626
WANDSWORTH COUNCIL,ASC,SOCIAL SERVICES,Revenue,CUSTOMER & CLIENT RECPTS - EXT,CL CONT EXTERNAL RESIDENTIAL,646236,130280720,30-Apr-15,-338.15 ,CMG HOMES LTD,SP0000075
WANDSWORTH COUNCIL,ASC,SOCIAL SERVICES,Revenue,CUSTOMER & CLIENT RECPTS - EXT,CL CONT EXTERNAL RESIDENTIAL,646235,130280720,30-Apr-15,-398.41 ,CMG HOMES LTD,SP0000075
WANDSWORTH COUNCIL,ASC,SOCIAL SERVICES,Revenue,CUSTOMER & CLIENT RECPTS - EXT,CL CONT EXTERNAL RESIDENTIAL,646237,130280720,30-Apr-15,-398.41 ,CMG HOMES LTD,SP0000075
WANDSWORTH COUNCIL,ASC,SOCIAL SERVICES,Revenue,CUSTOMER & CLIENT RECPTS - EXT,CL CONT EXTERNAL RESIDENTIAL,646233,130280720,30-Apr-15,-499.16 ,CMG HOMES LTD,SP0000075
WANDSWORTH COUNCIL,ASC,SOCIAL SERVICES,Revenue,CUSTOMER & CLIENT RECPTS - EXT,CL CONT EXTERNAL RESIDENTIAL,646241,130280720,30-Apr-15,-353.89 ,CMG HOMES LTD,SP0000075
WANDSWORTH COUNCIL,ASC,SOCIAL SERVICES,Revenue,CUSTOMER & CLIENT RECPTS - EXT,CL CONT EXTERNAL RESIDENTIAL,646234,130280720,30-Apr-15,-320.26 ,CMG HOMES LTD,SP0000075
WANDSWORTH COUNCIL,ASC,SOCIAL SERVICES,Revenue,CUSTOMER & CLIENT RECPTS - EXT,CL CONT EXTERNAL RESIDENTIAL,627521,130280720,02-Apr-15,-495.80 ,CMG HOMES LTD,SP0000075
WANDSWORTH COUNCIL,ASC,SOCIAL SERVICES,Revenue,CUSTOMER & CLIENT RECPTS - EXT,CL CONT EXTERNAL RESIDENTIAL,627519,130280720,02-Apr-15,-335.00 ,CMG HOMES LTD,SP0000075
WANDSWORTH COUNCIL,ASC,SOCIAL SERVICES,Revenue,CUSTOMER & CLIENT RECPTS - EXT,CL CONT EXTERNAL RESIDENTIAL,627520,130280720,02-Apr-15,-319.40 ,CMG HOMES LTD,SP0000075
WANDSWORTH COUNCIL,ASC,SOCIAL SERVICES,Revenue,CUSTOMER & CLIENT RECPTS - EXT,CL CONT EXTERNAL RESIDENTIAL,646240,130280720,30-Apr-15,-320.26 ,CMG HOMES LTD,SP0000075
WANDSWORTH COUNCIL,ASC,SOCIAL SERVICES,Revenue,CUSTOMER & CLIENT RECPTS - EXT,CL CONT EXTERNAL RESIDENTIAL,627518,130280720,02-Apr-15,-319.40 ,CMG HOMES LTD,SP0000075
WANDSWORTH COUNCIL,ASC,SOCIAL SERVICES,Revenue,CUSTOMER & CLIENT RECPTS - EXT,CL CONT EXTERNAL RESIDENTIAL,646238,130280720,30-Apr-15,-131.87 ,CMG HOMES LTD,SP0000075
WANDSWORTH COUNCIL,ASC,SOCIAL SERVICES,Revenue,CUSTOMER & CLIENT RECPTS - EXT,CL CONT EXTERNAL RESIDENTIAL,646239,130280720,30-Apr-15,-320.26 ,CMG HOMES LTD,SP0000075
WANDSWORTH COUNCIL,ASC,SOCIAL SERVICES,Revenue,CUSTOMER & CLIENT RECPTS - EXT,CL CONT EXTERNAL RESIDENTIAL,645909,130280720,30-Apr-15,-391.93 ,NATIONAL SOCIETY FOR EPILEPSY,SP0000120
WANDSWORTH COUNCIL,ASC,SOCIAL SERVICES,Revenue,CUSTOMER & CLIENT RECPTS - EXT,CL CONT EXTERNAL RESIDENTIAL,641540,130280720,24-Apr-15,-319.40 ,SANCTUARY CARE LTD,SP0000121
WANDSWORTH COUNCIL,ASC,SOCIAL SERVICES,Revenue,CUSTOMER & CLIENT RECPTS - EXT,CL CONT EXTERNAL RESIDENTIAL,635635,130280720,16-Apr-15,-295.75 ,IN CHORUS LTD,SP0000129
WANDSWORTH COUNCIL,ASC,SOCIAL SERVICES,Revenue,CUSTOMER & CLIENT RECPTS - EXT,CL CONT EXTERNAL RESIDENTIAL,644055,130280720,28-Apr-15,-287.32 ,CENTRUST CARE HOMES LTD,SP0000141
WANDSWORTH COUNCIL,ASC,SOCIAL SERVICES,Revenue,CUSTOMER & CLIENT RECPTS - EXT,CL CONT EXTERNAL RESIDENTIAL,644054,130280720,28-Apr-15,-57.04 ,CENTRUST CARE HOMES LTD,SP0000141
WANDSWORTH COUNCIL,ASC,SOCIAL SERVICES,Revenue,CUSTOMER & CLIENT RECPTS - EXT,CL CONT EXTERNAL RESIDENTIAL,644038,130280720,28-Apr-15,-348.97 ,FRANCES TAYLOR FOUNDATION,SP0000142
WANDSWORTH COUNCIL,ASC,SOCIAL SERVICES,Revenue,CUSTOMER & CLIENT RECPTS - EXT,CL CONT EXTERNAL RESIDENTIAL,644039,130280720,28-Apr-15,-353.62 ,FRANCES TAYLOR FOUNDATION,SP0000142
WANDSWORTH COUNCIL,ASC,SOCIAL SERVICES,Revenue,CUSTOMER & CLIENT RECPTS - EXT,CL CONT EXTERNAL RESIDENTIAL,644037,130280720,28-Apr-15,-353.62 ,FRANCES TAYLOR FOUNDATION,SP0000142
WANDSWORTH COUNCIL,ASC,SOCIAL SERVICES,Revenue,CUSTOMER & CLIENT RECPTS - EXT,CL CONT EXTERNAL RESIDENTIAL,627516,130280720,02-Apr-15,-353.62 ,RESIDENTIAL CARE SERVICES T/A FRANKLYN L,SP0000147
WANDSWORTH COUNCIL,ASC,SOCIAL SERVICES,Revenue,CUSTOMER & CLIENT RECPTS - EXT,CL CONT EXTERNAL RESIDENTIAL,628227,130280720,07-Apr-15,-319.40 ,ORCHARD VALE TRUST,SP0000214
WANDSWORTH COUNCIL,ASC,SOCIAL SERVICES,Revenue,CUSTOMER & CLIENT RECPTS - EXT,CL CONT EXTERNAL RESIDENTIAL,627554,130280720,02-Apr-15,-711.32 ,ST MARYS RESIDENTIAL HOME,SP0000215
WANDSWORTH COUNCIL,ASC,SOCIAL SERVICES,Revenue,CUSTOMER & CLIENT RECPTS - EXT,CL CONT EXTERNAL RESIDENTIAL,627555,130280720,02-Apr-15,"-1,333.40 ",ST MARYS RESIDENTIAL HOME,SP0000215
WANDSWORTH COUNCIL,ASC,SOCIAL SERVICES,Revenue,CUSTOMER & CLIENT RECPTS - EXT,CL CONT EXTERNAL RESIDENTIAL,627556,130280720,02-Apr-15,-319.40 ,ST MARYS RESIDENTIAL HOME,SP0000215
WANDSWORTH COUNCIL,ASC,SOCIAL SERVICES,Revenue,CUSTOMER & CLIENT RECPTS - EXT,CL CONT EXTERNAL RESIDENTIAL,628220,130280720,07-Apr-15,-216.74 ,ST MARYS RESIDENTIAL HOME,SP0000215
WANDSWORTH COUNCIL,ASC,SOCIAL SERVICES,Revenue,CUSTOMER & CLIENT RECPTS - EXT,CL CONT EXTERNAL RESIDENTIAL,642777,130280720,24-Apr-15,-531.80 ,ST MARYS RESIDENTIAL HOME,SP0000215
WANDSWORTH COUNCIL,ASC,SOCIAL SERVICES,Revenue,CUSTOMER & CLIENT RECPTS - EXT,CL CONT EXTERNAL RESIDENTIAL,628681,130280720,08-Apr-15,-711.32 ,ST MARYS RESIDENTIAL HOME,SP0000215
WANDSWORTH COUNCIL,ASC,SOCIAL SERVICES,Revenue,CUSTOMER & CLIENT RECPTS - EXT,CL CONT EXTERNAL RESIDENTIAL,628679,130280720,08-Apr-15,-548.92 ,ST MARYS RESIDENTIAL HOME,SP0000215
WANDSWORTH COUNCIL,ASC,SOCIAL SERVICES,Revenue,CUSTOMER & CLIENT RECPTS - EXT,CL CONT EXTERNAL RESIDENTIAL,628678,130280720,08-Apr-15,-353.62 ,ST MARYS RESIDENTIAL HOME,SP0000215
WANDSWORTH COUNCIL,ASC,SOCIAL SERVICES,Revenue,CUSTOMER & CLIENT RECPTS - EXT,CL CONT EXTERNAL RESIDENTIAL,628683,130280720,08-Apr-15,"-1,333.40 ",ST MARYS RESIDENTIAL HOME,SP0000215
WANDSWORTH COUNCIL,ASC,SOCIAL SERVICES,Revenue,CUSTOMER & CLIENT RECPTS - EXT,CL CONT EXTERNAL RESIDENTIAL,628677,130280720,08-Apr-15,-353.62 ,ST MARYS RESIDENTIAL HOME,SP0000215
WANDSWORTH COUNCIL,ASC,SOCIAL SERVICES,Revenue,CUSTOMER & CLIENT RECPTS - EXT,CL CONT EXTERNAL RESIDENTIAL,628676,130280720,08-Apr-15,-353.62 ,ST MARYS RESIDENTIAL HOME,SP0000215
WANDSWORTH COUNCIL,ASC,SOCIAL SERVICES,Revenue,CUSTOMER & CLIENT RECPTS - EXT,CL CONT EXTERNAL RESIDENTIAL,628684,130280720,08-Apr-15,-319.40 ,ST MARYS RESIDENTIAL HOME,SP0000215
WANDSWORTH COUNCIL,ASC,SOCIAL SERVICES,Revenue,CUSTOMER & CLIENT RECPTS - EXT,CL CONT EXTERNAL RESIDENTIAL,628672,130280720,08-Apr-15,-268.15 ,ST MARYS RESIDENTIAL HOME,SP0000215
WANDSWORTH COUNCIL,ASC,SOCIAL SERVICES,Revenue,CUSTOMER & CLIENT RECPTS - EXT,CL CONT EXTERNAL RESIDENTIAL,628674,130280720,08-Apr-15,-353.62 ,ST MARYS RESIDENTIAL HOME,SP0000215
WANDSWORTH COUNCIL,ASC,SOCIAL SERVICES,Revenue,CUSTOMER & CLIENT RECPTS - EXT,CL CONT EXTERNAL RESIDENTIAL,628673,130280720,08-Apr-15,-548.92 ,ST MARYS RESIDENTIAL HOME,SP0000215
WANDSWORTH COUNCIL,ASC,SOCIAL SERVICES,Revenue,CUSTOMER & CLIENT RECPTS - EXT,CL CONT EXTERNAL RESIDENTIAL,628675,130280720,08-Apr-15,-548.92 ,ST MARYS RESIDENTIAL HOME,SP0000215
WANDSWORTH COUNCIL,ASC,SOCIAL SERVICES,Revenue,CUSTOMER & CLIENT RECPTS - EXT,CL CONT EXTERNAL RESIDENTIAL,627512,130280720,02-Apr-15,-319.40 ,SPRING LAKE,SP0000223
WANDSWORTH COUNCIL,ASC,SOCIAL SERVICES,Revenue,CUSTOMER & CLIENT RECPTS - EXT,CL CONT EXTERNAL RESIDENTIAL,627511,130280720,02-Apr-15,-362.80 ,SPRING LAKE,SP0000223
WANDSWORTH COUNCIL,ASC,SOCIAL SERVICES,Revenue,CUSTOMER & CLIENT RECPTS - EXT,CL CONT EXTERNAL RESIDENTIAL,627514,130280720,02-Apr-15,-319.40 ,SPRING LAKE,SP0000223
WANDSWORTH COUNCIL,ASC,SOCIAL SERVICES,Revenue,CUSTOMER & CLIENT RECPTS - EXT,CL CONT EXTERNAL RESIDENTIAL,627513,130280720,02-Apr-15,-362.80 ,SPRING LAKE,SP0000223
WANDSWORTH COUNCIL,ASC,SOCIAL SERVICES,Revenue,CUSTOMER & CLIENT RECPTS - EXT,CL CONT EXTERNAL RESIDENTIAL,632460,130280720,14-Apr-15,-319.40 ,HAYDON PARK LODGE LTD,SP0000231
WANDSWORTH COUNCIL,ASC,SOCIAL SERVICES,Revenue,CUSTOMER & CLIENT RECPTS - EXT,CL CONT EXTERNAL RESIDENTIAL,627508,130280720,02-Apr-15,-319.40 ,HAYDON PARK LODGE LTD,SP0000231
WANDSWORTH COUNCIL,ASC,SOCIAL SERVICES,Revenue,CUSTOMER & CLIENT RECPTS - EXT,CL CONT EXTERNAL RESIDENTIAL,635665,130280720,16-Apr-15,-622.48 ,CAMERON LODGE LIMITED,SP0000271
WANDSWORTH COUNCIL,ASC,SOCIAL SERVICES,Revenue,CUSTOMER & CLIENT RECPTS - EXT,CL CONT EXTERNAL RESIDENTIAL,635706,130280720,16-Apr-15,-388.72 ,BROOKDALE CARE,SP0000282
WANDSWORTH COUNCIL,ASC,SOCIAL SERVICES,Revenue,CUSTOMER & CLIENT RECPTS - EXT,CL CONT EXTERNAL RESIDENTIAL,642775,130280720,24-Apr-15,-319.83 ,CRAEGMOOR FACILITIES CO LTD,SP0000306
WANDSWORTH COUNCIL,ASC,SOCIAL SERVICES,Revenue,CUSTOMER & CLIENT RECPTS - EXT,CL CONT EXTERNAL RESIDENTIAL,632486,130280720,14-Apr-15,-342.22 ,DOLPHIN HOMES LTD,SP0000331
WANDSWORTH COUNCIL,ASC,SOCIAL SERVICES,Revenue,CUSTOMER & CLIENT RECPTS - EXT,CL CONT EXTERNAL RESIDENTIAL,632487,130280720,14-Apr-15,-342.22 ,DOLPHIN HOMES LTD,SP0000331
WANDSWORTH COUNCIL,ASC,SOCIAL SERVICES,Revenue,CUSTOMER & CLIENT RECPTS - EXT,CL CONT EXTERNAL RESIDENTIAL,632475,130280720,14-Apr-15,-319.40 ,NORWOOD SCHOOLS LTD,SP0000332
WANDSWORTH COUNCIL,ASC,SOCIAL SERVICES,Revenue,CUSTOMER & CLIENT RECPTS - EXT,CL CONT EXTERNAL RESIDENTIAL,632474,130280720,14-Apr-15,-319.40 ,NORWOOD SCHOOLS LTD,SP0000332
WANDSWORTH COUNCIL,ASC,SOCIAL SERVICES,Revenue,CUSTOMER & CLIENT RECPTS - EXT,CL CONT EXTERNAL RESIDENTIAL,645887,130280720,30-Apr-15,-321.80 ,NORWOOD SCHOOLS LTD,SP0000332
WANDSWORTH COUNCIL,ASC,SOCIAL SERVICES,Revenue,CUSTOMER & CLIENT RECPTS - EXT,CL CONT EXTERNAL RESIDENTIAL,645886,130280720,30-Apr-15,-321.80 ,NORWOOD SCHOOLS LTD,SP0000332
WANDSWORTH COUNCIL,ASC,SOCIAL SERVICES,Revenue,CUSTOMER & CLIENT RECPTS - EXT,CL CONT EXTERNAL RESIDENTIAL,632440,130280720,14-Apr-15,-548.92 ,THE MANOR,SP0000340
WANDSWORTH COUNCIL,ASC,SOCIAL SERVICES,Revenue,CUSTOMER & CLIENT RECPTS - EXT,CL CONT EXTERNAL RESIDENTIAL,644020,130280720,28-Apr-15,-372.28 ,VOYAGE CARE LTD,SP0000366
WANDSWORTH COUNCIL,ASC,SOCIAL SERVICES,Revenue,CUSTOMER & CLIENT RECPTS - EXT,CL CONT EXTERNAL RESIDENTIAL,644022,130280720,28-Apr-15,-397.20 ,VOYAGE CARE LTD,SP0000366
WANDSWORTH COUNCIL,ASC,SOCIAL SERVICES,Revenue,CUSTOMER & CLIENT RECPTS - EXT,CL CONT EXTERNAL RESIDENTIAL,644028,130280720,28-Apr-15,-350.60 ,VOYAGE CARE LTD,SP0000366
WANDSWORTH COUNCIL,ASC,SOCIAL SERVICES,Revenue,CUSTOMER & CLIENT RECPTS - EXT,CL CONT EXTERNAL RESIDENTIAL,644024,130280720,28-Apr-15,-342.22 ,VOYAGE CARE LTD,SP0000366
WANDSWORTH COUNCIL,ASC,SOCIAL SERVICES,Revenue,CUSTOMER & CLIENT RECPTS - EXT,CL CONT EXTERNAL RESIDENTIAL,644029,130280720,28-Apr-15,-345.80 ,VOYAGE CARE LTD,SP0000366
WANDSWORTH COUNCIL,ASC,SOCIAL SERVICES,Revenue,CUSTOMER & CLIENT RECPTS - EXT,CL CONT EXTERNAL RESIDENTIAL,627561,130280720,02-Apr-15,-372.28 ,VOYAGE CARE LTD,SP0000366
WANDSWORTH COUNCIL,ASC,SOCIAL SERVICES,Revenue,CUSTOMER & CLIENT RECPTS - EXT,CL CONT EXTERNAL RESIDENTIAL,644303,130280720,28-Apr-15,-217.58 ,VOYAGE CARE LTD,SP0000366
WANDSWORTH COUNCIL,ASC,SOCIAL SERVICES,Revenue,CUSTOMER & CLIENT RECPTS - EXT,CL CONT EXTERNAL RESIDENTIAL,627563,130280720,02-Apr-15,-397.20 ,VOYAGE CARE LTD,SP0000366
WANDSWORTH COUNCIL,ASC,SOCIAL SERVICES,Revenue,CUSTOMER & CLIENT RECPTS - EXT,CL CONT EXTERNAL RESIDENTIAL,627569,130280720,02-Apr-15,-345.80 ,VOYAGE CARE LTD,SP0000366
WANDSWORTH COUNCIL,ASC,SOCIAL SERVICES,Revenue,CUSTOMER & CLIENT RECPTS - EXT,CL CONT EXTERNAL RESIDENTIAL,627568,130280720,02-Apr-15,-350.60 ,VOYAGE CARE LTD,SP0000366
WANDSWORTH COUNCIL,ASC,SOCIAL SERVICES,Revenue,CUSTOMER & CLIENT RECPTS - EXT,CL CONT EXTERNAL RESIDENTIAL,627566,130280720,02-Apr-15,-174.07 ,VOYAGE CARE LTD,SP0000366
WANDSWORTH COUNCIL,ASC,SOCIAL SERVICES,Revenue,CUSTOMER & CLIENT RECPTS - EXT,CL CONT EXTERNAL RESIDENTIAL,627565,130280720,02-Apr-15,-353.62 ,VOYAGE CARE LTD,SP0000366
WANDSWORTH COUNCIL,ASC,SOCIAL SERVICES,Revenue,CUSTOMER & CLIENT RECPTS - EXT,CL CONT EXTERNAL RESIDENTIAL,635680,130280720,16-Apr-15,-342.22 ,ST DAVIDS CARE IN THE COMMUNITY,SP0000379
WANDSWORTH COUNCIL,ASC,SOCIAL SERVICES,Revenue,CUSTOMER & CLIENT RECPTS - EXT,CL CONT EXTERNAL RESIDENTIAL,635679,130280720,16-Apr-15,-342.22 ,ST DAVIDS CARE IN THE COMMUNITY,SP0000379
WANDSWORTH COUNCIL,ASC,SOCIAL SERVICES,Revenue,CUSTOMER & CLIENT RECPTS - EXT,CL CONT EXTERNAL RESIDENTIAL,635678,130280720,16-Apr-15,-342.22 ,ST DAVIDS CARE IN THE COMMUNITY,SP0000379
WANDSWORTH COUNCIL,ASC,SOCIAL SERVICES,Revenue,CUSTOMER & CLIENT RECPTS - EXT,CL CONT EXTERNAL RESIDENTIAL,635681,130280720,16-Apr-15,-342.22 ,ESSEX CARE CONSORTIUM,SP0000387
WANDSWORTH COUNCIL,ASC,SOCIAL SERVICES,Revenue,CUSTOMER & CLIENT RECPTS - EXT,CL CONT EXTERNAL RESIDENTIAL,632433,130280720,14-Apr-15,-495.80 ,KENILWORTH RESIDENTIAL HOME,SP0000432
WANDSWORTH COUNCIL,ASC,SOCIAL SERVICES,Revenue,CUSTOMER & CLIENT RECPTS - EXT,CL CONT EXTERNAL RESIDENTIAL,632432,130280720,14-Apr-15,-319.40 ,KENILWORTH RESIDENTIAL HOME,SP0000432
WANDSWORTH COUNCIL,ASC,SOCIAL SERVICES,Revenue,CUSTOMER & CLIENT RECPTS - EXT,CL CONT EXTERNAL RESIDENTIAL,635661,130280720,16-Apr-15,-319.40 ,THE WELL HOUSE,SP0000448
WANDSWORTH COUNCIL,ASC,SOCIAL SERVICES,Revenue,CUSTOMER & CLIENT RECPTS - EXT,CL CONT EXTERNAL RESIDENTIAL,635660,130280720,16-Apr-15,-362.80 ,THE WELL HOUSE,SP0000448
WANDSWORTH COUNCIL,ASC,SOCIAL SERVICES,Revenue,CUSTOMER & CLIENT RECPTS - EXT,CL CONT EXTERNAL RESIDENTIAL,632459,130280720,14-Apr-15,-319.40 ,MACINTYRE CARE,SP0000473
WANDSWORTH COUNCIL,ASC,SOCIAL SERVICES,Revenue,CUSTOMER & CLIENT RECPTS - EXT,CL CONT EXTERNAL RESIDENTIAL,632454,130280720,14-Apr-15,-319.40 ,MACINTYRE CARE,SP0000473
WANDSWORTH COUNCIL,ASC,SOCIAL SERVICES,Revenue,CUSTOMER & CLIENT RECPTS - EXT,CL CONT EXTERNAL RESIDENTIAL,632458,130280720,14-Apr-15,-319.40 ,MACINTYRE CARE,SP0000473
WANDSWORTH COUNCIL,ASC,SOCIAL SERVICES,Revenue,CUSTOMER & CLIENT RECPTS - EXT,CL CONT EXTERNAL RESIDENTIAL,632455,130280720,14-Apr-15,-362.80 ,MACINTYRE CARE,SP0000473
WANDSWORTH COUNCIL,ASC,SOCIAL SERVICES,Revenue,CUSTOMER & CLIENT RECPTS - EXT,CL CONT EXTERNAL RESIDENTIAL,632457,130280720,14-Apr-15,-319.40 ,MACINTYRE CARE,SP0000473
WANDSWORTH COUNCIL,ASC,SOCIAL SERVICES,Revenue,CUSTOMER & CLIENT RECPTS - EXT,CL CONT EXTERNAL RESIDENTIAL,632456,130280720,14-Apr-15,-319.40 ,MACINTYRE CARE,SP0000473
WANDSWORTH COUNCIL,ASC,SOCIAL SERVICES,Revenue,CUSTOMER & CLIENT RECPTS - EXT,CL CONT EXTERNAL RESIDENTIAL,632468,130280720,14-Apr-15,-315.20 ,MACINTYRE CARE,SP0000473
WANDSWORTH COUNCIL,ASC,SOCIAL SERVICES,Revenue,CUSTOMER & CLIENT RECPTS - EXT,CL CONT EXTERNAL RESIDENTIAL,632470,130280720,14-Apr-15,-441.20 ,MACINTYRE CARE,SP0000473
WANDSWORTH COUNCIL,ASC,SOCIAL SERVICES,Revenue,CUSTOMER & CLIENT RECPTS - EXT,CL CONT EXTERNAL RESIDENTIAL,632469,130280720,14-Apr-15,-495.80 ,MACINTYRE CARE,SP0000473
WANDSWORTH COUNCIL,ASC,SOCIAL SERVICES,Revenue,CUSTOMER & CLIENT RECPTS - EXT,CL CONT EXTERNAL RESIDENTIAL,632480,130280720,14-Apr-15,-495.80 ,MACINTYRE CARE,SP0000473
WANDSWORTH COUNCIL,ASC,SOCIAL SERVICES,Revenue,CUSTOMER & CLIENT RECPTS - EXT,CL CONT EXTERNAL RESIDENTIAL,632451,130280720,14-Apr-15,-495.80 ,MACINTYRE CARE,SP0000473
WANDSWORTH COUNCIL,ASC,SOCIAL SERVICES,Revenue,CUSTOMER & CLIENT RECPTS - EXT,CL CONT EXTERNAL RESIDENTIAL,632450,130280720,14-Apr-15,-315.20 ,MACINTYRE CARE,SP0000473
WANDSWORTH COUNCIL,ASC,SOCIAL SERVICES,Revenue,CUSTOMER & CLIENT RECPTS - EXT,CL CONT EXTERNAL RESIDENTIAL,632479,130280720,14-Apr-15,-495.80 ,MACINTYRE CARE,SP0000473
WANDSWORTH COUNCIL,ASC,SOCIAL SERVICES,Revenue,CUSTOMER & CLIENT RECPTS - EXT,CL CONT EXTERNAL RESIDENTIAL,632483,130280720,14-Apr-15,-319.40 ,MACINTYRE CARE,SP0000473
WANDSWORTH COUNCIL,ASC,SOCIAL SERVICES,Revenue,CUSTOMER & CLIENT RECPTS - EXT,CL CONT EXTERNAL RESIDENTIAL,632481,130280720,14-Apr-15,-511.80 ,MACINTYRE CARE,SP0000473
WANDSWORTH COUNCIL,ASC,SOCIAL SERVICES,Revenue,CUSTOMER & CLIENT RECPTS - EXT,CL CONT EXTERNAL RESIDENTIAL,632482,130280720,14-Apr-15,-319.40 ,MACINTYRE CARE,SP0000473
WANDSWORTH COUNCIL,ASC,SOCIAL SERVICES,Revenue,CUSTOMER & CLIENT RECPTS - EXT,CL CONT EXTERNAL RESIDENTIAL,632453,130280720,14-Apr-15,-319.40 ,MACINTYRE CARE,SP0000473
WANDSWORTH COUNCIL,ASC,SOCIAL SERVICES,Revenue,CUSTOMER & CLIENT RECPTS - EXT,CL CONT EXTERNAL RESIDENTIAL,632484,130280720,14-Apr-15,-514.80 ,MACINTYRE CARE,SP0000473
WANDSWORTH COUNCIL,ASC,SOCIAL SERVICES,Revenue,CUSTOMER & CLIENT RECPTS - EXT,CL CONT EXTERNAL RESIDENTIAL,632485,130280720,14-Apr-15,-319.40 ,MACINTYRE CARE,SP0000473
WANDSWORTH COUNCIL,ASC,SOCIAL SERVICES,Revenue,CUSTOMER & CLIENT RECPTS - EXT,CL CONT EXTERNAL RESIDENTIAL,632467,130280720,14-Apr-15,-407.20 ,MACINTYRE CARE,SP0000473
WANDSWORTH COUNCIL,ASC,SOCIAL SERVICES,Revenue,CUSTOMER & CLIENT RECPTS - EXT,CL CONT EXTERNAL RESIDENTIAL,635659,130280720,16-Apr-15,-342.22 ,AIMS CARE PARTNERSHIP,SP0000561
WANDSWORTH COUNCIL,ASC,SOCIAL SERVICES,Revenue,CUSTOMER & CLIENT RECPTS - EXT,CL CONT EXTERNAL RESIDENTIAL,627491,130280720,02-Apr-15,-422.49 ,SEEABILITY,SP0000572
WANDSWORTH COUNCIL,ASC,SOCIAL SERVICES,Revenue,CUSTOMER & CLIENT RECPTS - EXT,CL CONT EXTERNAL RESIDENTIAL,642751,130280720,24-Apr-15,-342.22 ,SEEABILITY,SP0000572
WANDSWORTH COUNCIL,ASC,SOCIAL SERVICES,Revenue,CUSTOMER & CLIENT RECPTS - EXT,CL CONT EXTERNAL RESIDENTIAL,635677,130280720,16-Apr-15,-342.22 ,THE COMMUNITY CARE COMPANY UK LTD,SP0000576
WANDSWORTH COUNCIL,ASC,SOCIAL SERVICES,Revenue,CUSTOMER & CLIENT RECPTS - EXT,CL CONT EXTERNAL RESIDENTIAL,635673,130280720,16-Apr-15,-531.22 ,THE COMMUNITY CARE COMPANY UK LTD,SP0000576
WANDSWORTH COUNCIL,ASC,SOCIAL SERVICES,Revenue,CUSTOMER & CLIENT RECPTS - EXT,CL CONT EXTERNAL RESIDENTIAL,644047,130280720,28-Apr-15,-344.36 ,BIRCC,SP0000584
WANDSWORTH COUNCIL,ASC,SOCIAL SERVICES,Revenue,CUSTOMER & CLIENT RECPTS - EXT,CL CONT EXTERNAL RESIDENTIAL,628188,130280720,07-Apr-15,-439.76 ,THE REGARD PARTNERSHIP,SP0000588
WANDSWORTH COUNCIL,ASC,SOCIAL SERVICES,Revenue,CUSTOMER & CLIENT RECPTS - EXT,CL CONT EXTERNAL RESIDENTIAL,628190,130280720,07-Apr-15,-353.62 ,THE REGARD PARTNERSHIP,SP0000588
WANDSWORTH COUNCIL,ASC,SOCIAL SERVICES,Revenue,CUSTOMER & CLIENT RECPTS - EXT,CL CONT EXTERNAL RESIDENTIAL,628191,130280720,07-Apr-15,-559.90 ,THE REGARD PARTNERSHIP,SP0000588
WANDSWORTH COUNCIL,ASC,SOCIAL SERVICES,Revenue,CUSTOMER & CLIENT RECPTS - EXT,CL CONT EXTERNAL RESIDENTIAL,628192,130280720,07-Apr-15,-439.76 ,THE REGARD PARTNERSHIP,SP0000588
WANDSWORTH COUNCIL,ASC,SOCIAL SERVICES,Revenue,CUSTOMER & CLIENT RECPTS - EXT,CL CONT EXTERNAL RESIDENTIAL,628189,130280720,07-Apr-15,-439.76 ,THE REGARD PARTNERSHIP,SP0000588
WANDSWORTH COUNCIL,ASC,SOCIAL SERVICES,Revenue,CUSTOMER & CLIENT RECPTS - EXT,CL CONT EXTERNAL RESIDENTIAL,628198,130280720,07-Apr-15,-362.80 ,LAETUS LODGE,SP0000600
WANDSWORTH COUNCIL,ASC,SOCIAL SERVICES,Revenue,CUSTOMER & CLIENT RECPTS - EXT,CL CONT EXTERNAL RESIDENTIAL,628194,130280720,07-Apr-15,-319.40 ,LAETUS LODGE,SP0000600
WANDSWORTH COUNCIL,ASC,SOCIAL SERVICES,Revenue,CUSTOMER & CLIENT RECPTS - EXT,CL CONT EXTERNAL RESIDENTIAL,628196,130280720,07-Apr-15,-397.20 ,LAETUS LODGE,SP0000600
WANDSWORTH COUNCIL,ASC,SOCIAL SERVICES,Revenue,CUSTOMER & CLIENT RECPTS - EXT,CL CONT EXTERNAL RESIDENTIAL,628199,130280720,07-Apr-15,-319.40 ,LAETUS LODGE,SP0000600
WANDSWORTH COUNCIL,ASC,SOCIAL SERVICES,Revenue,CUSTOMER & CLIENT RECPTS - EXT,CL CONT EXTERNAL RESIDENTIAL,628200,130280720,07-Apr-15,-319.40 ,LAETUS LODGE,SP0000600
WANDSWORTH COUNCIL,ASC,SOCIAL SERVICES,Revenue,CUSTOMER & CLIENT RECPTS - EXT,CL CONT EXTERNAL RESIDENTIAL,645905,130280720,30-Apr-15,-57.04 ,MENCAP,SP0000604
WANDSWORTH COUNCIL,ASC,SOCIAL SERVICES,Revenue,CUSTOMER & CLIENT RECPTS - EXT,CL CONT EXTERNAL RESIDENTIAL,645906,130280720,30-Apr-15,-287.32 ,MENCAP,SP0000604
WANDSWORTH COUNCIL,ASC,SOCIAL SERVICES,Revenue,CUSTOMER & CLIENT RECPTS - EXT,CL CONT EXTERNAL RESIDENTIAL,645896,130280720,30-Apr-15,-319.40 ,METROPOLITAN HOUSING TRUST,SP0000626
WANDSWORTH COUNCIL,ASC,SOCIAL SERVICES,Revenue,CUSTOMER & CLIENT RECPTS - EXT,CL CONT EXTERNAL RESIDENTIAL,645895,130280720,30-Apr-15,-319.40 ,METROPOLITAN HOUSING TRUST,SP0000626
WANDSWORTH COUNCIL,ASC,SOCIAL SERVICES,Revenue,CUSTOMER & CLIENT RECPTS - EXT,CL CONT EXTERNAL RESIDENTIAL,627531,130280720,02-Apr-15,-495.80 ,METROPOLITAN HOUSING TRUST,SP0000626
WANDSWORTH COUNCIL,ASC,SOCIAL SERVICES,Revenue,CUSTOMER & CLIENT RECPTS - EXT,CL CONT EXTERNAL RESIDENTIAL,627530,130280720,02-Apr-15,-319.40 ,METROPOLITAN HOUSING TRUST,SP0000626
WANDSWORTH COUNCIL,ASC,SOCIAL SERVICES,Revenue,CUSTOMER & CLIENT RECPTS - EXT,CL CONT EXTERNAL RESIDENTIAL,645899,130280720,30-Apr-15,-336.44 ,METROPOLITAN HOUSING TRUST,SP0000626
WANDSWORTH COUNCIL,ASC,SOCIAL SERVICES,Revenue,CUSTOMER & CLIENT RECPTS - EXT,CL CONT EXTERNAL RESIDENTIAL,627522,130280720,02-Apr-15,-319.40 ,METROPOLITAN HOUSING TRUST,SP0000626
WANDSWORTH COUNCIL,ASC,SOCIAL SERVICES,Revenue,CUSTOMER & CLIENT RECPTS - EXT,CL CONT EXTERNAL RESIDENTIAL,627524,130280720,02-Apr-15,-319.40 ,METROPOLITAN HOUSING TRUST,SP0000626
WANDSWORTH COUNCIL,ASC,SOCIAL SERVICES,Revenue,CUSTOMER & CLIENT RECPTS - EXT,CL CONT EXTERNAL RESIDENTIAL,645901,130280720,30-Apr-15,-319.40 ,METROPOLITAN HOUSING TRUST,SP0000626
WANDSWORTH COUNCIL,ASC,SOCIAL SERVICES,Revenue,CUSTOMER & CLIENT RECPTS - EXT,CL CONT EXTERNAL RESIDENTIAL,645903,130280720,30-Apr-15,-319.40 ,METROPOLITAN HOUSING TRUST,SP0000626
WANDSWORTH COUNCIL,ASC,SOCIAL SERVICES,Revenue,CUSTOMER & CLIENT RECPTS - EXT,CL CONT EXTERNAL RESIDENTIAL,627525,130280720,02-Apr-15,-495.80 ,METROPOLITAN HOUSING TRUST,SP0000626
WANDSWORTH COUNCIL,ASC,SOCIAL SERVICES,Revenue,CUSTOMER & CLIENT RECPTS - EXT,CL CONT EXTERNAL RESIDENTIAL,627529,130280720,02-Apr-15,-319.40 ,METROPOLITAN HOUSING TRUST,SP0000626
WANDSWORTH COUNCIL,ASC,SOCIAL SERVICES,Revenue,CUSTOMER & CLIENT RECPTS - EXT,CL CONT EXTERNAL RESIDENTIAL,627527,130280720,02-Apr-15,-319.40 ,METROPOLITAN HOUSING TRUST,SP0000626
WANDSWORTH COUNCIL,ASC,SOCIAL SERVICES,Revenue,CUSTOMER & CLIENT RECPTS - EXT,CL CONT EXTERNAL RESIDENTIAL,627523,130280720,02-Apr-15,-495.80 ,METROPOLITAN HOUSING TRUST,SP0000626
WANDSWORTH COUNCIL,ASC,SOCIAL SERVICES,Revenue,CUSTOMER & CLIENT RECPTS - EXT,CL CONT EXTERNAL RESIDENTIAL,627532,130280720,02-Apr-15,-319.40 ,METROPOLITAN HOUSING TRUST,SP0000626
WANDSWORTH COUNCIL,ASC,SOCIAL SERVICES,Revenue,CUSTOMER & CLIENT RECPTS - EXT,CL CONT EXTERNAL RESIDENTIAL,645897,130280720,30-Apr-15,-495.80 ,METROPOLITAN HOUSING TRUST,SP0000626
WANDSWORTH COUNCIL,ASC,SOCIAL SERVICES,Revenue,CUSTOMER & CLIENT RECPTS - EXT,CL CONT EXTERNAL RESIDENTIAL,645898,130280720,30-Apr-15,-319.40 ,METROPOLITAN HOUSING TRUST,SP0000626
WANDSWORTH COUNCIL,ASC,SOCIAL SERVICES,Revenue,CUSTOMER & CLIENT RECPTS - EXT,CL CONT EXTERNAL RESIDENTIAL,627535,130280720,02-Apr-15,-319.40 ,METROPOLITAN HOUSING TRUST,SP0000626
WANDSWORTH COUNCIL,ASC,SOCIAL SERVICES,Revenue,CUSTOMER & CLIENT RECPTS - EXT,CL CONT EXTERNAL RESIDENTIAL,627537,130280720,02-Apr-15,-319.40 ,METROPOLITAN HOUSING TRUST,SP0000626
WANDSWORTH COUNCIL,ASC,SOCIAL SERVICES,Revenue,CUSTOMER & CLIENT RECPTS - EXT,CL CONT EXTERNAL RESIDENTIAL,627533,130280720,02-Apr-15,-495.80 ,METROPOLITAN HOUSING TRUST,SP0000626
WANDSWORTH COUNCIL,ASC,SOCIAL SERVICES,Revenue,CUSTOMER & CLIENT RECPTS - EXT,CL CONT EXTERNAL RESIDENTIAL,635700,130280720,16-Apr-15,-125.48 ,LIVABILITY,SP0000669
WANDSWORTH COUNCIL,ASC,SOCIAL SERVICES,Revenue,CUSTOMER & CLIENT RECPTS - EXT,CL CONT EXTERNAL RESIDENTIAL,645888,130280720,30-Apr-15,-320.42 ,LOVING CARE LTD,SP0000670
WANDSWORTH COUNCIL,ASC,SOCIAL SERVICES,Revenue,CUSTOMER & CLIENT RECPTS - EXT,CL CONT EXTERNAL RESIDENTIAL,645889,130280720,30-Apr-15,-320.60 ,LOVING CARE LTD,SP0000670
WANDSWORTH COUNCIL,ASC,SOCIAL SERVICES,Revenue,CUSTOMER & CLIENT RECPTS - EXT,CL CONT EXTERNAL RESIDENTIAL,645892,130280720,30-Apr-15,-320.94 ,LOVING CARE LTD,SP0000670
WANDSWORTH COUNCIL,ASC,SOCIAL SERVICES,Revenue,CUSTOMER & CLIENT RECPTS - EXT,CL CONT EXTERNAL RESIDENTIAL,645891,130280720,30-Apr-15,-327.95 ,LOVING CARE LTD,SP0000670
WANDSWORTH COUNCIL,ASC,SOCIAL SERVICES,Revenue,CUSTOMER & CLIENT RECPTS - EXT,CL CONT EXTERNAL RESIDENTIAL,645894,130280720,30-Apr-15,-321.20 ,LOVING CARE LTD,SP0000670
WANDSWORTH COUNCIL,ASC,SOCIAL SERVICES,Revenue,CUSTOMER & CLIENT RECPTS - EXT,CL CONT EXTERNAL RESIDENTIAL,645893,130280720,30-Apr-15,-319.40 ,LOVING CARE LTD,SP0000670
WANDSWORTH COUNCIL,ASC,SOCIAL SERVICES,Revenue,CUSTOMER & CLIENT RECPTS - EXT,CL CONT EXTERNAL RESIDENTIAL,645890,130280720,30-Apr-15,-320.42 ,LOVING CARE LTD,SP0000670
WANDSWORTH COUNCIL,ASC,SOCIAL SERVICES,Revenue,CUSTOMER & CLIENT RECPTS - EXT,CL CONT EXTERNAL RESIDENTIAL,627464,130280720,02-Apr-15,-319.40 ,LOVING CARE LTD,SP0000670
WANDSWORTH COUNCIL,ASC,SOCIAL SERVICES,Revenue,CUSTOMER & CLIENT RECPTS - EXT,CL CONT EXTERNAL RESIDENTIAL,627465,130280720,02-Apr-15,-319.40 ,LOVING CARE LTD,SP0000670
WANDSWORTH COUNCIL,ASC,SOCIAL SERVICES,Revenue,CUSTOMER & CLIENT RECPTS - EXT,CL CONT EXTERNAL RESIDENTIAL,627460,130280720,02-Apr-15,-319.40 ,LOVING CARE LTD,SP0000670
WANDSWORTH COUNCIL,ASC,SOCIAL SERVICES,Revenue,CUSTOMER & CLIENT RECPTS - EXT,CL CONT EXTERNAL RESIDENTIAL,627462,130280720,02-Apr-15,-319.40 ,LOVING CARE LTD,SP0000670
WANDSWORTH COUNCIL,ASC,SOCIAL SERVICES,Revenue,CUSTOMER & CLIENT RECPTS - EXT,CL CONT EXTERNAL RESIDENTIAL,627463,130280720,02-Apr-15,-319.40 ,LOVING CARE LTD,SP0000670
WANDSWORTH COUNCIL,ASC,SOCIAL SERVICES,Revenue,CUSTOMER & CLIENT RECPTS - EXT,CL CONT EXTERNAL RESIDENTIAL,627466,130280720,02-Apr-15,-319.40 ,LOVING CARE LTD,SP0000670
WANDSWORTH COUNCIL,ASC,SOCIAL SERVICES,Revenue,CUSTOMER & CLIENT RECPTS - EXT,CL CONT EXTERNAL RESIDENTIAL,627461,130280720,02-Apr-15,-319.40 ,LOVING CARE LTD,SP0000670
WANDSWORTH COUNCIL,ASC,SOCIAL SERVICES,Revenue,CUSTOMER & CLIENT RECPTS - EXT,CL CONT EXTERNAL RESIDENTIAL,645871,130280720,30-Apr-15,-362.80 ,WHITE ROSE CARE,SP0000780
WANDSWORTH COUNCIL,ASC,SOCIAL SERVICES,Revenue,CUSTOMER & CLIENT RECPTS - EXT,CL CONT EXTERNAL RESIDENTIAL,635636,130280720,16-Apr-15,-362.80 ,WHITE ROSE CARE,SP0000780
WANDSWORTH COUNCIL,ASC,SOCIAL SERVICES,Revenue,CUSTOMER & CLIENT RECPTS - EXT,CL CONT EXTERNAL RESIDENTIAL,628225,130280720,07-Apr-15,-319.40 ,FREEWAYS TRUST LTD,SP0000793
WANDSWORTH COUNCIL,ASC,SOCIAL SERVICES,Revenue,CUSTOMER & CLIENT RECPTS - EXT,CL CONT EXTERNAL RESIDENTIAL,644050,130280720,28-Apr-15,-296.59 ,PROSPECTS,SP0000800
WANDSWORTH COUNCIL,ASC,SOCIAL SERVICES,Revenue,CUSTOMER & CLIENT RECPTS - EXT,CL CONT EXTERNAL RESIDENTIAL,627476,130280720,02-Apr-15,-353.62 ,WESSEX AUTISTIC SOCIETY,SP0000805
WANDSWORTH COUNCIL,ASC,SOCIAL SERVICES,Revenue,CUSTOMER & CLIENT RECPTS - EXT,CL CONT EXTERNAL RESIDENTIAL,635663,130280720,16-Apr-15,-353.62 ,BEECH LODGE,SP0000807
WANDSWORTH COUNCIL,ASC,SOCIAL SERVICES,Revenue,CUSTOMER & CLIENT RECPTS - EXT,CL CONT EXTERNAL RESIDENTIAL,635664,130280720,16-Apr-15,-353.62 ,BEECH LODGE,SP0000807
WANDSWORTH COUNCIL,ASC,SOCIAL SERVICES,Revenue,CUSTOMER & CLIENT RECPTS - EXT,CL CONT EXTERNAL RESIDENTIAL,635662,130280720,16-Apr-15,-353.62 ,BEECH LODGE,SP0000807
WANDSWORTH COUNCIL,ASC,SOCIAL SERVICES,Revenue,CUSTOMER & CLIENT RECPTS - EXT,CL CONT EXTERNAL RESIDENTIAL,627503,130280720,02-Apr-15,-397.20 ,CHATSWORTH CARE,SP0000831
WANDSWORTH COUNCIL,ASC,SOCIAL SERVICES,Revenue,CUSTOMER & CLIENT RECPTS - EXT,CL CONT EXTERNAL RESIDENTIAL,632489,130280720,14-Apr-15,-388.72 ,CHATSWORTH CARE,SP0000831
WANDSWORTH COUNCIL,ASC,SOCIAL SERVICES,Revenue,CUSTOMER & CLIENT RECPTS - EXT,CL CONT EXTERNAL RESIDENTIAL,632400,130280720,14-Apr-15,-319.40 ,ROYAL MENCAP SOCIETY,SP0000842
WANDSWORTH COUNCIL,ASC,SOCIAL SERVICES,Revenue,CUSTOMER & CLIENT RECPTS - EXT,CL CONT EXTERNAL RESIDENTIAL,632401,130280720,14-Apr-15,-319.40 ,ROYAL MENCAP SOCIETY,SP0000842
WANDSWORTH COUNCIL,ASC,SOCIAL SERVICES,Revenue,CUSTOMER & CLIENT RECPTS - EXT,CL CONT EXTERNAL RESIDENTIAL,627492,130280720,02-Apr-15,-353.62 ,STALLCOMBE HOUSE,SP0000843
WANDSWORTH COUNCIL,ASC,SOCIAL SERVICES,Revenue,CUSTOMER & CLIENT RECPTS - EXT,CL CONT EXTERNAL RESIDENTIAL,635082,130280720,15-Apr-15,-425.57 ,SCOPE,SP0000852
WANDSWORTH COUNCIL,ASC,SOCIAL SERVICES,Revenue,CUSTOMER & CLIENT RECPTS - EXT,CL CONT EXTERNAL RESIDENTIAL,635083,130280720,15-Apr-15,-370.50 ,SCOPE,SP0000852
WANDSWORTH COUNCIL,ASC,SOCIAL SERVICES,Revenue,CUSTOMER & CLIENT RECPTS - EXT,CL CONT EXTERNAL RESIDENTIAL,642743,130280720,24-Apr-15,-344.36 ,ASHCROFT CARE SERVICES,SP0000872
WANDSWORTH COUNCIL,ASC,SOCIAL SERVICES,Revenue,CUSTOMER & CLIENT RECPTS - EXT,CL CONT EXTERNAL RESIDENTIAL,627490,130280720,02-Apr-15,-319.40 ,WINSLOW COURT,SP0000886
WANDSWORTH COUNCIL,ASC,SOCIAL SERVICES,Revenue,CUSTOMER & CLIENT RECPTS - EXT,CL CONT EXTERNAL RESIDENTIAL,635657,130280720,16-Apr-15,-319.40 ,THE LEO TRUST,SP0000908
WANDSWORTH COUNCIL,ASC,SOCIAL SERVICES,Revenue,CUSTOMER & CLIENT RECPTS - EXT,CL CONT EXTERNAL RESIDENTIAL,635653,130280720,16-Apr-15,-342.22 ,HILL PARK AUTISTIC TRUST,SP0000926
WANDSWORTH COUNCIL,ASC,SOCIAL SERVICES,Revenue,CUSTOMER & CLIENT RECPTS - EXT,CL CONT EXTERNAL RESIDENTIAL,632462,130280720,14-Apr-15,-319.40 ,MISSION CARE,SP0000958
WANDSWORTH COUNCIL,ASC,SOCIAL SERVICES,Revenue,CUSTOMER & CLIENT RECPTS - EXT,CL CONT EXTERNAL RESIDENTIAL,642745,130280720,24-Apr-15,-353.62 ,CHERRY LODGE,SP0000965
WANDSWORTH COUNCIL,ASC,SOCIAL SERVICES,Revenue,CUSTOMER & CLIENT RECPTS - EXT,CL CONT EXTERNAL RESIDENTIAL,627474,130280720,02-Apr-15,-319.40 ,RIDGEWOOD CARE SERVICES LTD,SP0000969
WANDSWORTH COUNCIL,ASC,SOCIAL SERVICES,Revenue,CUSTOMER & CLIENT RECPTS - EXT,CL CONT EXTERNAL RESIDENTIAL,628224,130280720,07-Apr-15,-353.62 ,LEONARD CHESHIRE,SP0000976
WANDSWORTH COUNCIL,ASC,SOCIAL SERVICES,Revenue,CUSTOMER & CLIENT RECPTS - EXT,CL CONT EXTERNAL RESIDENTIAL,635649,130280720,16-Apr-15,-337.93 ,CREDITON CARE & SUPPORT HOMES,SP0000998
WANDSWORTH COUNCIL,ASC,SOCIAL SERVICES,Revenue,CUSTOMER & CLIENT RECPTS - EXT,CL CONT EXTERNAL RESIDENTIAL,632436,130280720,14-Apr-15,-319.40 ,LOTUS CARE HOME LTD,SP0001006
WANDSWORTH COUNCIL,ASC,SOCIAL SERVICES,Revenue,CUSTOMER & CLIENT RECPTS - EXT,CL CONT EXTERNAL RESIDENTIAL,628206,130280720,07-Apr-15,-141.22 ,ST ELIZABETHS CENTRE,SP0001019
WANDSWORTH COUNCIL,ASC,SOCIAL SERVICES,Revenue,CUSTOMER & CLIENT RECPTS - EXT,CL CONT EXTERNAL RESIDENTIAL,627468,130280720,02-Apr-15,-145.92 ,ST ELIZABETHS CENTRE,SP0001019
WANDSWORTH COUNCIL,ASC,SOCIAL SERVICES,Revenue,CUSTOMER & CLIENT RECPTS - EXT,CL CONT EXTERNAL RESIDENTIAL,627467,130280720,02-Apr-15,-131.80 ,ST ELIZABETHS CENTRE,SP0001019
WANDSWORTH COUNCIL,ASC,SOCIAL SERVICES,Revenue,CUSTOMER & CLIENT RECPTS - EXT,CL CONT EXTERNAL RESIDENTIAL,635645,130280720,16-Apr-15,-319.40 ,THE HOME FARM TRUST LTD,SP0001048
WANDSWORTH COUNCIL,ASC,SOCIAL SERVICES,Revenue,CUSTOMER & CLIENT RECPTS - EXT,CL CONT EXTERNAL RESIDENTIAL,635647,130280720,16-Apr-15,-495.80 ,THE HOME FARM TRUST LTD,SP0001048
WANDSWORTH COUNCIL,ASC,SOCIAL SERVICES,Revenue,CUSTOMER & CLIENT RECPTS - EXT,CL CONT EXTERNAL RESIDENTIAL,635654,130280720,16-Apr-15,-495.80 ,THE HOME FARM TRUST LTD,SP0001048
WANDSWORTH COUNCIL,ASC,SOCIAL SERVICES,Revenue,CUSTOMER & CLIENT RECPTS - EXT,CL CONT EXTERNAL RESIDENTIAL,635646,130280720,16-Apr-15,-506.92 ,THE HOME FARM TRUST LTD,SP0001048
WANDSWORTH COUNCIL,ASC,SOCIAL SERVICES,Revenue,CUSTOMER & CLIENT RECPTS - EXT,CL CONT EXTERNAL RESIDENTIAL,635652,130280720,16-Apr-15,-319.40 ,ALLIED CARE (MHS) LTD,SP0001069
WANDSWORTH COUNCIL,ASC,SOCIAL SERVICES,Revenue,CUSTOMER & CLIENT RECPTS - EXT,CL CONT EXTERNAL RESIDENTIAL,635658,130280720,16-Apr-15,-285.18 ,SAXON COURT,SP0001100
WANDSWORTH COUNCIL,ASC,SOCIAL SERVICES,Revenue,CUSTOMER & CLIENT RECPTS - EXT,CL CONT EXTERNAL RESIDENTIAL,644021,130280720,28-Apr-15,-342.22 ,ILG LTD,SP0001103
WANDSWORTH COUNCIL,ASC,SOCIAL SERVICES,Revenue,CUSTOMER & CLIENT RECPTS - EXT,CL CONT EXTERNAL RESIDENTIAL,627562,130280720,02-Apr-15,-353.62 ,ILG LTD,SP0001103
WANDSWORTH COUNCIL,ASC,SOCIAL SERVICES,Revenue,CUSTOMER & CLIENT RECPTS - EXT,CL CONT EXTERNAL RESIDENTIAL,628202,130280720,07-Apr-15,-362.80 ,TOTTERDOWN,SP0001113
WANDSWORTH COUNCIL,ASC,SOCIAL SERVICES,Revenue,CUSTOMER & CLIENT RECPTS - EXT,CL CONT EXTERNAL RESIDENTIAL,635643,130280720,16-Apr-15,-436.15 ,SUSSEX HEALTH CARE,SP0001115
WANDSWORTH COUNCIL,ASC,SOCIAL SERVICES,Revenue,CUSTOMER & CLIENT RECPTS - EXT,CL CONT EXTERNAL RESIDENTIAL,635656,130280720,16-Apr-15,-425.57 ,SUSSEX HEALTH CARE,SP0001115
WANDSWORTH COUNCIL,ASC,SOCIAL SERVICES,Revenue,CUSTOMER & CLIENT RECPTS - EXT,CL CONT EXTERNAL RESIDENTIAL,635634,130280720,16-Apr-15,-342.22 ,HOME FROM HOME CARE LIMITED,SP0001373
WANDSWORTH COUNCIL,ASC,SOCIAL SERVICES,Revenue,CUSTOMER & CLIENT RECPTS - EXT,CL CONT EXTERNAL RESIDENTIAL,627452,130280720,02-Apr-15,-64.79 ,LARKFIELD HALL LTD T/A PEPENBURY,SP0001378
WANDSWORTH COUNCIL,ASC,SOCIAL SERVICES,Revenue,CUSTOMER & CLIENT RECPTS - EXT,CL CONT EXTERNAL RESIDENTIAL,627451,130280720,02-Apr-15,-207.31 ,LARKFIELD HALL LTD T/A PEPENBURY,SP0001378
WANDSWORTH COUNCIL,ASC,SOCIAL SERVICES,Revenue,CUSTOMER & CLIENT RECPTS - EXT,CL CONT EXTERNAL RESIDENTIAL,632488,130280720,14-Apr-15,-388.72 ,ROOKERY HOVE PRIORY,SP0001498
WANDSWORTH COUNCIL,ASC,SOCIAL SERVICES,Revenue,CUSTOMER & CLIENT RECPTS - EXT,CL CONT EXTERNAL RESIDENTIAL,644040,130280720,28-Apr-15,-319.40 ,MCCH SOCIETY LIMITED,SP0001531
WANDSWORTH COUNCIL,ASC,SOCIAL SERVICES,Revenue,CUSTOMER & CLIENT RECPTS - EXT,CL CONT EXTERNAL RESIDENTIAL,644041,130280720,28-Apr-15,-319.40 ,MCCH SOCIETY LIMITED,SP0001531
WANDSWORTH COUNCIL,ASC,SOCIAL SERVICES,Revenue,CUSTOMER & CLIENT RECPTS - EXT,CL CONT EXTERNAL RESIDENTIAL,644042,130280720,28-Apr-15,-321.20 ,MCCH SOCIETY LIMITED,SP0001531
WANDSWORTH COUNCIL,ASC,SOCIAL SERVICES,Revenue,CUSTOMER & CLIENT RECPTS - EXT,CL CONT EXTERNAL RESIDENTIAL,644043,130280720,28-Apr-15,-321.20 ,MCCH SOCIETY LIMITED,SP0001531
WANDSWORTH COUNCIL,ASC,SOCIAL SERVICES,Revenue,CUSTOMER & CLIENT RECPTS - EXT,CL CONT EXTERNAL RESIDENTIAL,635697,130280720,16-Apr-15,-369.38 ,NUTLEY HALL LTD,SP0001581
WANDSWORTH COUNCIL,ASC,SOCIAL SERVICES,Revenue,CUSTOMER & CLIENT RECPTS - EXT,CL CONT EXTERNAL RESIDENTIAL,632430,130280720,14-Apr-15,-301.50 ,CRAEGMOOR OLD RECTORY BREDE PRIORY,SP0001621
WANDSWORTH COUNCIL,ASC,SOCIAL SERVICES,Revenue,CUSTOMER & CLIENT RECPTS - EXT,CL CONT EXTERNAL RESIDENTIAL,628205,130280720,07-Apr-15,-141.22 ,ACH OF LONDON LLP,SP0001688
WANDSWORTH COUNCIL,ASC,SOCIAL SERVICES,Revenue,CUSTOMER & CLIENT RECPTS - EXT,CL CONT EXTERNAL RESIDENTIAL,635642,130280720,16-Apr-15,-425.57 ,ACH OF LONDON LLP,SP0001688
WANDSWORTH COUNCIL,ASC,SOCIAL SERVICES,Revenue,CUSTOMER & CLIENT RECPTS - EXT,CL CONT EXTERNAL RESIDENTIAL,642782,130280720,24-Apr-15,-342.22 ,PATHWAY HEALTHCARE,SP0001779
WANDSWORTH COUNCIL,ASC,SOCIAL SERVICES,Revenue,CUSTOMER & CLIENT RECPTS - EXT,CL CONT EXTERNAL RESIDENTIAL,627517,130280720,02-Apr-15,-319.40 ,THE BRANDON TRUST,SP0005337
WANDSWORTH COUNCIL,ASC,SOCIAL SERVICES,Revenue,CUSTOMER & CLIENT RECPTS - EXT,CL CONT EXTERNAL RESIDENTIAL,627510,130280720,02-Apr-15,-319.40 ,NORCREST (2000) HOME LTD,SP0008343
WANDSWORTH COUNCIL,ASC,SOCIAL SERVICES,Revenue,CUSTOMER & CLIENT RECPTS - EXT,CL CONT EXTERNAL RESIDENTIAL,641672,130280720,24-Apr-15,-980.40 ,COUNTRY COURT CARE,SP0009215
WANDSWORTH COUNCIL,ASC,SOCIAL SERVICES,Revenue,CUSTOMER & CLIENT RECPTS - EXT,CLIENT CONTS EXTERNAL NURSING,642773,130280820,24-Apr-15,-319.40 ,WINGHAM COURT,SP0000025
WANDSWORTH COUNCIL,ASC,SOCIAL SERVICES,Revenue,CUSTOMER & CLIENT RECPTS - EXT,CLIENT CONTS EXTERNAL NURSING,627557,130280820,02-Apr-15,-319.40 ,VOYAGE CARE LTD,SP0000366
WANDSWORTH COUNCIL,ASC,SOCIAL SERVICES,Revenue,CUSTOMER & CLIENT RECPTS - EXT,CLIENT CONTS EXTERNAL NURSING,644018,130280820,28-Apr-15,-370.50 ,VOYAGE CARE LTD,SP0000366
WANDSWORTH COUNCIL,ASC,SOCIAL SERVICES,Revenue,CUSTOMER & CLIENT RECPTS - EXT,CLIENT CONTS EXTERNAL NURSING,644023,130280820,28-Apr-15,-397.20 ,VOYAGE CARE LTD,SP0000366
WANDSWORTH COUNCIL,ASC,SOCIAL SERVICES,Revenue,CUSTOMER & CLIENT RECPTS - EXT,CLIENT CONTS EXTERNAL NURSING,644014,130280820,28-Apr-15,-319.40 ,VOYAGE CARE LTD,SP0000366
WANDSWORTH COUNCIL,ASC,SOCIAL SERVICES,Revenue,CUSTOMER & CLIENT RECPTS - EXT,CLIENT CONTS EXTERNAL NURSING,627564,130280820,02-Apr-15,-397.20 ,VOYAGE CARE LTD,SP0000366
WANDSWORTH COUNCIL,ASC,SOCIAL SERVICES,Revenue,CUSTOMER & CLIENT RECPTS - EXT,CLIENT CONTS EXTERNAL NURSING,627560,130280820,02-Apr-15,-382.85 ,VOYAGE CARE LTD,SP0000366
WANDSWORTH COUNCIL,ASC,SOCIAL SERVICES,Revenue,CUSTOMER & CLIENT RECPTS - EXT,CLIENT CONTS EXTERNAL NURSING,635671,130280820,16-Apr-15,-331.04 ,ROYAL HOSPITAL FOR NEURO-DISABILITY,SP0000375
WANDSWORTH COUNCIL,ASC,SOCIAL SERVICES,Revenue,CUSTOMER & CLIENT RECPTS - EXT,CLIENT CONTS EXTERNAL NURSING,635694,130280820,16-Apr-15,-345.80 ,HIGH HURLANDS HOMES,SP0000668
WANDSWORTH COUNCIL,ASC,SOCIAL SERVICES,Revenue,CUSTOMER & CLIENT RECPTS - EXT,CLIENT CONTS EXTERNAL NURSING,641788,130280820,24-Apr-15,-387.40 ,TRINITY COURT NURSING HOME,SP0001001
WANDSWORTH COUNCIL,ASC,SOCIAL SERVICES,Revenue,CUSTOMER & CLIENT RECPTS - EXT,CLIENT CONTS EXTERNAL NURSING,641820,130280820,24-Apr-15,-495.80 ,YORK COURT CARE HOME,SP0006091
WANDSWORTH COUNCIL,ASC,SOCIAL SERVICES,Revenue,CUSTOMER & CLIENT RECPTS - EXT,RNCC,642773,130284120,24-Apr-15,-443.56 ,WINGHAM COURT,SP0000025
WANDSWORTH COUNCIL,ASC,SOCIAL SERVICES,Revenue,CUSTOMER & CLIENT RECPTS - EXT,RNCC,644023,130284120,28-Apr-15,-443.56 ,VOYAGE CARE LTD,SP0000366
WANDSWORTH COUNCIL,ASC,SOCIAL SERVICES,Revenue,CUSTOMER & CLIENT RECPTS - EXT,RNCC,627564,130284120,02-Apr-15,-443.56 ,VOYAGE CARE LTD,SP0000366
WANDSWORTH COUNCIL,ASC,SOCIAL SERVICES,Revenue,CUSTOMER & CLIENT RECPTS - EXT,RNCC,627557,130284120,02-Apr-15,-443.56 ,VOYAGE CARE LTD,SP0000366
WANDSWORTH COUNCIL,ASC,SOCIAL SERVICES,Revenue,CUSTOMER & CLIENT RECPTS - EXT,RNCC,644014,130284120,28-Apr-15,-443.56 ,VOYAGE CARE LTD,SP0000366
WANDSWORTH COUNCIL,ASC,SOCIAL SERVICES,Revenue,CUSTOMER & CLIENT RECPTS - EXT,RNCC,635671,130284120,16-Apr-15,-491.08 ,ROYAL HOSPITAL FOR NEURO-DISABILITY,SP0000375
WANDSWORTH COUNCIL,ASC,SOCIAL SERVICES,Revenue,CUSTOMER & CLIENT RECPTS - EXT,RNCC,635694,130284120,16-Apr-15,-610.44 ,HIGH HURLANDS HOMES,SP0000668
WANDSWORTH COUNCIL,ASC,SOCIAL SERVICES,Revenue,CUSTOMER & CLIENT RECPTS - EXT,RNCC,641788,130284120,24-Apr-15,-443.56 ,TRINITY COURT NURSING HOME,SP0001001
WANDSWORTH COUNCIL,ASC,SOCIAL SERVICES,Revenue,CUSTOMER & CLIENT RECPTS - EXT,RNCC,641820,130284120,24-Apr-15,-443.56 ,YORK COURT CARE HOME,SP0006091
WANDSWORTH COUNCIL,ASC,ENVIRONMENT & COMMUNITY,Revenue,GRANTS & SUBSCRIPTIONS,CONTRACTS TO VOLUNTARY ORGS,644180,136237550,28-Apr-15,"7,785.87 ",WANDSWORTH MENCAP,SP0000834
WANDSWORTH COUNCIL,PH,SOCIAL SERVICES,Revenue,PRIVATE,EXTERNAL RESIDENTIAL CARE,645914,140145330,30-Apr-15,"2,989.29 ",CRANSTOUN DRUG SERVICES,SP0000202
WANDSWORTH COUNCIL,PH,SOCIAL SERVICES,Revenue,PRIVATE,EXTERNAL RESIDENTIAL CARE,645915,140145330,30-Apr-15,"2,988.54 ",CRANSTOUN DRUG SERVICES,SP0000202
WANDSWORTH COUNCIL,PH,SOCIAL SERVICES,Revenue,PRIVATE,EXTERNAL RESIDENTIAL CARE,645916,140145330,30-Apr-15,"2,989.29 ",CRANSTOUN DRUG SERVICES,SP0000202
WANDSWORTH COUNCIL,PH,SOCIAL SERVICES,Revenue,PRIVATE,EXTERNAL RESIDENTIAL CARE,632399,140145330,14-Apr-15,"5,266.08 ",KAIROS COMMUNITY TRUST,SP0000525
WANDSWORTH COUNCIL,PH,SOCIAL SERVICES,Revenue,PRIVATE,EXTERNAL RESIDENTIAL CARE,632446,140145330,14-Apr-15,"2,666.60 ",STREETSCENE ADDICTION RECOVERY,SP0001163
WANDSWORTH COUNCIL,PH,SOCIAL SERVICES,Revenue,PRIVATE,EXTERNAL RESIDENTIAL CARE,642767,140145330,24-Apr-15,646.57 ,BROADREACH HOUSE,SP0001195
WANDSWORTH COUNCIL,PH,SOCIAL SERVICES,Revenue,PRIVATE,EXTERNAL RESIDENTIAL CARE,642766,140145330,24-Apr-15,"1,290.71 ",BROADREACH HOUSE,SP0001195
WANDSWORTH COUNCIL,PH,SOCIAL SERVICES,Revenue,PRIVATE,EXTERNAL RESIDENTIAL CARE,632406,140145330,14-Apr-15,"2,657.14 ",MOUNT CARMEL,SP0001309
WANDSWORTH COUNCIL,PH,SOCIAL SERVICES,Revenue,PRIVATE,EXTERNAL RESIDENTIAL CARE,632405,140145330,14-Apr-15,"2,409.76 ",MOUNT CARMEL,SP0001309
WANDSWORTH COUNCIL,PH,SOCIAL SERVICES,Revenue,PRIVATE,EXTERNAL RESIDENTIAL CARE,632404,140145330,14-Apr-15,"2,435.71 ",MOUNT CARMEL,SP0001309
WANDSWORTH COUNCIL,PH,SOCIAL SERVICES,Revenue,PRIVATE,EXTERNAL RESIDENTIAL CARE,635708,140145330,16-Apr-15,"2,920.00 ",KENWARD TRUST,SP0001418
WANDSWORTH COUNCIL,PH,SOCIAL SERVICES,Revenue,PRIVATE,EXTERNAL RESIDENTIAL CARE,627480,140145330,02-Apr-15,"2,920.00 ",KENWARD TRUST,SP0001418
WANDSWORTH COUNCIL,PH,SOCIAL SERVICES,Revenue,PRIVATE,EXTERNAL RESIDENTIAL CARE,644032,140145330,28-Apr-15,"2,520.00 ",WESTERN COUNSELLING SERVICES,SP0001629
WANDSWORTH COUNCIL,PH,SOCIAL SERVICES,Revenue,PRIVATE,EXTERNAL RESIDENTIAL CARE,644031,140145330,28-Apr-15,"2,520.00 ",WESTERN COUNSELLING SERVICES,SP0001629
WANDSWORTH COUNCIL,PH,SOCIAL SERVICES,Revenue,PRIVATE,EXTERNAL RESIDENTIAL CARE,645913,140145330,30-Apr-15,"3,004.20 ",MERCIA CARE HOMES LTD T/A SEFTON PARK,SP0005828
WANDSWORTH COUNCIL,PH,SOCIAL SERVICES,Revenue,PRIVATE,EXTERNAL RESIDENTIAL CARE,635666,140145330,16-Apr-15,"4,254.64 ",FOUNDATION 66,SP0005873
WANDSWORTH COUNCIL,PH,SOCIAL SERVICES,Revenue,CUSTOMER & CLIENT RECPTS - EXT,CL CONT EXTERNAL RESIDENTIAL,645915,140180720,30-Apr-15,-211.82 ,CRANSTOUN DRUG SERVICES,SP0000202
WANDSWORTH COUNCIL,PH,SOCIAL SERVICES,Revenue,CUSTOMER & CLIENT RECPTS - EXT,CL CONT EXTERNAL RESIDENTIAL,645914,140180720,30-Apr-15,-212.57 ,CRANSTOUN DRUG SERVICES,SP0000202
WANDSWORTH COUNCIL,PH,SOCIAL SERVICES,Revenue,CUSTOMER & CLIENT RECPTS - EXT,CL CONT EXTERNAL RESIDENTIAL,632446,140180720,14-Apr-15,-192.00 ,STREETSCENE ADDICTION RECOVERY,SP0001163
WANDSWORTH COUNCIL,PH,SOCIAL SERVICES,Revenue,CUSTOMER & CLIENT RECPTS - EXT,CL CONT EXTERNAL RESIDENTIAL,642766,140180720,24-Apr-15,-89.14 ,BROADREACH HOUSE,SP0001195
WANDSWORTH COUNCIL,PH,SOCIAL SERVICES,Revenue,CUSTOMER & CLIENT RECPTS - EXT,CL CONT EXTERNAL RESIDENTIAL,642767,140180720,24-Apr-15,-116.57 ,BROADREACH HOUSE,SP0001195
WANDSWORTH COUNCIL,PH,SOCIAL SERVICES,Revenue,CUSTOMER & CLIENT RECPTS - EXT,CL CONT EXTERNAL RESIDENTIAL,632406,140180720,14-Apr-15,-212.57 ,MOUNT CARMEL,SP0001309
WANDSWORTH COUNCIL,PH,SOCIAL SERVICES,Revenue,CUSTOMER & CLIENT RECPTS - EXT,CL CONT EXTERNAL RESIDENTIAL,632404,140180720,14-Apr-15,-212.57 ,MOUNT CARMEL,SP0001309
WANDSWORTH COUNCIL,PH,SOCIAL SERVICES,Revenue,CUSTOMER & CLIENT RECPTS - EXT,CL CONT EXTERNAL RESIDENTIAL,632405,140180720,14-Apr-15,-376.25 ,MOUNT CARMEL,SP0001309
WANDSWORTH COUNCIL,PH,SOCIAL SERVICES,Revenue,CUSTOMER & CLIENT RECPTS - EXT,CL CONT EXTERNAL RESIDENTIAL,635708,140180720,16-Apr-15,-192.00 ,KENWARD TRUST,SP0001418
WANDSWORTH COUNCIL,PH,SOCIAL SERVICES,Revenue,CUSTOMER & CLIENT RECPTS - EXT,CL CONT EXTERNAL RESIDENTIAL,627480,140180720,02-Apr-15,-192.00 ,KENWARD TRUST,SP0001418
WANDSWORTH COUNCIL,PH,SOCIAL SERVICES,Revenue,CUSTOMER & CLIENT RECPTS - EXT,CL CONT EXTERNAL RESIDENTIAL,644031,140180720,28-Apr-15,-192.00 ,WESTERN COUNSELLING SERVICES,SP0001629
WANDSWORTH COUNCIL,PH,SOCIAL SERVICES,Revenue,CUSTOMER & CLIENT RECPTS - EXT,CL CONT EXTERNAL RESIDENTIAL,644032,140180720,28-Apr-15,-192.00 ,WESTERN COUNSELLING SERVICES,SP0001629
WANDSWORTH COUNCIL,PH,SOCIAL SERVICES,Revenue,CUSTOMER & CLIENT RECPTS - EXT,CL CONT EXTERNAL RESIDENTIAL,635666,140180720,16-Apr-15,-301.71 ,FOUNDATION 66,SP0005873
WANDSWORTH COUNCIL,ASC,SOCIAL SERVICES,Revenue,OTHER AGENCIES,EXTERNAL OUTREACH,628272,140543330,07-Apr-15,"2,094.80 ",SIGNHEALTH,SP0000496
WANDSWORTH COUNCIL,ASC,SOCIAL SERVICES,Revenue,OTHER AGENCIES,EXTERNAL OUTREACH,645937,140543330,30-Apr-15,940.56 ,ACTION ON HEARING LOSS,SP0000563
WANDSWORTH COUNCIL,ASC,SOCIAL SERVICES,Revenue,OTHER AGENCIES,EXTERNAL OUTREACH,628275,140543330,07-Apr-15,506.92 ,ROYAL ASSOCIATION FOR DEAF PEOPLE,SP0001251
WANDSWORTH COUNCIL,ASC,SOCIAL SERVICES,Revenue,OTHER AGENCIES,EXTERNAL OUTREACH,627725,140543330,02-Apr-15,528.96 ,ROYAL ASSOCIATION FOR DEAF PEOPLE,SP0001251
WANDSWORTH COUNCIL,ASC,SOCIAL SERVICES,Revenue,OTHER AGENCIES,EXTERNAL OUTREACH,645932,140543330,30-Apr-15,608.40 ,ACTION ON HEARING LOSS,SP0001359
WANDSWORTH COUNCIL,ASC,SOCIAL SERVICES,Revenue,OTHER AGENCIES,EXTERNAL OUTREACH,645933,140543330,30-Apr-15,919.60 ,ACTION ON HEARING LOSS,SP0001359
WANDSWORTH COUNCIL,ASC,SOCIAL SERVICES,Revenue,OTHER AGENCIES,EXTERNAL OUTREACH,636717,140543330,17-Apr-15,608.40 ,ACTION ON HEARING LOSS,SP0001359
WANDSWORTH COUNCIL,ASC,SOCIAL SERVICES,Revenue,PRIVATE,EXTERNAL RESIDENTIAL CARE,627542,140545330,02-Apr-15,"7,041.92 ",SIGNHEALTH,SP0000496
WANDSWORTH COUNCIL,ASC,SOCIAL SERVICES,Revenue,PRIVATE,EXTERNAL RESIDENTIAL CARE,627543,140545330,02-Apr-15,"5,950.76 ",SIGNHEALTH,SP0000496
WANDSWORTH COUNCIL,ASC,SOCIAL SERVICES,Revenue,PRIVATE,EXTERNAL RESIDENTIAL CARE,627541,140545330,02-Apr-15,"6,038.36 ",SIGNHEALTH,SP0000496
WANDSWORTH COUNCIL,ASC,SOCIAL SERVICES,Revenue,PRIVATE,EXTERNAL RESIDENTIAL CARE,632407,140545330,14-Apr-15,"4,024.32 ",VIRIDIAN HOUSING,SP0001289
WANDSWORTH COUNCIL,ASC,SOCIAL SERVICES,Revenue,PRIVATE,EXTERNAL RESIDENTIAL CARE,632408,140545330,14-Apr-15,"3,870.76 ",VIRIDIAN HOUSING,SP0001289
WANDSWORTH COUNCIL,ASC,SOCIAL SERVICES,Revenue,PRIVATE,EXTERNAL RESIDENTIAL CARE,632448,140545330,14-Apr-15,"29,739.14 ",ACTION ON HEARING LOSS,SP0001359
WANDSWORTH COUNCIL,ASC,SOCIAL SERVICES,Revenue,PRIVATE,EXTERNAL RESIDENTIAL CARE,645912,140545330,30-Apr-15,"3,398.72 ",ACTION ON HEARING LOSS,SP0001359
WANDSWORTH COUNCIL,ASC,SOCIAL SERVICES,Revenue,PRIVATE,EXTERNAL RESIDENTIAL CARE,632403,140545330,14-Apr-15,"10,511.04 ",BUTTERFLYS CARE HOMES LTD,SP0008006
WANDSWORTH COUNCIL,ASC,SOCIAL SERVICES,Revenue,CUSTOMER & CLIENT RECPTS - EXT,CL CONT EXTERNAL RESIDENTIAL,632408,140580720,14-Apr-15,-319.40 ,VIRIDIAN HOUSING,SP0001289
WANDSWORTH COUNCIL,ASC,SOCIAL SERVICES,Revenue,CUSTOMER & CLIENT RECPTS - EXT,CL CONT EXTERNAL RESIDENTIAL,632407,140580720,14-Apr-15,-319.40 ,VIRIDIAN HOUSING,SP0001289
WANDSWORTH COUNCIL,ASC,SOCIAL SERVICES,Revenue,CUSTOMER & CLIENT RECPTS - EXT,CL CONT EXTERNAL RESIDENTIAL,632448,140580720,14-Apr-15,"-1,083.69 ",ACTION ON HEARING LOSS,SP0001359
WANDSWORTH COUNCIL,ASC,SOCIAL SERVICES,Revenue,OTHER AGENCIES,EXTERNAL OUTREACH,627848,142043330,02-Apr-15,530.32 ,NAS SERVICES LIMITED,SP0000217
WANDSWORTH COUNCIL,ASC,SOCIAL SERVICES,Revenue,PRIVATE,EXTERNAL DAYCARE,632651,142045290,14-Apr-15,706.08 ,SHARE COMMUNITY,SP0000329
WANDSWORTH COUNCIL,ASC,SOCIAL SERVICES,Revenue,PRIVATE,EXTERNAL DAYCARE,627615,142045290,02-Apr-15,"1,200.00 ",MOSAIC CLUBHOUSE,SP0008847
WANDSWORTH COUNCIL,ASC,SOCIAL SERVICES,Revenue,PRIVATE,EXTERNAL HOMECARE,642877,142045300,24-Apr-15,695.60 ,SUPREME CARE SERVICE LTD,SP0001600
WANDSWORTH COUNCIL,ASC,SOCIAL SERVICES,Revenue,PRIVATE,EXTERNAL HOMECARE,642839,142045300,24-Apr-15,642.40 ,SUPREME CARE SERVICE LTD,SP0001600
WANDSWORTH COUNCIL,ASC,SOCIAL SERVICES,Revenue,PRIVATE,EXTERNAL NURSING CARE,627506,142045310,02-Apr-15,"3,400.00 ",HAVELOCK COURT NURSING HOME,SP0000024
WANDSWORTH COUNCIL,ASC,SOCIAL SERVICES,Revenue,PRIVATE,EXTERNAL NURSING CARE,635722,142045310,16-Apr-15,"3,400.00 ",ROSEDENE NURSING HOME,SP0000316
WANDSWORTH COUNCIL,ASC,SOCIAL SERVICES,Revenue,PRIVATE,EXTERNAL NURSING CARE,641787,142045310,24-Apr-15,"2,828.00 ",TRINITY COURT NURSING HOME,SP0001001
WANDSWORTH COUNCIL,ASC,SOCIAL SERVICES,Revenue,PRIVATE,EXTERNAL NURSING CARE,641779,142045310,24-Apr-15,"3,138.52 ",TRINITY COURT NURSING HOME,SP0001001
WANDSWORTH COUNCIL,ASC,SOCIAL SERVICES,Revenue,PRIVATE,EXTERNAL NURSING CARE,641797,142045310,24-Apr-15,"2,828.00 ",TRINITY COURT NURSING HOME,SP0001001
WANDSWORTH COUNCIL,ASC,SOCIAL SERVICES,Revenue,PRIVATE,EXTERNAL NURSING CARE,641800,142045310,24-Apr-15,"3,300.00 ",TRINITY COURT NURSING HOME,SP0001001
WANDSWORTH COUNCIL,ASC,SOCIAL SERVICES,Revenue,PRIVATE,EXTERNAL RESIDENTIAL CARE,641763,142045330,24-Apr-15,"2,360.24 ",RICHARD CUSDEN HOMES LTD,SP0000268
WANDSWORTH COUNCIL,ASC,SOCIAL SERVICES,Revenue,PRIVATE,EXTERNAL RESIDENTIAL CARE,642749,142045330,24-Apr-15,"2,246.07 ",ASTRA HOMES LTD,SP0000374
WANDSWORTH COUNCIL,ASC,SOCIAL SERVICES,Revenue,PRIVATE,EXTERNAL RESIDENTIAL CARE,645908,142045330,30-Apr-15,"2,504.80 ",QUANTUM CARE LTD,SP0001151
WANDSWORTH COUNCIL,ASC,SOCIAL SERVICES,Revenue,PRIVATE,EXTERNAL RESIDENTIAL CARE,642780,142045330,24-Apr-15,"3,289.29 ",DEEPDENE CARE LTD,SP0001199
WANDSWORTH COUNCIL,ASC,SOCIAL SERVICES,Revenue,PRIVATE,EXTERNAL RESIDENTIAL CARE,642781,142045330,24-Apr-15,"2,380.72 ",DEEPDENE CARE LTD,SP0001199
WANDSWORTH COUNCIL,ASC,SOCIAL SERVICES,Revenue,PRIVATE,EXTERNAL RESIDENTIAL CARE,642787,142045330,24-Apr-15,"2,156.79 ",DEEPDENE CARE LTD,SP0001199
WANDSWORTH COUNCIL,ASC,SOCIAL SERVICES,Revenue,PRIVATE,EXTERNAL RESIDENTIAL CARE,642786,142045330,24-Apr-15,"3,054.35 ",DEEPDENE CARE LTD,SP0001199
WANDSWORTH COUNCIL,ASC,SOCIAL SERVICES,Revenue,PRIVATE,EXTERNAL RESIDENTIAL CARE,642785,142045330,24-Apr-15,"2,156.83 ",DEEPDENE CARE LTD,SP0001199
WANDSWORTH COUNCIL,ASC,SOCIAL SERVICES,Revenue,PRIVATE,EXTERNAL RESIDENTIAL CARE,642784,142045330,24-Apr-15,"2,960.31 ",DEEPDENE CARE LTD,SP0001199
WANDSWORTH COUNCIL,ASC,SOCIAL SERVICES,Revenue,PRIVATE,EXTERNAL RESIDENTIAL CARE,635751,142045330,16-Apr-15,"2,714.40 ",REDACTED PERSONAL DATA,SP0001200
WANDSWORTH COUNCIL,ASC,SOCIAL SERVICES,Revenue,PRIVATE,EXTERNAL RESIDENTIAL CARE,635749,142045330,16-Apr-15,646.16 ,REDACTED PERSONAL DATA,SP0001200
WANDSWORTH COUNCIL,ASC,SOCIAL SERVICES,Revenue,PRIVATE,EXTERNAL RESIDENTIAL CARE,635750,142045330,16-Apr-15,"1,961.73 ",REDACTED PERSONAL DATA,SP0001200
WANDSWORTH COUNCIL,ASC,SOCIAL SERVICES,Revenue,PRIVATE,EXTERNAL RESIDENTIAL CARE,635701,142045330,16-Apr-15,"3,747.12 ",ADMIRAL HEALTHCARE LTD,SP0001227
WANDSWORTH COUNCIL,ASC,SOCIAL SERVICES,Revenue,PRIVATE,EXTERNAL RESIDENTIAL CARE,635705,142045330,16-Apr-15,"4,800.00 ",ADMIRAL HEALTHCARE LTD,SP0001227
WANDSWORTH COUNCIL,ASC,SOCIAL SERVICES,Revenue,PRIVATE,EXTERNAL RESIDENTIAL CARE,635703,142045330,16-Apr-15,"4,000.00 ",ADMIRAL HEALTHCARE LTD,SP0001227
WANDSWORTH COUNCIL,ASC,SOCIAL SERVICES,Revenue,PRIVATE,EXTERNAL RESIDENTIAL CARE,635702,142045330,16-Apr-15,"4,424.00 ",ADMIRAL HEALTHCARE LTD,SP0001227
WANDSWORTH COUNCIL,ASC,SOCIAL SERVICES,Revenue,PRIVATE,EXTERNAL RESIDENTIAL CARE,635717,142045330,16-Apr-15,"9,224.02 ",ENIGMA CARE LTD,SP0001228
WANDSWORTH COUNCIL,ASC,SOCIAL SERVICES,Revenue,PRIVATE,EXTERNAL RESIDENTIAL CARE,635731,142045330,16-Apr-15,"2,440.00 ",ABBEY HOUSE,SP0001434
WANDSWORTH COUNCIL,ASC,SOCIAL SERVICES,Revenue,PRIVATE,EXTERNAL RESIDENTIAL CARE,635732,142045330,16-Apr-15,"3,200.00 ",ABBEY HOUSE,SP0001434
WANDSWORTH COUNCIL,ASC,SOCIAL SERVICES,Revenue,PRIVATE,EXTERNAL RESIDENTIAL CARE,635740,142045330,16-Apr-15,"3,857.14 ",ROSENMANOR LTD,SP0001457
WANDSWORTH COUNCIL,ASC,SOCIAL SERVICES,Revenue,PRIVATE,EXTERNAL RESIDENTIAL CARE,635738,142045330,16-Apr-15,"5,200.00 ",LONA LODGE,SP0001570
WANDSWORTH COUNCIL,ASC,SOCIAL SERVICES,Revenue,PRIVATE,EXTERNAL RESIDENTIAL CARE,635707,142045330,16-Apr-15,"4,967.10 ",CASCADE CARE LTD,SP0005872
WANDSWORTH COUNCIL,ASC,SOCIAL SERVICES,Revenue,PRIVATE,EXTERNAL RESIDENTIAL CARE,635080,142045330,15-Apr-15,"2,955.77 ",PRIMROSE HOUSE RESIDENTIAL HOME,SP0008026
WANDSWORTH COUNCIL,ASC,SOCIAL SERVICES,Revenue,PRIVATE,ONE TO ONE CARE,635838,142046220,16-Apr-15,"3,632.80 ",ROSEDENE NURSING HOME,SP0000316
WANDSWORTH COUNCIL,ASC,SOCIAL SERVICES,Revenue,PRIVATE,ONE TO ONE CARE,635840,142046220,16-Apr-15,"3,632.80 ",ROSEDENE NURSING HOME,SP0000316
WANDSWORTH COUNCIL,ASC,SOCIAL SERVICES,Revenue,PRIVATE,ONE TO ONE CARE,635839,142046220,16-Apr-15,"3,632.80 ",ROSEDENE NURSING HOME,SP0000316
WANDSWORTH COUNCIL,ASC,SOCIAL SERVICES,Revenue,VOL ASS,SUPPORTED HOUSING PROGRAMME,627857,142048030,02-Apr-15,"1,623.14 ",ASTRA HOMES LTD,SP0000374
WANDSWORTH COUNCIL,ASC,SOCIAL SERVICES,Revenue,VOL ASS,SUPPORTED HOUSING PROGRAMME,627860,142048030,02-Apr-15,"1,801.29 ",ASTRA HOMES LTD,SP0000374
WANDSWORTH COUNCIL,ASC,SOCIAL SERVICES,Revenue,VOL ASS,SUPPORTED HOUSING PROGRAMME,627858,142048030,02-Apr-15,"1,748.00 ",ASTRA HOMES LTD,SP0000374
WANDSWORTH COUNCIL,ASC,SOCIAL SERVICES,Revenue,VOL ASS,SUPPORTED HOUSING PROGRAMME,627859,142048030,02-Apr-15,"1,935.29 ",ASTRA HOMES LTD,SP0000374
WANDSWORTH COUNCIL,ASC,SOCIAL SERVICES,Revenue,VOL ASS,SUPPORTED HOUSING PROGRAMME,627861,142048030,02-Apr-15,"1,868.00 ",ASTRA HOMES LTD,SP0000374
WANDSWORTH COUNCIL,ASC,SOCIAL SERVICES,Revenue,VOL ASS,SUPPORTED HOUSING PROGRAMME,627862,142048030,02-Apr-15,"2,068.14 ",ASTRA HOMES LTD,SP0000374
WANDSWORTH COUNCIL,ASC,SOCIAL SERVICES,Revenue,VOL ASS,SUPPORTED HOUSING PROGRAMME,635637,142048030,16-Apr-15,983.76 ,C M CARE LTD,SP0000455
WANDSWORTH COUNCIL,ASC,SOCIAL SERVICES,Revenue,VOL ASS,SUPPORTED HOUSING PROGRAMME,642759,142048030,24-Apr-15,"1,896.36 ",C M CARE LTD,SP0000455
WANDSWORTH COUNCIL,ASC,SOCIAL SERVICES,Revenue,VOL ASS,SUPPORTED HOUSING PROGRAMME,635638,142048030,16-Apr-15,473.20 ,C M CARE LTD,SP0000455
WANDSWORTH COUNCIL,ASC,SOCIAL SERVICES,Revenue,VOL ASS,SUPPORTED HOUSING PROGRAMME,635641,142048030,16-Apr-15,432.00 ,C M CARE LTD,SP0000455
WANDSWORTH COUNCIL,ASC,SOCIAL SERVICES,Revenue,VOL ASS,SUPPORTED HOUSING PROGRAMME,642771,142048030,24-Apr-15,"1,803.00 ",C M CARE LTD,SP0000455
WANDSWORTH COUNCIL,ASC,SOCIAL SERVICES,Revenue,VOL ASS,SUPPORTED HOUSING PROGRAMME,642754,142048030,24-Apr-15,"1,516.56 ",C M CARE LTD,SP0000455
WANDSWORTH COUNCIL,ASC,SOCIAL SERVICES,Revenue,VOL ASS,SUPPORTED HOUSING PROGRAMME,632417,142048030,14-Apr-15,502.51 ,SERVOL COMMUNITY TRUST,SP0000539
WANDSWORTH COUNCIL,ASC,SOCIAL SERVICES,Revenue,CUSTOMER & CLIENT RECPTS - EXT,CL CONT EXTERNAL RESIDENTIAL,642749,142080720,24-Apr-15,-442.68 ,ASTRA HOMES LTD,SP0000374
WANDSWORTH COUNCIL,ASC,SOCIAL SERVICES,Revenue,CUSTOMER & CLIENT RECPTS - EXT,CL CONT EXTERNAL RESIDENTIAL,645908,142080720,30-Apr-15,-548.92 ,QUANTUM CARE LTD,SP0001151
WANDSWORTH COUNCIL,ASC,SOCIAL SERVICES,Revenue,CUSTOMER & CLIENT RECPTS - EXT,CL CONT EXTERNAL RESIDENTIAL,642781,142080720,24-Apr-15,-531.22 ,DEEPDENE CARE LTD,SP0001199
WANDSWORTH COUNCIL,ASC,SOCIAL SERVICES,Revenue,CUSTOMER & CLIENT RECPTS - EXT,CL CONT EXTERNAL RESIDENTIAL,642786,142080720,24-Apr-15,-531.22 ,DEEPDENE CARE LTD,SP0001199
WANDSWORTH COUNCIL,ASC,SOCIAL SERVICES,Revenue,CUSTOMER & CLIENT RECPTS - EXT,CL CONT EXTERNAL RESIDENTIAL,642785,142080720,24-Apr-15,-531.22 ,DEEPDENE CARE LTD,SP0001199
WANDSWORTH COUNCIL,ASC,SOCIAL SERVICES,Revenue,CUSTOMER & CLIENT RECPTS - EXT,CL CONT EXTERNAL RESIDENTIAL,635750,142080720,16-Apr-15,-371.85 ,REDACTED PERSONAL DATA,SP0001200
WANDSWORTH COUNCIL,ASC,SOCIAL SERVICES,Revenue,CUSTOMER & CLIENT RECPTS - EXT,CL CONT EXTERNAL RESIDENTIAL,635749,142080720,16-Apr-15,-123.95 ,REDACTED PERSONAL DATA,SP0001200
WANDSWORTH COUNCIL,ASC,SOCIAL SERVICES,Revenue,CUSTOMER & CLIENT RECPTS - EXT,CL CONT EXTERNAL RESIDENTIAL,635080,142080720,15-Apr-15,-548.02 ,PRIMROSE HOUSE RESIDENTIAL HOME,SP0008026
WANDSWORTH COUNCIL,ASC,SOCIAL SERVICES,Revenue,CUSTOMER & CLIENT RECPTS - EXT,CLIENT CONTS EXTERNAL NURSING,641797,142080820,24-Apr-15,-635.12 ,TRINITY COURT NURSING HOME,SP0001001
WANDSWORTH COUNCIL,ASC,SOCIAL SERVICES,Revenue,CUSTOMER & CLIENT RECPTS - EXT,CLIENT CONTS EXTERNAL NURSING,641779,142080820,24-Apr-15,-516.40 ,TRINITY COURT NURSING HOME,SP0001001
WANDSWORTH COUNCIL,ASC,SOCIAL SERVICES,Revenue,CUSTOMER & CLIENT RECPTS - EXT,RNCC,627506,142084120,02-Apr-15,-443.56 ,HAVELOCK COURT NURSING HOME,SP0000024
WANDSWORTH COUNCIL,ASC,SOCIAL SERVICES,Revenue,CUSTOMER & CLIENT RECPTS - EXT,RNCC,635722,142084120,16-Apr-15,-443.56 ,ROSEDENE NURSING HOME,SP0000316
WANDSWORTH COUNCIL,ASC,SOCIAL SERVICES,Revenue,CUSTOMER & CLIENT RECPTS - EXT,RNCC,641787,142084120,24-Apr-15,-443.56 ,TRINITY COURT NURSING HOME,SP0001001
WANDSWORTH COUNCIL,ASC,SOCIAL SERVICES,Revenue,CUSTOMER & CLIENT RECPTS - EXT,RNCC,641797,142084120,24-Apr-15,-443.56 ,TRINITY COURT NURSING HOME,SP0001001
